Workbook

Sheet Document History
B2: UniQuE
B3: Baseline -Report-Template
B4: (Engagement Name and Id)
B5: (Client)
B8: Document History
B10: Version | C10: Date | D10: Author | E10: Changes
B16: Review And Approval
B18: Company | C18: Role | D18: Name | E18: Date | F18: Signature
B25: Distribution
B27: Company | C27: Name | D27: Number | E27: Media | F27: Action
B34: Storage
B36: Location | C36: Access | D36: Administrator
B42: Company Confidential - Copyright © 2022 Capgemini - All rights reserved
B44: Template Version Number:Group Reference v1.1

Sheet Input Sheet
A2: Total Data Points | B2: =IF(B$21="","",COUNTA(B$21:B500)) -> 350 | C2: =IF(C$21="","",COUNTA(C$21:C500)) -> 330 | D2: =IF(D$21="","",COUNTA(D$21:D500)) -> 3 | E2: =IF(E$21="","",COUNTA(E$21:E500)) -> 11 | F2: =IF(F$21="","",COUNTA(F$21:F500)) -> 479 | G2: =IF(G$21="","",COUNTA(G$21:G500)) -> 10 | H2: =IF(H$21="","",COUNTA(H$21:H500)) -> 20 | I2: =IF(I$21="","",COUNTA(I$21:I500)) -> 2 | J2: =IF(J$21="","",COUNTA(J$21:J500)) -> 68 | K2: =IF(K$21="","",COUNTA(K$21:K500)) -> 6 | L2: =IF(L$21="","",COUNTA(L$21:L500)) -> 6 | M2: =IF(M$21="","",COUNTA(M$21:M500)) -> 265 | N2: =IF(N$21="","",COUNTA(N$21:N500)) ->  | O2: =IF(O$21="","",COUNTA(O$21:O500)) -> 21 | P2: =IF(P$21="","",COUNTA(P$21:P500)) -> 36 | Q2: =IF(Q$21="","",COUNTA(Q$21:Q500)) -> 41 | R2: =IF(R$21="","",COUNTA(R$21:R500)) -> 44 | S2: =IF(S$21="","",COUNTA(S$21:S500)) -> 7 | T2: =IF(T$21="","",COUNTA(T$21:T500)) -> 7 | U2: =IF(U$21="","",COUNTA(U$21:U500)) -> 4 | V2: =IF(V$21="","",COUNTA(V$21:V500)) -> 14 | W2: =IF(W$21="","",COUNTA(W$21:W500)) -> 141 | X2: =IF(X$21="","",COUNTA(X$21:X500)) -> 11 | Y2: =IF(Y$21="","",COUNTA(Y$21:Y500)) -> 19 | Z2: =IF(Z$21="","",COUNTA(Z$21:Z500)) -> 4 | AA2: =IF(AA$21="","",COUNTA(AA$21:AA500)) -> 42 | AB2: =IF(AB$21="","",COUNTA(AB$21:AB500)) -> 365 | AC2: =IF(AC$21="","",COUNTA(AC$21:AC500)) -> 25
A3: Max Value | B3: =IF(B$21="","",MAX(B$21:B$500)) -> 0 | C3: 53.01 | D3: 0.43 | E3: 0.33 | F3: 13.24503311 | G3: =IF(G$21="","",MAX(G$21:G$500)) -> 5.33 | H3: 2.49 | I3: 0.88 | J3: 6.863596872 | K3: 0 | L3: 0 | M3: 100 | O3: 2.8 | P3: 2.342857143 | Q3: 21.27659574 | R3: 3.428571429 | S3: 1 | T3: 1 | U3: 1 | V3: 1 | W3: 1 | X3: 1 | Y3: 1 | Z3: 1 | AA3: 5.913043478 | AB3: 0 | AC3: 95
A4: Min Value | B4: =IF(B$21="","",MIN(B$21:B$500)) -> 0 | C4: 0 | D4: 0.3 | E4: 0 | F4: 0.4181476061 | G4: =IF(G$21="","",MIN(G$21:G$500)) -> 3.26 | H4: 0 | I4: 0.88 | J4: 0 | K4: 0 | L4: 0 | M4: 95 | O4: 0 | P4: 0 | Q4: 0 | R4: 0 | S4: 0.1604938272 | T4: 1 | U4: 1 | V4: 1 | W4: 1 | X4: 1 | Y4: 1 | Z4: 1 | AA4: -0.3548387097 | AB4: 0 | AC4: 11.33333333
A5: Range | B5: =IF(B$21="","",B3-B4) -> 0 | C5: 53.01 | D5: 0.13 | E5: 0.33 | F5: 12.82688551 | G5: =IF(G$21="","",G3-G4) -> 2.07 | H5: =IF(H$21="","",H3-H4) -> 2.49 | I5: =IF(I$21="","",I3-I4) -> 0 | J5: 6.863596872 | K5: 0 | L5: 0 | M5: =IF(M$21="","",M3-M4) -> 5 | O5: 2.8 | P5: 2.342857143 | Q5: 21.27659574 | R5: 3.428571429 | S5: 0.8395061728 | T5: 0 | U5: 0 | V5: 0 | W5: 0 | X5: 0 | Y5: 0 | Z5: 0 | AA5: 6.267882188 | AB5: 0 | AC5: 83.66666667
A6: Q3 | B6: =IF(B$21="","",QUARTILE(B$21:B$500,3)) -> 0 | C6: 0 | D6: 0.38 | E6: 0.27 | F6: 6.843414656 | G6: =IF(G$21="","",QUARTILE(G$21:G$500,3)) -> 4.9225 | H6: 1.585 | I6: 0.88 | J6: 0 | K6: 0 | L6: 0 | M6: 100 | O6: 0.3928571429 | P6: 0.3055555556 | Q6: 3.4 | R6: 1.386325417 | S6: 0.99375 | T6: 1 | U6: 1 | V6: 1 | W6: 1 | X6: 1 | Y6: 1 | Z6: 1 | AA6: 0 | AB6: 0 | AC6: 47.6091954
A7: Q1 | B7: =IF(B$21="","",QUARTILE(B$21:B$500,1)) -> 0 | C7: 0 | D7: 0.315 | E7: 0.14 | F7: 3.580512394 | G7: =IF(G$21="","",QUARTILE(G$21:G$500,1)) -> 3.33 | H7: 0.9 | I7: 0.88 | J7: 0 | K7: 0 | L7: 0 | M7: 100 | O7: 0.02419354839 | P7: 0.1265822785 | Q7: 0 | R7: 0.01803088291 | S7: 0.4583333333 | T7: 1 | U7: 1 | V7: 1 | W7: 1 | X7: 1 | Y7: 1 | Z7: 1 | AA7: 0 | AB7: 0 | AC7: 19.81981982 | AN7: =584/(584+2350) -> 0.1990456714
A8: Mean | B8: =AVERAGE(B21:B500) -> 0 | C8: 1.849060606 | D8: 0.3533333333 | E8: 0.1981818182 | F8: 5.311300158 | G8: =AVERAGE(G21:G500) -> 4.004 | H8: =AVERAGE(H21:H500) -> 1.231 | I8: =AVERAGE(I21:I500) -> 0.88 | J8: 0.1671430557 | K8: 0 | L8: 0 | M8: =AVERAGE(M21:M500) -> 99.59335849 | O8: 0.3434809851 | P8: 0.3234412464 | Q8: 2.602872996 | R8: 0.8390620314 | S8: 0.717026749 | T8: 1 | U8: 1 | V8: 1 | W8: 1 | X8: 1 | Y8: 1 | Z8: 1 | AA8: 0.1923035586 | AB8: 0 | AC8: 37.99524877
A9: Median | B9: =MEDIAN(B21:B500) -> 0 | C9: 0 | D9: 0.33 | E9: 0.18 | F9: 5.186760786 | G9: =MEDIAN(G21:G500) -> 3.45 | H9: =MEDIAN(H21:H500) -> 1.33 | I9: =MEDIAN(I21:I500) -> 0.88 | J9: 0 | K9: 0 | L9: 0 | M9: =MEDIAN(M21:M500) -> 100 | O9: 0.1404737646 | P9: 0.2177777778 | Q9: 0.8594967046 | R9: 0.6276240926 | S9: 0.9041666667 | T9: 1 | U9: 1 | V9: 1 | W9: 1 | X9: 1 | Y9: 1 | Z9: 1 | AA9: 0 | AB9: 0 | AC9: 34.11428571
A10: Bootstrapped Mean
A11: Std. Dev. | B11: =IF(B$21="","",STDEV(B$21:B$500)) -> 0 | C11: 7.263650645 | D11: 0.06806859286 | E11: 0.09867301372 | F11: 2.807467972 | G11: 0.8768022709 | H11: =IF(H$21="","",STDEV(H$21:H$500)) -> 0.7033221916 | I11: 0 | J11: 0.856515135 | K11: 0 | L11: 0 | M11: 1.216363356 | O11: 0.6164731744 | P11: 0.4425947086 | Q11: 4.211918089 | R11: 0.879880407 | S11: 0.3734098744 | T11: 0 | U11: 0 | V11: 0 | W11: 0 | X11: 0 | Y11: 0 | Z11: 0 | AA11: 0.9533049716 | AB11: 0 | AC11: 23.95303692
A12: IQR | B12: =IF(B$21="","",B6-B7) -> 0 | C12: 0 | D12: 0.065 | E12: 0.13 | F12: 3.262902263 | G12: =IF(G$21="","",G6-G7) -> 1.5925 | H12: =IF(H$21="","",H6-H7) -> 0.685 | I12: =IF(I$21="","",I6-I7) -> 0 | J12: 0 | K12: 0 | L12: 0 | M12: =IF(M$21="","",M6-M7) -> 0 | O12: 0.3686635945 | P12: 0.1789732771 | Q12: 3.4 | R12: 1.368294534 | S12: 0.5354166667 | T12: 0 | U12: 0 | V12: 0 | W12: 0 | X12: 0 | Y12: 0 | Z12: 0 | AA12: 0 | AB12: 0 | AC12: 27.78937558
A13: Bootstrapped S. D.
A15: Highest Theoretically Possible Metrics Value | B15: 100 | C15: 100 | D15: 100 | E15: 100 | F15: 100 | G15: 1000 | H15: 1000 | I15: 10 | J15: 100 | K15: 100 | L15: 100 | M15: 100 | N15: 100 | O15: 100 | P15: 100 | Q15: 100 | R15: 100 | S15: 100 | T15: 100 | U15: 100 | V15: 100 | W15: 100 | X15: 100 | Y15: 100 | Z15: 100 | AA15: 100 | AB15: 100 | AC15: 100
A16: Lowest Theoretically Possible Metrics Value | B16: -100 | C16: 0 | D16: 0 | E16: 0 | F16: 0 | G16: 0 | H16: 0 | I16: 0 | J16: 0 | K16: 0 | L16: 0 | M16: 0 | N16: 0 | O16: 0 | P16: 0 | Q16: 0 | R16: 0 | S16: 0 | T16: 0 | U16: 0 | V16: 0 | W16: 0 | X16: 0 | Y16: 0 | Z16: 0 | AA16: 0 | AB16: 0 | AC16: 0
A17: Performance w.r.t. Last Baseline | B17: DET | C17: DET | D17: IMP | E17: IMP | F17: IMP | G17: SAME | H17: SAME | I17: IMP | J17: IMP | K17: SAME | L17: IMP | M17: SAME | N17: SAME | O17: SAME | P17: SAME | Q17: SAME | R17: SAME | S17: SAME | T17: SAME | U17: SAME | V17: SAME | W17: SAME | X17: SAME | Y17: SAME | Z17: SAME | AA17: SAME | AB17: SAME | AC17: SAME
A18: True Distribution | B18: Logistic | C18: Logistic | D18: Logistic | E18: Binomial | F18: Student's t | G18: Weibull | H18: Student's t | I18: Lognormal | K18: Lognormal | L18: Logistic | M18: Logistic | N18: Logistic | O18: Logistic | P18: Logistic | Q18: Logistic | R18: Logistic | S18: Logistic | T18: Logistic | U18: Logistic | V18: Logistic | W18: Logistic | X18: Logistic | Y18: Logistic | Z18: Logistic | AA18: Logistic | AB18: Logistic | AC18: Logistic
B19: 1 | C19: 2 | D19: 3 | E19: 4 | F19: 5 | G19: 6 | H19: 7 | I19: 8 | J19: 9 | K19: 10 | L19: 11 | M19: 12 | N19: 13 | O19: 14 | P19: 15 | Q19: 16 | R19: 17 | S19: 18 | T19: 19 | U19: 20 | V19: 21 | W19: 22 | X19: 23 | Y19: 24 | Z19: 25 | AA19: 26 | AB19: 27 | AC19: 28
A20: Metrics Data Serial No. | B20: Schedule Variance | C20: Effort Variance | D20: SRS (Defect Density) | E20: Design (Defect Density) | F20: Code Review (Defect Density) | G20: UT (Defect Density) | H20: IT (Defect Density) | I20: RT (Defect Density) | J20: AT (Defect Density) | K20: Post release Critical defects | L20: Post release Major defects | M20: PCS | N20: PSP | O20: SRS (Effort /Size) | P20: Design (Effort /Size) | Q20: Code Review (Effort /KSLOC) | R20: Post-UT & Pre-At (Overall) | S20: VV Ratio | T20: VVF Ratio | U20: SRS (Defect Detection Efficiency ) | V20: Design (Defect Detection Efficiency ) | W20: Code Review (Defect Detection Efficiency ) | X20: UT (Defect Detection Efficiency ) | Y20: IT (Defect Detection Efficiency ) | Z20: RT (Defect Detection Efficiency ) | AA20: AT (Defect Detection Efficiency ) | AB20: Post release defects | AC20: Productivity (Overall) Lines/Per person days
A21: 1 | B21: 0 | C21: 0 | D21: 0.3 | E21: 0 | F21: 7.788018433 | G21: 3.26 | H21: 0 | I21: 0.88 | J21: 0.1843317972 | K21: 0 | L21: 0 | M21: 95 | O21: 0 | P21: 0 | Q21: 0 | R21: 0 | S21: 0.1604938272 | T21: 1 | U21: 1 | V21: 1 | W21: 1 | X21: 1 | Y21: 1 | Z21: 1 | AA21: -0.3548387097 | AB21: 0 | AC21: 36.53198653
A22: 2 | B22: 0 | C22: 0 | D22: 0.33 | E22: 0.12 | F22: 7.414965986 | G22: 3.33 | H22: 0 | I22: 0.88 | J22: 6.863596872 | K22: 0 | L22: 0 | M22: 95 | O22: 0 | P22: 0 | Q22: 0 | R22: 0 | S22: 0.3333333333 | T22: 1 | U22: 1 | V22: 1 | W22: 1 | X22: 1 | Y22: 1 | Z22: 1 | AA22: -0.007092198582 | AB22: 0 | AC22: 14.81854839
A23: 3 | B23: 0 | C23: 0 | D23: 0.43 | E23: 0.12 | F23: 4.865334492 | G23: 3.33 | H23: 0.2 | J23: 0 | K23: 0 | L23: 0 | M23: 95 | O23: 0 | P23: 0 | Q23: 0 | R23: 0 | S23: 0.8333333333 | T23: 1 | U23: 1 | V23: 1 | W23: 1 | X23: 1 | Y23: 1 | Z23: 1 | AA23: 0 | AB23: 0 | AC23: 12.65356265
A24: 4 | B24: 0 | C24: 0 | E24: 0.16 | F24: 6.329113924 | G24: 3.33 | H24: 0.6 | J24: 0 | K24: 0 | L24: 0 | M24: 95 | O24: 0 | P24: 0 | Q24: 0 | R24: 0 | S24: 0.975 | T24: 1 | U24: 1 | V24: 1 | W24: 1 | X24: 1 | Y24: 1 | Z24: 1 | AA24: 0 | AB24: 0 | AC24: 17.15006997
A25: 5 | B25: 0 | C25: 0 | E25: 0.18 | F25: 5.994005994 | G25: 3.39 | H25: 0.6 | J25: 0 | K25: 0 | L25: 0 | M25: 95 | O25: 0 | P25: 0 | Q25: 0 | R25: 0 | S25: 1 | T25: 1 | V25: 1 | W25: 1 | X25: 1 | Y25: 1 | AA25: 0 | AB25: 0 | AC25: 11.33333333
A26: 6 | B26: 0 | C26: 0 | E26: 0.18 | F26: 2.267573696 | G26: 3.51 | H26: 1 | J26: 0 | K26: 0 | L26: 0 | M26: 95 | O26: 0.03225806452 | P26: 0.03225806452 | Q26: 0 | R26: 0 | S26: 1 | T26: 1 | V26: 1 | W26: 1 | X26: 1 | Y26: 1 | AA26: 0 | AB26: 0 | AC26: 11.46905043
A27: 7 | B27: 0 | C27: 0 | E27: 0.24 | F27: 0.7637934147 | G27: 4.3 | H27: 1 | J27: 0 | M27: 95.3 | O27: 0.08888888889 | P27: 0.0652173913 | Q27: 0 | R27: 0 | V27: 1 | W27: 1 | X27: 1 | Y27: 1 | AA27: 0 | AB27: 0 | AC27: 95
A28: 8 | B28: 0 | C28: 0 | E28: 0.24 | F28: 2.767892448 | G28: 5.13 | H28: 1.13 | J28: 0 | M28: 95.3 | O28: 0.08888888889 | P28: 0.1034482759 | Q28: 0 | R28: 0 | V28: 1 | W28: 1 | X28: 1 | Y28: 1 | AA28: 0 | AB28: 0 | AC28: 83.84615385
A29: 9 | B29: 0 | C29: 0 | E29: 0.3 | F29: 10.84236864 | G29: 5.13 | H29: 1.33 | J29: 0 | M29: 95.4 | O29: 0.09523809524 | P29: 0.1265822785 | Q29: 0 | R29: 0 | V29: 1 | W29: 1 | X29: 1 | Y29: 1 | AA29: 0 | AB29: 0 | AC29: 25.1884058
A30: 10 | B30: 0 | C30: 0 | E30: 0.31 | F30: 8.070175439 | G30: 5.33 | H30: 1.33 | J30: 0 | M30: 95.4 | O30: 0.1153846154 | P30: 0.1265822785 | Q30: 0 | R30: 0 | V30: 1 | W30: 1 | X30: 1 | Y30: 1 | AA30: 0 | AB30: 0 | AC30: 54.97701149
A31: 11 | B31: 0 | C31: 0 | E31: 0.33 | F31: 4.719101124 | H31: 1.33 | J31: 0 | M31: 95.4 | O31: 0.1655629139 | P31: 0.1307189542 | Q31: 0 | R31: 0.00194809306 | V31: 1 | W31: 1 | X31: 1 | Y31: 1 | AA31: 0 | AB31: 0 | AC31: 24.52820513
A32: 12 | B32: 0 | C32: 0 | F32: 6.796116505 | H32: 1.33 | J32: 0 | M32: 95.4 | O32: 0.2307692308 | P32: 0.1487414188 | Q32: 0 | R32: 0.02339181287 | V32: 1 | W32: 1 | Y32: 1 | AA32: 0 | AB32: 0 | AC32: 34.47154472
A33: 13 | B33: 0 | C33: 0 | F33: 5.854800937 | H33: 1.33 | J33: 0.1941747573 | M33: 95.4 | O33: 0.354368932 | P33: 0.1487414188 | Q33: 0 | R33: 0.08620689655 | V33: 1 | W33: 1 | Y33: 1 | AA33: 0 | AB33: 0 | AC33: 37.57575758
A34: 14 | B34: 0 | C34: 0 | F34: 4.08 | H34: 1.35 | J34: 0 | M34: 95.4 | O34: 0.3904761905 | P34: 0.1487414188 | Q34: 0 | R34: 0.08620689655 | V34: 1 | W34: 1 | Y34: 1 | AA34: 0 | AB34: 0 | AC34: 13.49593496
A35: 15 | B35: 0 | C35: 0 | F35: 7.540106952 | H35: 1.57 | J35: 0.864 | M35: 95.6 | O35: 0.3904761905 | P35: 0.1487414188 | Q35: 0 | R35: 0.08620689655 | W35: 1 | Y35: 1 | AA35: 0 | AB35: 0 | AC35: 39.86666667
A36: 16 | B36: 0 | C36: 0 | F36: 1.470588235 | H36: 1.63 | J36: 0 | M36: 95.6 | O36: 0.4 | P36: 0.1666666667 | Q36: 0 | R36: 0.08620689655 | W36: 1 | Y36: 1 | AA36: 0 | AB36: 0 | AC36: 31
A37: 17 | B37: 0 | C37: 0 | F37: 4.724409449 | H37: 2 | J37: 0.5147058824 | M37: 96.62 | O37: 0.4 | P37: 0.1724137931 | Q37: 0 | R37: 0.09578544061 | W37: 1 | Y37: 1 | AA37: 0 | AB37: 0 | AC37: 19.81981982
A38: 18 | B38: 0 | C38: 0 | F38: 8.653846154 | H38: 2.2 | J38: 0 | M38: 96.62 | O38: 0.625 | P38: 0.2177777778 | Q38: 0.2476313523 | R38: 0.4776579353 | W38: 1 | Y38: 1 | AA38: 0 | AB38: 0 | AC38: 54.38596491
A39: 19 | B39: 0 | C39: 0 | F39: 2.489626556 | H39: 2.2 | J39: 0.9615384615 | M39: 96.62 | O39: 0.6923076923 | P39: 0.2368421053 | Q39: 0.5454545455 | R39: 0.5 | W39: 1 | Y39: 1 | AA39: 0 | AB39: 0 | AC39: 33.34666667
A40: 20 | B40: 0 | C40: 0 | F40: 5.263157895 | H40: 2.49 | J40: 0 | M40: 97.47 | O40: 2.8 | P40: 0.2380952381 | Q40: 0.7189934092 | R40: 0.5263157895 | W40: 1 | AA40: 0 | AB40: 0 | AC40: 73.80952381
A41: 21 | B41: 0 | C41: 0 | F41: 3.594771242 | J41: 0 | M41: 97.47 | P41: 0.2551020408 | Q41: 1 | R41: 0.5649038462 | W41: 1 | AA41: 0 | AB41: 0 | AC41: 34.93650794
A42: 22 | B42: 0 | C42: 0 | F42: 5.426356589 | J42: 1.307189542 | M42: 97.7 | P42: 0.2921052632 | Q42: 1.5 | R42: 0.5885815185 | W42: 1 | AA42: 0 | AB42: 0 | AC42: 81.88405797
A43: 23 | B43: 0 | C43: 0 | F43: 5.042016807 | J43: 0 | M43: 97.7 | P43: 0.2921052632 | Q43: 2.518891688 | R43: 0.6666666667 | W43: 1 | AA43: 0 | AB43: 0 | AC43: 34.11428571
A44: 24 | B44: 0 | C44: 0 | F44: 3.49726776 | J44: 0 | M44: 98 | P44: 0.2972972973 | Q44: 2.631578947 | R44: 0.7801664355 | W44: 1 | AA44: 0 | AB44: 0 | AC44: 26.06896552
A45: 25 | B45: 0 | C45: 0 | F45: 3.608605135 | J45: 0 | M45: 98.73 | P45: 0.3 | Q45: 2.666666667 | R45: 0.7801664355 | W45: 1 | AA45: 0 | AB45: 0 | AC45: 47.6091954
A46: 26 | B46: 0 | C46: 0 | F46: 9.174311927 | J46: 0 | M46: 98.73 | P46: 0.3 | Q46: 2.666666667 | R46: 1 | W46: 1 | AA46: 0 | AB46: 0
A47: 27 | B47: 0 | C47: 0 | F47: 2.8 | J47: 0 | M47: 98.73 | P47: 0.3111111111 | Q47: 2.76816609 | R47: 1.05 | W47: 1 | AA47: 0 | AB47: 0
A48: 28 | B48: 0 | C48: 0 | F48: 6.666666667 | J48: 0 | M48: 98.73 | P48: 0.3636363636 | Q48: 3.116465863 | R48: 1.056910569 | W48: 1 | AA48: 0 | AB48: 0
A49: 29 | B49: 0 | C49: 0 | F49: 2.992518703 | J49: 0.4761904762 | M49: 98.73 | P49: 0.4285714286 | Q49: 3.333333333 | R49: 1.09375 | W49: 1 | AA49: 0 | AB49: 0
A50: 30 | B50: 0 | C50: 0 | F50: 4.385964912 | J50: 0 | M50: 98.73 | P50: 0.5060728745 | Q50: 3.4 | R50: 1.178294574 | W50: 1 | AA50: 0 | AB50: 0
A51: 31 | B51: 0 | C51: 0 | F51: 4.166666667 | J51: 0 | M51: 98.73 | P51: 0.5555555556 | Q51: 3.4 | R51: 1.185185185 | W51: 1 | AA51: 0 | AB51: 0
A52: 32 | B52: 0 | C52: 0 | F52: 4.027617952 | J52: 0 | M52: 98.73 | P52: 0.634375 | Q52: 4 | R52: 1.242774566 | W52: 1 | AA52: 0 | AB52: 0
A53: 33 | B53: 0 | C53: 0 | F53: 6.928406467 | J53: 0 | M53: 100 | P53: 0.9019607843 | Q53: 4 | R53: 1.378122308 | W53: 1 | AA53: 0 | AB53: 0
A54: 34 | B54: 0 | C54: 0 | F54: 13.24503311 | J54: 0 | M54: 100 | P54: 1.328125 | Q54: 4 | R54: 1.410934744 | W54: 1 | AA54: 0 | AB54: 0
A55: 35 | B55: 0 | C55: 0 | F55: 0.4181476061 | J55: 0 | M55: 100 | P55: 2.342857143 | Q55: 4.615384615 | R55: 1.410934744 | W55: 1 | AA55: 0 | AB55: 0
A56: 36 | B56: 0 | C56: 0 | F56: 0.4181476061 | J56: 0 | M56: 100 | Q56: 5.8 | R56: 1.5 | W56: 1 | AA56: 0 | AB56: 0
A57: 37 | B57: 0 | C57: 0 | F57: 13.24503311 | J57: 0 | M57: 100 | Q57: 6 | R57: 1.538461538 | W57: 1 | AA57: 0 | AB57: 0
A58: 38 | B58: 0 | C58: 0 | F58: 6.25 | J58: 0 | M58: 100 | Q58: 10.90909091 | R58: 1.630769231 | W58: 1 | AA58: 0 | AB58: 0
A59: 39 | B59: 0 | C59: 0 | F59: 3.537735849 | J59: 0 | M59: 100 | Q59: 13 | R59: 1.8 | W59: 1 | AA59: 1 | AB59: 0
A60: 40 | B60: 0 | C60: 0 | F60: 4.032258065 | J60: 0 | M60: 100 | Q60: 21.27659574 | R60: 1.943319838 | W60: 1 | AA60: 1.333333333 | AB60: 0
A61: 41 | B61: 0 | C61: 0 | F61: 1.204819277 | J61: 0 | M61: 100 | R61: 1.958384333 | W61: 1 | AA61: 5.913043478 | AB61: 0
A62: 42 | B62: 0 | C62: 0 | F62: 0.8361204013 | J62: 0 | M62: 100 | R62: 2.761904762 | W62: 1 | AB62: 0
A63: 43 | B63: 0 | C63: 0 | F63: 1.075268817 | J63: 0 | M63: 100 | R63: 3 | W63: 1 | AB63: 0
A64: 44 | B64: 0 | C64: 0 | F64: 2.392344498 | J64: 0 | M64: 100 | R64: 3.428571429 | W64: 1 | AB64: 0
A65: 45 | B65: 0 | C65: 0 | F65: 7.727272727 | J65: 0 | M65: 100 | W65: 1 | AB65: 0
A66: 46 | B66: 0 | C66: 0 | F66: 4.193548387 | J66: 0 | M66: 100 | W66: 1 | AB66: 0
A67: 47 | B67: 0 | C67: 0 | F67: 3.673094582 | J67: 0 | M67: 100 | W67: 1 | AB67: 0
A68: 48 | B68: 0 | C68: 0 | F68: 5.175600739 | J68: 0 | M68: 100 | W68: 1 | AB68: 0
A69: 49 | B69: 0 | C69: 0 | F69: 7.407407407 | J69: 0 | M69: 100 | W69: 1 | AB69: 0
A70: 50 | B70: 0 | C70: 0 | F70: 5.197920832 | J70: 0 | M70: 100 | W70: 1 | AB70: 0
A71: 51 | B71: 0 | C71: 0 | F71: 5.347593583 | J71: 0 | M71: 100 | W71: 1 | AB71: 0
A72: 52 | B72: 0 | C72: 0 | F72: 6.815084053 | J72: 0 | M72: 100 | W72: 1 | AB72: 0
A73: 53 | B73: 0 | C73: 0 | F73: 9.026548673 | J73: 0 | M73: 100 | W73: 1 | AB73: 0
A74: 54 | B74: 0 | C74: 0 | F74: 3.070910106 | J74: 0 | M74: 100 | W74: 1 | AB74: 0
A75: 55 | B75: 0 | C75: 0 | F75: 8.924776881 | J75: 0 | M75: 100 | W75: 1 | AB75: 0
A76: 56 | B76: 0 | C76: 0 | F76: 5.594405594 | J76: 0 | M76: 100 | W76: 1 | AB76: 0
A77: 57 | B77: 0 | C77: 0 | F77: 6.421052632 | J77: 0 | M77: 100 | W77: 1 | AB77: 0
A78: 58 | B78: 0 | C78: 0 | F78: 5.025125628 | J78: 0 | M78: 100 | W78: 1 | AB78: 0
A79: 59 | B79: 0 | C79: 0 | F79: 5.291005291 | J79: 0 | M79: 100 | W79: 1 | AB79: 0
A80: 60 | B80: 0 | C80: 0 | F80: 3.86286818 | J80: 0 | M80: 100 | W80: 1 | AB80: 0
A81: 61 | B81: 0 | C81: 0 | F81: 7.375 | J81: 0 | M81: 100 | W81: 1 | AB81: 0
A82: 62 | B82: 0 | C82: 0 | F82: 5.979073244 | J82: 0 | M82: 100 | W82: 1 | AB82: 0
A83: 63 | B83: 0 | C83: 0 | F83: 10 | J83: 0 | M83: 100 | W83: 1 | AB83: 0
A84: 64 | B84: 0 | C84: 0 | F84: 6.153846154 | J84: 0 | M84: 100 | W84: 1 | AB84: 0
A85: 65 | B85: 0 | C85: 0 | J85: 0 | M85: 100 | W85: 1 | AB85: 0
A86: 66 | B86: 0 | C86: 0 | J86: 0 | M86: 100 | W86: 1 | AB86: 0
A87: 67 | B87: 0 | C87: 0 | J87: 0 | M87: 100 | W87: 1 | AB87: 0
A88: 68 | B88: 0 | C88: 0 | J88: 0 | M88: 100 | W88: 1 | AB88: 0
A89: 69 | B89: 0 | C89: 0 | M89: 100 | W89: 1 | AB89: 0
A90: 70 | B90: 0 | C90: 0 | M90: 100 | W90: 1 | AB90: 0
A91: 71 | B91: 0 | C91: 0 | M91: 100 | W91: 1 | AB91: 0
A92: 72 | B92: 0 | C92: 0 | M92: 100 | W92: 1 | AB92: 0
A93: 73 | B93: 0 | C93: 0 | M93: 100 | W93: 1 | AB93: 0
A94: 74 | B94: 0 | C94: 0 | M94: 100 | W94: 1 | AB94: 0
A95: 75 | B95: 0 | C95: 0 | M95: 100 | W95: 1 | AB95: 0
A96: 76 | B96: 0 | C96: 0 | M96: 100 | W96: 1 | AB96: 0
A97: 77 | B97: 0 | C97: 0 | M97: 100 | W97: 1 | AB97: 0
A98: 78 | B98: 0 | C98: 0 | M98: 100 | W98: 1 | AB98: 0
A99: 79 | B99: 0 | C99: 0 | M99: 100 | W99: 1 | AB99: 0
A100: 80 | B100: 0 | C100: 0 | M100: 100 | W100: 1 | AB100: 0
A101: 81 | B101: 0 | C101: 0 | M101: 100 | W101: 1 | AB101: 0
A102: 82 | B102: 0 | C102: 0 | M102: 100 | W102: 1 | AB102: 0
A103: 83 | B103: 0 | C103: 0 | M103: 100 | W103: 1 | AB103: 0
A104: 84 | B104: 0 | C104: 0 | M104: 100 | W104: 1 | AB104: 0
A105: 85 | B105: 0 | C105: 0 | M105: 100 | W105: 1 | AB105: 0
A106: 86 | B106: 0 | C106: 0 | M106: 100 | W106: 1 | AB106: 0
A107: 87 | B107: 0 | C107: 0 | M107: 100 | W107: 1 | AB107: 0
A108: 88 | B108: 0 | C108: 0 | M108: 100 | W108: 1 | AB108: 0
A109: 89 | B109: 0 | C109: 0 | M109: 100 | W109: 1 | AB109: 0
A110: 90 | B110: 0 | C110: 0 | M110: 100 | W110: 1 | AB110: 0
A111: 91 | B111: 0 | C111: 0 | M111: 100 | W111: 1 | AB111: 0
A112: 92 | B112: 0 | C112: 0 | M112: 100 | W112: 1 | AB112: 0
A113: 93 | B113: 0 | C113: 0 | M113: 100 | W113: 1 | AB113: 0
A114: 94 | B114: 0 | C114: 0 | M114: 100 | W114: 1 | AB114: 0
A115: 95 | B115: 0 | C115: 0 | M115: 100 | W115: 1 | AB115: 0
A116: 96 | B116: 0 | C116: 0 | M116: 100 | W116: 1 | AB116: 0
A117: 97 | B117: 0 | C117: 0 | M117: 100 | W117: 1 | AB117: 0
A118: 98 | B118: 0 | C118: 0 | M118: 100 | W118: 1 | AB118: 0
A119: 99 | B119: 0 | C119: 0 | M119: 100 | W119: 1 | AB119: 0
A120: 100 | B120: 0 | C120: 0 | M120: 100 | W120: 1 | AB120: 0
A121: 101 | B121: 0 | C121: 0 | M121: 100 | W121: 1 | AB121: 0
A122: 102 | B122: 0 | C122: 0 | M122: 100 | W122: 1 | AB122: 0
A123: 103 | B123: 0 | C123: 0 | M123: 100 | W123: 1 | AB123: 0
A124: 104 | B124: 0 | C124: 0 | M124: 100 | W124: 1 | AB124: 0
A125: 105 | B125: 0 | C125: 0 | M125: 100 | W125: 1 | AB125: 0
A126: 106 | B126: 0 | C126: 0 | M126: 100 | W126: 1 | AB126: 0
A127: 107 | B127: 0 | C127: 0 | M127: 100 | W127: 1 | AB127: 0
A128: 108 | B128: 0 | C128: 0 | M128: 100 | W128: 1 | AB128: 0
A129: 109 | B129: 0 | C129: 0 | M129: 100 | W129: 1 | AB129: 0
A130: 110 | B130: 0 | C130: 0 | M130: 100 | W130: 1 | AB130: 0
A131: 111 | B131: 0 | C131: 0 | M131: 100 | W131: 1 | AB131: 0
A132: 112 | B132: 0 | C132: 0 | M132: 100 | W132: 1 | AB132: 0
A133: 113 | B133: 0 | C133: 0 | M133: 100 | W133: 1 | AB133: 0
A134: 114 | B134: 0 | C134: 0 | M134: 100 | W134: 1 | AB134: 0
A135: 115 | B135: 0 | C135: 0 | M135: 100 | W135: 1 | AB135: 0
A136: 116 | B136: 0 | C136: 0 | M136: 100 | W136: 1 | AB136: 0
A137: 117 | B137: 0 | C137: 0 | M137: 100 | W137: 1 | AB137: 0
A138: 118 | B138: 0 | C138: 0 | M138: 100 | W138: 1 | AB138: 0
A139: 119 | B139: 0 | C139: 0 | M139: 100 | W139: 1 | AB139: 0
A140: 120 | B140: 0 | C140: 0 | M140: 100 | W140: 1 | AB140: 0
A141: 121 | B141: 0 | C141: 0 | M141: 100 | W141: 1 | AB141: 0
A142: 122 | B142: 0 | C142: 0 | M142: 100 | W142: 1 | AB142: 0
A143: 123 | B143: 0 | C143: 0 | M143: 100 | W143: 1 | AB143: 0
A144: 124 | B144: 0 | C144: 0 | M144: 100 | W144: 1 | AB144: 0
A145: 125 | B145: 0 | C145: 0 | M145: 100 | W145: 1 | AB145: 0
A146: 126 | B146: 0 | C146: 0 | M146: 100 | W146: 1 | AB146: 0
A147: 127 | B147: 0 | C147: 0 | M147: 100 | W147: 1 | AB147: 0
A148: 128 | B148: 0 | C148: 0 | M148: 100 | W148: 1 | AB148: 0
A149: 129 | B149: 0 | C149: 0 | M149: 100 | W149: 1 | AB149: 0
A150: 130 | B150: 0 | C150: 0 | M150: 100 | W150: 1 | AB150: 0
A151: 131 | B151: 0 | C151: 0 | M151: 100 | W151: 1 | AB151: 0
A152: 132 | B152: 0 | C152: 0 | M152: 100 | W152: 1 | AB152: 0
A153: 133 | B153: 0 | C153: 0 | M153: 100 | W153: 1 | AB153: 0
A154: 134 | B154: 0 | C154: 0 | M154: 100 | W154: 1 | AB154: 0
A155: 135 | B155: 0 | C155: 0 | M155: 100 | W155: 1 | AB155: 0
A156: 136 | B156: 0 | C156: 0 | M156: 100 | W156: 1 | AB156: 0
A157: 137 | B157: 0 | C157: 0 | M157: 100 | W157: 1 | AB157: 0
A158: 138 | B158: 0 | C158: 0 | M158: 100 | W158: 1 | AB158: 0
A159: 139 | B159: 0 | C159: 0 | M159: 100 | W159: 1 | AB159: 0
A160: 140 | B160: 0 | C160: 0 | M160: 100 | W160: 1 | AB160: 0
A161: 141 | B161: 0 | C161: 0 | M161: 100 | W161: 1 | AB161: 0
A162: 142 | B162: 0 | C162: 0 | M162: 100 | AB162: 0
A163: 143 | B163: 0 | C163: 0 | M163: 100 | AB163: 0
A164: 144 | B164: 0 | C164: 0 | M164: 100 | AB164: 0
A165: 145 | B165: 0 | C165: 0 | M165: 100 | AB165: 0
A166: 146 | B166: 0 | C166: 0 | M166: 100 | AB166: 0
A167: 147 | B167: 0 | C167: 0 | M167: 100 | AB167: 0
A168: 148 | B168: 0 | C168: 0 | M168: 100 | AB168: 0
A169: 149 | B169: 0 | C169: 0 | M169: 100 | AB169: 0
A170: 150 | B170: 0 | C170: 0 | M170: 100 | AB170: 0
A171: 151 | B171: 0 | C171: 0 | M171: 100 | AB171: 0
A172: 152 | B172: 0 | C172: 0 | M172: 100 | AB172: 0
A173: 153 | B173: 0 | C173: 0 | M173: 100 | AB173: 0
A174: 154 | B174: 0 | C174: 0 | M174: 100 | AB174: 0
A175: 155 | B175: 0 | C175: 0 | M175: 100 | AB175: 0
A176: 156 | B176: 0 | C176: 0 | M176: 100 | AB176: 0
A177: 157 | B177: 0 | C177: 0 | M177: 100 | AB177: 0
A178: 158 | B178: 0 | C178: 0 | M178: 100 | AB178: 0
A179: 159 | B179: 0 | C179: 0 | M179: 100 | AB179: 0
A180: 160 | B180: 0 | C180: 0 | M180: 100 | AB180: 0
A181: 161 | B181: 0 | C181: 0 | M181: 100 | AB181: 0
A182: 162 | B182: 0 | C182: 0 | M182: 100 | AB182: 0
A183: 163 | B183: 0 | C183: 0 | M183: 100 | AB183: 0
A184: 164 | B184: 0 | C184: 0 | M184: 100 | AB184: 0
A185: 165 | B185: 0 | C185: 0 | M185: 100 | AB185: 0
A186: 166 | B186: 0 | C186: 0 | M186: 100 | AB186: 0
A187: 167 | B187: 0 | C187: 0 | M187: 100 | AB187: 0
A188: 168 | B188: 0 | C188: 0 | M188: 100 | AB188: 0
A189: 169 | B189: 0 | C189: 0 | M189: 100 | AB189: 0
A190: 170 | B190: 0 | C190: 0 | M190: 100 | AB190: 0
A191: 171 | B191: 0 | C191: 0 | M191: 100 | AB191: 0
A192: 172 | B192: 0 | C192: 0 | M192: 100 | AB192: 0
A193: 173 | B193: 0 | C193: 0 | M193: 100 | AB193: 0
A194: 174 | B194: 0 | C194: 0 | M194: 100 | AB194: 0
A195: 175 | B195: 0 | C195: 0 | M195: 100 | AB195: 0
A196: 176 | B196: 0 | C196: 0 | M196: 100 | AB196: 0
A197: 177 | B197: 0 | C197: 0 | M197: 100 | AB197: 0
A198: 178 | B198: 0 | C198: 0 | M198: 100 | AB198: 0
A199: 179 | B199: 0 | C199: 0 | M199: 100 | AB199: 0
A200: 180 | B200: 0 | C200: 0 | M200: 100 | AB200: 0
A201: 181 | B201: 0 | C201: 0 | M201: 100 | AB201: 0
A202: 182 | B202: 0 | C202: 0 | M202: 100 | AB202: 0
... 298 more rows

Sheet Sheet2 (hidden)
B1: 1 | C1: 2 | D1: 3 | E1: 4 | F1: 5 | G1: 6 | H1: 7 | I1: 8 | J1: 9 | K1: 10 | L1: 11 | M1: 12 | N1: 13 | O1: 14 | P1: 15 | Q1: 16 | R1: 17 | S1: 18 | T1: 19 | U1: 20 | V1: 21 | W1: 22 | X1: 23 | Y1: 24 | Z1: 25 | AA1: 26 | AB1: 27 | AC1: 28 | AD1: 29 | AE1: 30 | AF1: 31 | AG1: 32 | AH1: 33 | AI1: 34 | AJ1: 35 | AK1: 36 | AL1: 37 | AM1: 38 | AN1: 39 | AO1: 40 | AP1: 41 | AQ1: 42 | AR1: 43 | AS1: 44 | AT1: 45 | AU1: 46 | AV1: 47 | AW1: 48 | AX1: 49 | AY1: 50 | AZ1: 51 | BA1: 52 | BB1: 53 | BC1: 54 | BD1: 55 | BE1: 56 | BF1: 57 | BG1: 58 | BH1: 59 | BI1: 60 | BJ1: 61 | BK1: 62 | BL1: 63 | BM1: 64 | BN1: 65 | BO1: 66 | BP1: 67 | BQ1: 68 | BR1: 69 | BS1: 70 | BT1: 71 | BU1: 72 | BV1: 73 | BW1: 74 | BX1: 75 | BY1: 76 | BZ1: 77 | CA1: 78 | CB1: 79 | CC1: 80 | CD1: 81 | CE1: 82 | CF1: 83 | CG1: 84 | CH1: 85 | CI1: 86 | CJ1: 87 | CK1: 88 | CL1: 89 | CM1: 90 | CN1: 91 | CO1: 92 | CP1: 93 | CQ1: 94 | CR1: 95 | CS1: 96 | CT1: 97 | CU1: 98 | CV1: 99 | CW1: 100 | CX1: 101 | CY1: 102 | CZ1: 103 | DA1: 104 | DB1: 105 | DC1: 106 | DD1: 107 | DE1: 108 | DF1: 109 | DG1: 110 | DH1: 111 | DI1: 112 | DJ1: 113 | DK1: 114 | DL1: 115 | DM1: 116 | DN1: 117 | DO1: 118 | DP1: 119 | DQ1: 120 | DR1: 121 | DS1: 122 | DT1: 123 | DU1: 124 | DV1: 125 | DW1: 126 | DX1: 127 | DY1: 128 | DZ1: 129 | EA1: 130 | EB1: 131 | EC1: 132 | ED1: 133 | EE1: 134 | EF1: 135 | EG1: 136 | EH1: 137 | EI1: 138 | EJ1: 139 | EK1: 140 | EL1: 141 | EM1: 142 | EN1: 143 | EO1: 144 | EP1: 145 | EQ1: 146 | ER1: 147 | ES1: 148 | ET1: 149 | EU1: 150 | EV1: 151 | EW1: 152 | EX1: 153 | EY1: 154 | EZ1: 155 | FA1: 156 | FB1: 157 | FC1: 158 | FD1: 159 | FE1: 160 | FF1: 161 | FG1: 162 | FH1: 163 | FI1: 164 | FJ1: 165 | FK1: 166 | FL1: 167 | FM1: 168 | FN1: 169 | FO1: 170 | FP1: 171 | FQ1: 172 | FR1: 173 | FS1: 174 | FT1: 175 | FU1: 176 | FV1: 177 | FW1: 178 | FX1: 179 | FY1: 180 | FZ1: 181 | GA1: 182 | GB1: 183 | GC1: 184 | GD1: 185 | GE1: 186 | GF1: 187 | GG1: 188 | GH1: 189 | GI1: 190 | GJ1: 191 | GK1: 192 | GL1: 193 | GM1: 194 | GN1: 195 | GO1: 196 | GP1: 197 | GQ1: 198 | GR1: 199 | GS1: 200 | GT1: 201 | GU1: 202 | GV1: 203 | GW1: 204 | GX1: 205 | GY1: 206 | GZ1: 207 | HA1: 208 | HB1: 209 | HC1: 210 | HD1: 211 | HE1: 212 | HF1: 213 | HG1: 214 | HH1: 215 | HI1: 216 | HJ1: 217 | HK1: 218 | HL1: 219 | HM1: 220 | HN1: 221 | HO1: 222 | HP1: 223 | HQ1: 224 | HR1: 225 | HS1: 226 | HT1: 227 | HU1: 228 | HV1: 229 | HW1: 230 | HX1: 231 | HY1: 232 | HZ1: 233 | IA1: 234 | IB1: 235 | IC1: 236 | ID1: 237 | IE1: 238 | IF1: 239 | IG1: 240 | IH1: 241 | II1: 242 | IJ1: 243 | IK1: 244 | IL1: 245 | IM1: 246 | IN1: 247 | IO1: 248 | IP1: 249 | IQ1: 250 | IR1: 251 | IS1: 252 | IT1: 253 | IU1: 254 | IV1: 255 | IW1: 256 | IX1: 257 | IY1: 258 | IZ1: 259 | JA1: 260 | JB1: 261 | JC1: 262 | JD1: 263 | JE1: 264 | JF1: 265 | JG1: 266 | JH1: 267 | JI1: 268 | JJ1: 269 | JK1: 270 | JL1: 271 | JM1: 272 | JN1: 273 | JO1: 274 | JP1: 275 | JQ1: 276 | JR1: 277 | JS1: 278 | JT1: 279 | JU1: 280 | JV1: 281 | JW1: 282 | JX1: 283 | JY1: 284 | JZ1: 285 | KA1: 286 | KB1: 287 | KC1: 288 | KD1: 289 | KE1: 290 | KF1: 291 | KG1: 292 | KH1: 293 | KI1: 294 | KJ1: 295 | KK1: 296 | KL1: 297 | KM1: 298 | KN1: 299 | KO1: 300 | KP1: 301 | KQ1: 302 | KR1: 303 | KS1: 304 | KT1: 305 | KU1: 306 | KV1: 307 | KW1: 308 | KX1: 309 | KY1: 310 | KZ1: 311 | LA1: 312 | LB1: 313 | LC1: 314 | LD1: 315 | LE1: 316 | LF1: 317 | LG1: 318 | LH1: 319 | LI1: 320 | LJ1: 321 | LK1: 322 | LL1: 323 | LM1: 324 | LN1: 325 | LO1: 326 | LP1: 327 | LQ1: 328 | LR1: 329 | LS1: 330 | LT1: 331 | LU1: 332 | LV1: 333 | LW1: 334 | LX1: 335 | LY1: 336 | LZ1: 337 | MA1: 338 | MB1: 339 | MC1: 340 | MD1: 341 | ME1: 342 | MF1: 343 | MG1: 344 | MH1: 345 | MI1: 346 | MJ1: 347 | MK1: 348 | ML1: 349 | MM1: 350 | MN1: 351 | MO1: 352 | MP1: 353 | MQ1: 354 | MR1: 355 | MS1: 356 | MT1: 357 | MU1: 358 | MV1: 359 | MW1: 360 | MX1: 361 | MY1: 362 | MZ1: 363 | NA1: 364 | NB1: 365 | NC1: 366 | ND1: 367 | NE1: 368 | NF1: 369 | NG1: 370 | NH1: 371 | NI1: 372 | NJ1: 373 | NK1: 374 | NL1: 375 | NM1: 376 | NN1: 377 | NO1: 378 | NP1: 379 | NQ1: 380 | NR1: 381 | NS1: 382 | NT1: 383 | NU1: 384 | NV1: 385 | NW1: 386 | NX1: 387 | NY1: 388 | NZ1: 389 | OA1: 390 | OB1: 391 | OC1: 392 | OD1: 393 | OE1: 394 | OF1: 395 | OG1: 396 | OH1: 397 | OI1: 398 | OJ1: 399 | OK1: 400
A2: Bin No. | B2: =IF('Input Sheet'!B2="","",ROUNDUP(SQRT('Input Sheet'!B2),0)) -> 19 | C2: =IF('Input Sheet'!C2="","",ROUNDUP(SQRT('Input Sheet'!C2),0)) -> 19 | D2: =IF('Input Sheet'!D2="","",ROUNDUP(SQRT('Input Sheet'!D2),0)) -> 2 | E2: =IF('Input Sheet'!E2="",0,ROUNDUP(SQRT('Input Sheet'!E2),0)) -> 4 | F2: =IF('Input Sheet'!F2="",0,ROUNDUP(SQRT('Input Sheet'!F2),0)) -> 22 | G2: =IF('Input Sheet'!G2="",0,ROUNDUP(SQRT('Input Sheet'!G2),0)) -> 4 | H2: =IF('Input Sheet'!H2="",0,ROUNDUP(SQRT('Input Sheet'!H2),0)) -> 5 | I2: =IF('Input Sheet'!I2="",0,ROUNDUP(SQRT('Input Sheet'!I2),0)) -> 2 | J2: =IF('Input Sheet'!J2="",0,ROUNDUP(SQRT('Input Sheet'!J2),0)) -> 9 | K2: =IF('Input Sheet'!K2="",0,ROUNDUP(SQRT('Input Sheet'!K2),0)) -> 3 | L2: =IF('Input Sheet'!L2="",0,ROUNDUP(SQRT('Input Sheet'!L2),0)) -> 3 | M2: =IF('Input Sheet'!M2="",0,ROUNDUP(SQRT('Input Sheet'!M2),0)) -> 17 | N2: =IF('Input Sheet'!N2="",0,ROUNDUP(SQRT('Input Sheet'!N2),0)) -> 0 | O2: =IF('Input Sheet'!O2="",0,ROUNDUP(SQRT('Input Sheet'!O2),0)) -> 5 | P2: =IF('Input Sheet'!P2="",0,ROUNDUP(SQRT('Input Sheet'!P2),0)) -> 6 | Q2: =IF('Input Sheet'!Q2="",0,ROUNDUP(SQRT('Input Sheet'!Q2),0)) -> 7 | R2: =IF('Input Sheet'!R2="",0,ROUNDUP(SQRT('Input Sheet'!R2),0)) -> 7 | S2: =IF('Input Sheet'!S2="",0,ROUNDUP(SQRT('Input Sheet'!S2),0)) -> 3 | T2: =IF('Input Sheet'!T2="",0,ROUNDUP(SQRT('Input Sheet'!T2),0)) -> 3 | U2: =IF('Input Sheet'!U2="",0,ROUNDUP(SQRT('Input Sheet'!U2),0)) -> 2 | V2: =IF('Input Sheet'!V2="",0,ROUNDUP(SQRT('Input Sheet'!V2),0)) -> 4 | W2: =IF('Input Sheet'!W2="",0,ROUNDUP(SQRT('Input Sheet'!W2),0)) -> 12 | X2: =IF('Input Sheet'!X2="",0,ROUNDUP(SQRT('Input Sheet'!X2),0)) -> 4 | Y2: =IF('Input Sheet'!Y2="",0,ROUNDUP(SQRT('Input Sheet'!Y2),0)) -> 5 | Z2: =IF('Input Sheet'!Z2="",0,ROUNDUP(SQRT('Input Sheet'!Z2),0)) -> 2 | AA2: =IF('Input Sheet'!AA2="",0,ROUNDUP(SQRT('Input Sheet'!AA2),0)) -> 7 | AB2: =IF('Input Sheet'!AB2="",0,ROUNDUP(SQRT('Input Sheet'!AB2),0)) -> 20 | AC2: =IF('Input Sheet'!AC2="",0,ROUNDUP(SQRT('Input Sheet'!AC2),0)) -> 5 | AD2: =IF('Input Sheet'!AD2="",0,ROUNDUP(SQRT('Input Sheet'!AD2),0)) -> 0 | AE2: =IF('Input Sheet'!AE2="",0,ROUNDUP(SQRT('Input Sheet'!AE2),0)) -> 0 | AF2: =IF('Input Sheet'!AF2="",0,ROUNDUP(SQRT('Input Sheet'!AF2),0)) -> 0 | AG2: =IF('Input Sheet'!AG2="",0,ROUNDUP(SQRT('Input Sheet'!AG2),0)) -> 0 | AH2: =IF('Input Sheet'!AH2="",0,ROUNDUP(SQRT('Input Sheet'!AH2),0)) -> 0 | AI2: =IF('Input Sheet'!AI2="",0,ROUNDUP(SQRT('Input Sheet'!AI2),0)) -> 0 | AJ2: =IF('Input Sheet'!AJ2="",0,ROUNDUP(SQRT('Input Sheet'!AJ2),0)) -> 0 | AK2: =IF('Input Sheet'!AK2="",0,ROUNDUP(SQRT('Input Sheet'!AK2),0)) -> 0 | AL2: =IF('Input Sheet'!AL2="",0,ROUNDUP(SQRT('Input Sheet'!AL2),0)) -> 0 | AM2: =IF('Input Sheet'!AM2="",0,ROUNDUP(SQRT('Input Sheet'!AM2),0)) -> 0 | AN2: =IF('Input Sheet'!AN2="",0,ROUNDUP(SQRT('Input Sheet'!AN2),0)) -> 0 | AO2: =IF('Input Sheet'!AO2="",0,ROUNDUP(SQRT('Input Sheet'!AO2),0)) -> 0 | AP2: =IF('Input Sheet'!AP2="",0,ROUNDUP(SQRT('Input Sheet'!AP2),0)) -> 0 | AQ2: =IF('Input Sheet'!AQ2="",0,ROUNDUP(SQRT('Input Sheet'!AQ2),0)) -> 0 | AR2: =IF('Input Sheet'!AR2="",0,ROUNDUP(SQRT('Input Sheet'!AR2),0)) -> 0 | AS2: =IF('Input Sheet'!AS2="",0,ROUNDUP(SQRT('Input Sheet'!AS2),0)) -> 0 | AT2: =IF('Input Sheet'!AT2="",0,ROUNDUP(SQRT('Input Sheet'!AT2),0)) -> 0 | AU2: =IF('Input Sheet'!AU2="",0,ROUNDUP(SQRT('Input Sheet'!AU2),0)) -> 0 | AV2: =IF('Input Sheet'!AV2="",0,ROUNDUP(SQRT('Input Sheet'!AV2),0)) -> 0 | AW2: =IF('Input Sheet'!AW2="",0,ROUNDUP(SQRT('Input Sheet'!AW2),0)) -> 0 | AX2: =IF('Input Sheet'!AX2="",0,ROUNDUP(SQRT('Input Sheet'!AX2),0)) -> 0 | AY2: =IF('Input Sheet'!AY2="",0,ROUNDUP(SQRT('Input Sheet'!AY2),0)) -> 0 | AZ2: =IF('Input Sheet'!AZ2="",0,ROUNDUP(SQRT('Input Sheet'!AZ2),0)) -> 0 | BA2: =IF('Input Sheet'!BA2="",0,ROUNDUP(SQRT('Input Sheet'!BA2),0)) -> 0 | BB2: =IF('Input Sheet'!BB2="",0,ROUNDUP(SQRT('Input Sheet'!BB2),0)) -> 0 | BC2: =IF('Input Sheet'!BC2="",0,ROUNDUP(SQRT('Input Sheet'!BC2),0)) -> 0 | BD2: =IF('Input Sheet'!BD2="",0,ROUNDUP(SQRT('Input Sheet'!BD2),0)) -> 0 | BE2: =IF('Input Sheet'!BE2="",0,ROUNDUP(SQRT('Input Sheet'!BE2),0)) -> 0 | BF2: =IF('Input Sheet'!BF2="",0,ROUNDUP(SQRT('Input Sheet'!BF2),0)) -> 0 | BG2: =IF('Input Sheet'!BG2="",0,ROUNDUP(SQRT('Input Sheet'!BG2),0)) -> 0 | BH2: =IF('Input Sheet'!BH2="",0,ROUNDUP(SQRT('Input Sheet'!BH2),0)) -> 0 | BI2: =IF('Input Sheet'!BI2="",0,ROUNDUP(SQRT('Input Sheet'!BI2),0)) -> 0 | BJ2: =IF('Input Sheet'!BJ2="",0,ROUNDUP(SQRT('Input Sheet'!BJ2),0)) -> 0 | BK2: =IF('Input Sheet'!BK2="",0,ROUNDUP(SQRT('Input Sheet'!BK2),0)) -> 0 | BL2: =IF('Input Sheet'!BL2="",0,ROUNDUP(SQRT('Input Sheet'!BL2),0)) -> 0 | BM2: =IF('Input Sheet'!BM2="",0,ROUNDUP(SQRT('Input Sheet'!BM2),0)) -> 0 | BN2: =IF('Input Sheet'!BN2="",0,ROUNDUP(SQRT('Input Sheet'!BN2),0)) -> 0 | BO2: =IF('Input Sheet'!BO2="",0,ROUNDUP(SQRT('Input Sheet'!BO2),0)) -> 0 | BP2: =IF('Input Sheet'!BP2="",0,ROUNDUP(SQRT('Input Sheet'!BP2),0)) -> 0 | BQ2: =IF('Input Sheet'!BQ2="",0,ROUNDUP(SQRT('Input Sheet'!BQ2),0)) -> 0 | BR2: =IF('Input Sheet'!BR2="",0,ROUNDUP(SQRT('Input Sheet'!BR2),0)) -> 0 | BS2: =IF('Input Sheet'!BS2="",0,ROUNDUP(SQRT('Input Sheet'!BS2),0)) -> 0 | BT2: =IF('Input Sheet'!BT2="",0,ROUNDUP(SQRT('Input Sheet'!BT2),0)) -> 0 | BU2: =IF('Input Sheet'!BU2="",0,ROUNDUP(SQRT('Input Sheet'!BU2),0)) -> 0 | BV2: =IF('Input Sheet'!BV2="",0,ROUNDUP(SQRT('Input Sheet'!BV2),0)) -> 0 | BW2: =IF('Input Sheet'!BW2="",0,ROUNDUP(SQRT('Input Sheet'!BW2),0)) -> 0 | BX2: =IF('Input Sheet'!BX2="",0,ROUNDUP(SQRT('Input Sheet'!BX2),0)) -> 0 | BY2: =IF('Input Sheet'!BY2="",0,ROUNDUP(SQRT('Input Sheet'!BY2),0)) -> 0 | BZ2: =IF('Input Sheet'!BZ2="",0,ROUNDUP(SQRT('Input Sheet'!BZ2),0)) -> 0 | CA2: =IF('Input Sheet'!CA2="",0,ROUNDUP(SQRT('Input Sheet'!CA2),0)) -> 0 | CB2: =IF('Input Sheet'!CB2="",0,ROUNDUP(SQRT('Input Sheet'!CB2),0)) -> 0 | CC2: =IF('Input Sheet'!CC2="",0,ROUNDUP(SQRT('Input Sheet'!CC2),0)) -> 0 | CD2: =IF('Input Sheet'!CD2="",0,ROUNDUP(SQRT('Input Sheet'!CD2),0)) -> 0 | CE2: =IF('Input Sheet'!CE2="",0,ROUNDUP(SQRT('Input Sheet'!CE2),0)) -> 0 | CF2: =IF('Input Sheet'!CF2="",0,ROUNDUP(SQRT('Input Sheet'!CF2),0)) -> 0 | CG2: =IF('Input Sheet'!CG2="",0,ROUNDUP(SQRT('Input Sheet'!CG2),0)) -> 0 | CH2: =IF('Input Sheet'!CH2="",0,ROUNDUP(SQRT('Input Sheet'!CH2),0)) -> 0 | CI2: =IF('Input Sheet'!CI2="",0,ROUNDUP(SQRT('Input Sheet'!CI2),0)) -> 0 | CJ2: =IF('Input Sheet'!CJ2="",0,ROUNDUP(SQRT('Input Sheet'!CJ2),0)) -> 0 | CK2: =IF('Input Sheet'!CK2="",0,ROUNDUP(SQRT('Input Sheet'!CK2),0)) -> 0 | CL2: =IF('Input Sheet'!CL2="",0,ROUNDUP(SQRT('Input Sheet'!CL2),0)) -> 0 | CM2: =IF('Input Sheet'!CM2="",0,ROUNDUP(SQRT('Input Sheet'!CM2),0)) -> 0 | CN2: =IF('Input Sheet'!CN2="",0,ROUNDUP(SQRT('Input Sheet'!CN2),0)) -> 0 | CO2: =IF('Input Sheet'!CO2="",0,ROUNDUP(SQRT('Input Sheet'!CO2),0)) -> 0 | CP2: =IF('Input Sheet'!CP2="",0,ROUNDUP(SQRT('Input Sheet'!CP2),0)) -> 0 | CQ2: =IF('Input Sheet'!CQ2="",0,ROUNDUP(SQRT('Input Sheet'!CQ2),0)) -> 0 | CR2: =IF('Input Sheet'!CR2="",0,ROUNDUP(SQRT('Input Sheet'!CR2),0)) -> 0 | CS2: =IF('Input Sheet'!CS2="",0,ROUNDUP(SQRT('Input Sheet'!CS2),0)) -> 0 | CT2: =IF('Input Sheet'!CT2="",0,ROUNDUP(SQRT('Input Sheet'!CT2),0)) -> 0 | CU2: =IF('Input Sheet'!CU2="",0,ROUNDUP(SQRT('Input Sheet'!CU2),0)) -> 0 | CV2: =IF('Input Sheet'!CV2="",0,ROUNDUP(SQRT('Input Sheet'!CV2),0)) -> 0 | CW2: =IF('Input Sheet'!CW2="",0,ROUNDUP(SQRT('Input Sheet'!CW2),0)) -> 0 | CX2: =IF('Input Sheet'!CX2="",0,ROUNDUP(SQRT('Input Sheet'!CX2),0)) -> 0 | CY2: =IF('Input Sheet'!CY2="",0,ROUNDUP(SQRT('Input Sheet'!CY2),0)) -> 0 | CZ2: =IF('Input Sheet'!CZ2="",0,ROUNDUP(SQRT('Input Sheet'!CZ2),0)) -> 0 | DA2: =IF('Input Sheet'!DA2="",0,ROUNDUP(SQRT('Input Sheet'!DA2),0)) -> 0 | DB2: =IF('Input Sheet'!DB2="",0,ROUNDUP(SQRT('Input Sheet'!DB2),0)) -> 0 | DC2: =IF('Input Sheet'!DC2="",0,ROUNDUP(SQRT('Input Sheet'!DC2),0)) -> 0 | DD2: =IF('Input Sheet'!DD2="",0,ROUNDUP(SQRT('Input Sheet'!DD2),0)) -> 0 | DE2: =IF('Input Sheet'!DE2="",0,ROUNDUP(SQRT('Input Sheet'!DE2),0)) -> 0 | DF2: =IF('Input Sheet'!DF2="",0,ROUNDUP(SQRT('Input Sheet'!DF2),0)) -> 0 | DG2: =IF('Input Sheet'!DG2="",0,ROUNDUP(SQRT('Input Sheet'!DG2),0)) -> 0 | DH2: =IF('Input Sheet'!DH2="",0,ROUNDUP(SQRT('Input Sheet'!DH2),0)) -> 0 | DI2: =IF('Input Sheet'!DI2="",0,ROUNDUP(SQRT('Input Sheet'!DI2),0)) -> 0 | DJ2: =IF('Input Sheet'!DJ2="",0,ROUNDUP(SQRT('Input Sheet'!DJ2),0)) -> 0 | DK2: =IF('Input Sheet'!DK2="",0,ROUNDUP(SQRT('Input Sheet'!DK2),0)) -> 0 | DL2: =IF('Input Sheet'!DL2="",0,ROUNDUP(SQRT('Input Sheet'!DL2),0)) -> 0 | DM2: =IF('Input Sheet'!DM2="",0,ROUNDUP(SQRT('Input Sheet'!DM2),0)) -> 0 | DN2: =IF('Input Sheet'!DN2="",0,ROUNDUP(SQRT('Input Sheet'!DN2),0)) -> 0 | DO2: =IF('Input Sheet'!DO2="",0,ROUNDUP(SQRT('Input Sheet'!DO2),0)) -> 0 | DP2: =IF('Input Sheet'!DP2="",0,ROUNDUP(SQRT('Input Sheet'!DP2),0)) -> 0 | DQ2: =IF('Input Sheet'!DQ2="",0,ROUNDUP(SQRT('Input Sheet'!DQ2),0)) -> 0 | DR2: =IF('Input Sheet'!DR2="",0,ROUNDUP(SQRT('Input Sheet'!DR2),0)) -> 0 | DS2: =IF('Input Sheet'!DS2="",0,ROUNDUP(SQRT('Input Sheet'!DS2),0)) -> 0 | DT2: =IF('Input Sheet'!DT2="",0,ROUNDUP(SQRT('Input Sheet'!DT2),0)) -> 0 | DU2: =IF('Input Sheet'!DU2="",0,ROUNDUP(SQRT('Input Sheet'!DU2),0)) -> 0 | DV2: =IF('Input Sheet'!DV2="",0,ROUNDUP(SQRT('Input Sheet'!DV2),0)) -> 0 | DW2: =IF('Input Sheet'!DW2="",0,ROUNDUP(SQRT('Input Sheet'!DW2),0)) -> 0 | DX2: =IF('Input Sheet'!DX2="",0,ROUNDUP(SQRT('Input Sheet'!DX2),0)) -> 0 | DY2: =IF('Input Sheet'!DY2="",0,ROUNDUP(SQRT('Input Sheet'!DY2),0)) -> 0 | DZ2: =IF('Input Sheet'!DZ2="",0,ROUNDUP(SQRT('Input Sheet'!DZ2),0)) -> 0 | EA2: =IF('Input Sheet'!EA2="",0,ROUNDUP(SQRT('Input Sheet'!EA2),0)) -> 0 | EB2: =IF('Input Sheet'!EB2="",0,ROUNDUP(SQRT('Input Sheet'!EB2),0)) -> 0 | EC2: =IF('Input Sheet'!EC2="",0,ROUNDUP(SQRT('Input Sheet'!EC2),0)) -> 0 | ED2: =IF('Input Sheet'!ED2="",0,ROUNDUP(SQRT('Input Sheet'!ED2),0)) -> 0 | EE2: =IF('Input Sheet'!EE2="",0,ROUNDUP(SQRT('Input Sheet'!EE2),0)) -> 0 | EF2: =IF('Input Sheet'!EF2="",0,ROUNDUP(SQRT('Input Sheet'!EF2),0)) -> 0 | EG2: =IF('Input Sheet'!EG2="",0,ROUNDUP(SQRT('Input Sheet'!EG2),0)) -> 0 | EH2: =IF('Input Sheet'!EH2="",0,ROUNDUP(SQRT('Input Sheet'!EH2),0)) -> 0 | EI2: =IF('Input Sheet'!EI2="",0,ROUNDUP(SQRT('Input Sheet'!EI2),0)) -> 0 | EJ2: =IF('Input Sheet'!EJ2="",0,ROUNDUP(SQRT('Input Sheet'!EJ2),0)) -> 0 | EK2: =IF('Input Sheet'!EK2="",0,ROUNDUP(SQRT('Input Sheet'!EK2),0)) -> 0 | EL2: =IF('Input Sheet'!EL2="",0,ROUNDUP(SQRT('Input Sheet'!EL2),0)) -> 0 | EM2: =IF('Input Sheet'!EM2="",0,ROUNDUP(SQRT('Input Sheet'!EM2),0)) -> 0 | EN2: =IF('Input Sheet'!EN2="",0,ROUNDUP(SQRT('Input Sheet'!EN2),0)) -> 0 | EO2: =IF('Input Sheet'!EO2="",0,ROUNDUP(SQRT('Input Sheet'!EO2),0)) -> 0 | EP2: =IF('Input Sheet'!EP2="",0,ROUNDUP(SQRT('Input Sheet'!EP2),0)) -> 0 | EQ2: =IF('Input Sheet'!EQ2="",0,ROUNDUP(SQRT('Input Sheet'!EQ2),0)) -> 0 | ER2: =IF('Input Sheet'!ER2="",0,ROUNDUP(SQRT('Input Sheet'!ER2),0)) -> 0 | ES2: =IF('Input Sheet'!ES2="",0,ROUNDUP(SQRT('Input Sheet'!ES2),0)) -> 0 | ET2: =IF('Input Sheet'!ET2="",0,ROUNDUP(SQRT('Input Sheet'!ET2),0)) -> 0 | EU2: =IF('Input Sheet'!EU2="",0,ROUNDUP(SQRT('Input Sheet'!EU2),0)) -> 0 | EV2: =IF('Input Sheet'!EV2="",0,ROUNDUP(SQRT('Input Sheet'!EV2),0)) -> 0 | EW2: =IF('Input Sheet'!EW2="",0,ROUNDUP(SQRT('Input Sheet'!EW2),0)) -> 0 | EX2: =IF('Input Sheet'!EX2="",0,ROUNDUP(SQRT('Input Sheet'!EX2),0)) -> 0 | EY2: =IF('Input Sheet'!EY2="",0,ROUNDUP(SQRT('Input Sheet'!EY2),0)) -> 0 | EZ2: =IF('Input Sheet'!EZ2="",0,ROUNDUP(SQRT('Input Sheet'!EZ2),0)) -> 0 | FA2: =IF('Input Sheet'!FA2="",0,ROUNDUP(SQRT('Input Sheet'!FA2),0)) -> 0 | FB2: =IF('Input Sheet'!FB2="",0,ROUNDUP(SQRT('Input Sheet'!FB2),0)) -> 0 | FC2: =IF('Input Sheet'!FC2="",0,ROUNDUP(SQRT('Input Sheet'!FC2),0)) -> 0 | FD2: =IF('Input Sheet'!FD2="",0,ROUNDUP(SQRT('Input Sheet'!FD2),0)) -> 0 | FE2: =IF('Input Sheet'!FE2="",0,ROUNDUP(SQRT('Input Sheet'!FE2),0)) -> 0 | FF2: =IF('Input Sheet'!FF2="",0,ROUNDUP(SQRT('Input Sheet'!FF2),0)) -> 0 | FG2: =IF('Input Sheet'!FG2="",0,ROUNDUP(SQRT('Input Sheet'!FG2),0)) -> 0 | FH2: =IF('Input Sheet'!FH2="",0,ROUNDUP(SQRT('Input Sheet'!FH2),0)) -> 0 | FI2: =IF('Input Sheet'!FI2="",0,ROUNDUP(SQRT('Input Sheet'!FI2),0)) -> 0 | FJ2: =IF('Input Sheet'!FJ2="",0,ROUNDUP(SQRT('Input Sheet'!FJ2),0)) -> 0 | FK2: =IF('Input Sheet'!FK2="",0,ROUNDUP(SQRT('Input Sheet'!FK2),0)) -> 0 | FL2: =IF('Input Sheet'!FL2="",0,ROUNDUP(SQRT('Input Sheet'!FL2),0)) -> 0 | FM2: =IF('Input Sheet'!FM2="",0,ROUNDUP(SQRT('Input Sheet'!FM2),0)) -> 0 | FN2: =IF('Input Sheet'!FN2="",0,ROUNDUP(SQRT('Input Sheet'!FN2),0)) -> 0 | FO2: =IF('Input Sheet'!FO2="",0,ROUNDUP(SQRT('Input Sheet'!FO2),0)) -> 0 | FP2: =IF('Input Sheet'!FP2="",0,ROUNDUP(SQRT('Input Sheet'!FP2),0)) -> 0 | FQ2: =IF('Input Sheet'!FQ2="",0,ROUNDUP(SQRT('Input Sheet'!FQ2),0)) -> 0 | FR2: =IF('Input Sheet'!FR2="",0,ROUNDUP(SQRT('Input Sheet'!FR2),0)) -> 0 | FS2: =IF('Input Sheet'!FS2="",0,ROUNDUP(SQRT('Input Sheet'!FS2),0)) -> 0 | FT2: =IF('Input Sheet'!FT2="",0,ROUNDUP(SQRT('Input Sheet'!FT2),0)) -> 0 | FU2: =IF('Input Sheet'!FU2="",0,ROUNDUP(SQRT('Input Sheet'!FU2),0)) -> 0 | FV2: =IF('Input Sheet'!FV2="",0,ROUNDUP(SQRT('Input Sheet'!FV2),0)) -> 0 | FW2: =IF('Input Sheet'!FW2="",0,ROUNDUP(SQRT('Input Sheet'!FW2),0)) -> 0 | FX2: =IF('Input Sheet'!FX2="",0,ROUNDUP(SQRT('Input Sheet'!FX2),0)) -> 0 | FY2: =IF('Input Sheet'!FY2="",0,ROUNDUP(SQRT('Input Sheet'!FY2),0)) -> 0 | FZ2: =IF('Input Sheet'!FZ2="",0,ROUNDUP(SQRT('Input Sheet'!FZ2),0)) -> 0 | GA2: =IF('Input Sheet'!GA2="",0,ROUNDUP(SQRT('Input Sheet'!GA2),0)) -> 0 | GB2: =IF('Input Sheet'!GB2="",0,ROUNDUP(SQRT('Input Sheet'!GB2),0)) -> 0 | GC2: =IF('Input Sheet'!GC2="",0,ROUNDUP(SQRT('Input Sheet'!GC2),0)) -> 0 | GD2: =IF('Input Sheet'!GD2="",0,ROUNDUP(SQRT('Input Sheet'!GD2),0)) -> 0 | GE2: =IF('Input Sheet'!GE2="",0,ROUNDUP(SQRT('Input Sheet'!GE2),0)) -> 0 | GF2: =IF('Input Sheet'!GF2="",0,ROUNDUP(SQRT('Input Sheet'!GF2),0)) -> 0 | GG2: =IF('Input Sheet'!GG2="",0,ROUNDUP(SQRT('Input Sheet'!GG2),0)) -> 0 | GH2: =IF('Input Sheet'!GH2="",0,ROUNDUP(SQRT('Input Sheet'!GH2),0)) -> 0 | GI2: =IF('Input Sheet'!GI2="",0,ROUNDUP(SQRT('Input Sheet'!GI2),0)) -> 0 | GJ2: =IF('Input Sheet'!GJ2="",0,ROUNDUP(SQRT('Input Sheet'!GJ2),0)) -> 0 | GK2: =IF('Input Sheet'!GK2="",0,ROUNDUP(SQRT('Input Sheet'!GK2),0)) -> 0 | GL2: =IF('Input Sheet'!GL2="",0,ROUNDUP(SQRT('Input Sheet'!GL2),0)) -> 0 | GM2: =IF('Input Sheet'!GM2="",0,ROUNDUP(SQRT('Input Sheet'!GM2),0)) -> 0 | GN2: =IF('Input Sheet'!GN2="",0,ROUNDUP(SQRT('Input Sheet'!GN2),0)) -> 0 | GO2: =IF('Input Sheet'!GO2="",0,ROUNDUP(SQRT('Input Sheet'!GO2),0)) -> 0 | GP2: =IF('Input Sheet'!GP2="",0,ROUNDUP(SQRT('Input Sheet'!GP2),0)) -> 0 | GQ2: =IF('Input Sheet'!GQ2="",0,ROUNDUP(SQRT('Input Sheet'!GQ2),0)) -> 0 | GR2: =IF('Input Sheet'!GR2="",0,ROUNDUP(SQRT('Input Sheet'!GR2),0)) -> 0 | GS2: =IF('Input Sheet'!GS2="",0,ROUNDUP(SQRT('Input Sheet'!GS2),0)) -> 0 | GT2: =IF('Input Sheet'!GT2="",0,ROUNDUP(SQRT('Input Sheet'!GT2),0)) -> 0 | GU2: =IF('Input Sheet'!GU2="",0,ROUNDUP(SQRT('Input Sheet'!GU2),0)) -> 0 | GV2: =IF('Input Sheet'!GV2="",0,ROUNDUP(SQRT('Input Sheet'!GV2),0)) -> 0 | GW2: =IF('Input Sheet'!GW2="",0,ROUNDUP(SQRT('Input Sheet'!GW2),0)) -> 0 | GX2: =IF('Input Sheet'!GX2="",0,ROUNDUP(SQRT('Input Sheet'!GX2),0)) -> 0 | GY2: =IF('Input Sheet'!GY2="",0,ROUNDUP(SQRT('Input Sheet'!GY2),0)) -> 0 | GZ2: =IF('Input Sheet'!GZ2="",0,ROUNDUP(SQRT('Input Sheet'!GZ2),0)) -> 0 | HA2: =IF('Input Sheet'!HA2="",0,ROUNDUP(SQRT('Input Sheet'!HA2),0)) -> 0 | HB2: =IF('Input Sheet'!HB2="",0,ROUNDUP(SQRT('Input Sheet'!HB2),0)) -> 0 | HC2: =IF('Input Sheet'!HC2="",0,ROUNDUP(SQRT('Input Sheet'!HC2),0)) -> 0 | HD2: =IF('Input Sheet'!HD2="",0,ROUNDUP(SQRT('Input Sheet'!HD2),0)) -> 0 | HE2: =IF('Input Sheet'!HE2="",0,ROUNDUP(SQRT('Input Sheet'!HE2),0)) -> 0 | HF2: =IF('Input Sheet'!HF2="",0,ROUNDUP(SQRT('Input Sheet'!HF2),0)) -> 0 | HG2: =IF('Input Sheet'!HG2="",0,ROUNDUP(SQRT('Input Sheet'!HG2),0)) -> 0 | HH2: =IF('Input Sheet'!HH2="",0,ROUNDUP(SQRT('Input Sheet'!HH2),0)) -> 0 | HI2: =IF('Input Sheet'!HI2="",0,ROUNDUP(SQRT('Input Sheet'!HI2),0)) -> 0 | HJ2: =IF('Input Sheet'!HJ2="",0,ROUNDUP(SQRT('Input Sheet'!HJ2),0)) -> 0 | HK2: =IF('Input Sheet'!HK2="",0,ROUNDUP(SQRT('Input Sheet'!HK2),0)) -> 0 | HL2: =IF('Input Sheet'!HL2="",0,ROUNDUP(SQRT('Input Sheet'!HL2),0)) -> 0 | HM2: =IF('Input Sheet'!HM2="",0,ROUNDUP(SQRT('Input Sheet'!HM2),0)) -> 0 | HN2: =IF('Input Sheet'!HN2="",0,ROUNDUP(SQRT('Input Sheet'!HN2),0)) -> 0 | HO2: =IF('Input Sheet'!HO2="",0,ROUNDUP(SQRT('Input Sheet'!HO2),0)) -> 0 | HP2: =IF('Input Sheet'!HP2="",0,ROUNDUP(SQRT('Input Sheet'!HP2),0)) -> 0 | HQ2: =IF('Input Sheet'!HQ2="",0,ROUNDUP(SQRT('Input Sheet'!HQ2),0)) -> 0 | HR2: =IF('Input Sheet'!HR2="",0,ROUNDUP(SQRT('Input Sheet'!HR2),0)) -> 0 | HS2: =IF('Input Sheet'!HS2="",0,ROUNDUP(SQRT('Input Sheet'!HS2),0)) -> 0 | HT2: =IF('Input Sheet'!HT2="",0,ROUNDUP(SQRT('Input Sheet'!HT2),0)) -> 0 | HU2: =IF('Input Sheet'!HU2="",0,ROUNDUP(SQRT('Input Sheet'!HU2),0)) -> 0 | HV2: =IF('Input Sheet'!HV2="",0,ROUNDUP(SQRT('Input Sheet'!HV2),0)) -> 0 | HW2: =IF('Input Sheet'!HW2="",0,ROUNDUP(SQRT('Input Sheet'!HW2),0)) -> 0 | HX2: =IF('Input Sheet'!HX2="",0,ROUNDUP(SQRT('Input Sheet'!HX2),0)) -> 0 | HY2: =IF('Input Sheet'!HY2="",0,ROUNDUP(SQRT('Input Sheet'!HY2),0)) -> 0 | HZ2: =IF('Input Sheet'!HZ2="",0,ROUNDUP(SQRT('Input Sheet'!HZ2),0)) -> 0 | IA2: =IF('Input Sheet'!IA2="",0,ROUNDUP(SQRT('Input Sheet'!IA2),0)) -> 0 | IB2: =IF('Input Sheet'!IB2="",0,ROUNDUP(SQRT('Input Sheet'!IB2),0)) -> 0 | IC2: =IF('Input Sheet'!IC2="",0,ROUNDUP(SQRT('Input Sheet'!IC2),0)) -> 0 | ID2: =IF('Input Sheet'!ID2="",0,ROUNDUP(SQRT('Input Sheet'!ID2),0)) -> 0 | IE2: =IF('Input Sheet'!IE2="",0,ROUNDUP(SQRT('Input Sheet'!IE2),0)) -> 0 | IF2: =IF('Input Sheet'!IF2="",0,ROUNDUP(SQRT('Input Sheet'!IF2),0)) -> 0 | IG2: =IF('Input Sheet'!IG2="",0,ROUNDUP(SQRT('Input Sheet'!IG2),0)) -> 0 | IH2: =IF('Input Sheet'!IH2="",0,ROUNDUP(SQRT('Input Sheet'!IH2),0)) -> 0 | II2: =IF('Input Sheet'!II2="",0,ROUNDUP(SQRT('Input Sheet'!II2),0)) -> 0 | IJ2: =IF('Input Sheet'!IJ2="",0,ROUNDUP(SQRT('Input Sheet'!IJ2),0)) -> 0 | IK2: =IF('Input Sheet'!IK2="",0,ROUNDUP(SQRT('Input Sheet'!IK2),0)) -> 0 | IL2: =IF('Input Sheet'!IL2="",0,ROUNDUP(SQRT('Input Sheet'!IL2),0)) -> 0 | IM2: =IF('Input Sheet'!IM2="",0,ROUNDUP(SQRT('Input Sheet'!IM2),0)) -> 0 | IN2: =IF('Input Sheet'!IN2="",0,ROUNDUP(SQRT('Input Sheet'!IN2),0)) -> 0 | IO2: =IF('Input Sheet'!IO2="",0,ROUNDUP(SQRT('Input Sheet'!IO2),0)) -> 0 | IP2: =IF('Input Sheet'!IP2="",0,ROUNDUP(SQRT('Input Sheet'!IP2),0)) -> 0 | IQ2: =IF('Input Sheet'!IQ2="",0,ROUNDUP(SQRT('Input Sheet'!IQ2),0)) -> 0 | IR2: =IF('Input Sheet'!IR2="",0,ROUNDUP(SQRT('Input Sheet'!IR2),0)) -> 0 | IS2: =IF('Input Sheet'!IS2="",0,ROUNDUP(SQRT('Input Sheet'!IS2),0)) -> 0 | IT2: =IF('Input Sheet'!IT2="",0,ROUNDUP(SQRT('Input Sheet'!IT2),0)) -> 0 | IU2: =IF('Input Sheet'!IU2="",0,ROUNDUP(SQRT('Input Sheet'!IU2),0)) -> 0 | IV2: =IF('Input Sheet'!IV2="",0,ROUNDUP(SQRT('Input Sheet'!IV2),0)) -> 0 | IW2: =IF('Input Sheet'!IW2="",0,ROUNDUP(SQRT('Input Sheet'!IW2),0)) -> 0 | IX2: =IF('Input Sheet'!IX2="",0,ROUNDUP(SQRT('Input Sheet'!IX2),0)) -> 0 | IY2: =IF('Input Sheet'!IY2="",0,ROUNDUP(SQRT('Input Sheet'!IY2),0)) -> 0 | IZ2: =IF('Input Sheet'!IZ2="",0,ROUNDUP(SQRT('Input Sheet'!IZ2),0)) -> 0 | JA2: =IF('Input Sheet'!JA2="",0,ROUNDUP(SQRT('Input Sheet'!JA2),0)) -> 0 | JB2: =IF('Input Sheet'!JB2="",0,ROUNDUP(SQRT('Input Sheet'!JB2),0)) -> 0 | JC2: =IF('Input Sheet'!JC2="",0,ROUNDUP(SQRT('Input Sheet'!JC2),0)) -> 0 | JD2: =IF('Input Sheet'!JD2="",0,ROUNDUP(SQRT('Input Sheet'!JD2),0)) -> 0 | JE2: =IF('Input Sheet'!JE2="",0,ROUNDUP(SQRT('Input Sheet'!JE2),0)) -> 0 | JF2: =IF('Input Sheet'!JF2="",0,ROUNDUP(SQRT('Input Sheet'!JF2),0)) -> 0 | JG2: =IF('Input Sheet'!JG2="",0,ROUNDUP(SQRT('Input Sheet'!JG2),0)) -> 0 | JH2: =IF('Input Sheet'!JH2="",0,ROUNDUP(SQRT('Input Sheet'!JH2),0)) -> 0 | JI2: =IF('Input Sheet'!JI2="",0,ROUNDUP(SQRT('Input Sheet'!JI2),0)) -> 0 | JJ2: =IF('Input Sheet'!JJ2="",0,ROUNDUP(SQRT('Input Sheet'!JJ2),0)) -> 0 | JK2: =IF('Input Sheet'!JK2="",0,ROUNDUP(SQRT('Input Sheet'!JK2),0)) -> 0 | JL2: =IF('Input Sheet'!JL2="",0,ROUNDUP(SQRT('Input Sheet'!JL2),0)) -> 0 | JM2: =IF('Input Sheet'!JM2="",0,ROUNDUP(SQRT('Input Sheet'!JM2),0)) -> 0 | JN2: =IF('Input Sheet'!JN2="",0,ROUNDUP(SQRT('Input Sheet'!JN2),0)) -> 0 | JO2: =IF('Input Sheet'!JO2="",0,ROUNDUP(SQRT('Input Sheet'!JO2),0)) -> 0 | JP2: =IF('Input Sheet'!JP2="",0,ROUNDUP(SQRT('Input Sheet'!JP2),0)) -> 0 | JQ2: =IF('Input Sheet'!JQ2="",0,ROUNDUP(SQRT('Input Sheet'!JQ2),0)) -> 0 | JR2: =IF('Input Sheet'!JR2="",0,ROUNDUP(SQRT('Input Sheet'!JR2),0)) -> 0 | JS2: =IF('Input Sheet'!JS2="",0,ROUNDUP(SQRT('Input Sheet'!JS2),0)) -> 0 | JT2: =IF('Input Sheet'!JT2="",0,ROUNDUP(SQRT('Input Sheet'!JT2),0)) -> 0 | JU2: =IF('Input Sheet'!JU2="",0,ROUNDUP(SQRT('Input Sheet'!JU2),0)) -> 0 | JV2: =IF('Input Sheet'!JV2="",0,ROUNDUP(SQRT('Input Sheet'!JV2),0)) -> 0 | JW2: =IF('Input Sheet'!JW2="",0,ROUNDUP(SQRT('Input Sheet'!JW2),0)) -> 0 | JX2: =IF('Input Sheet'!JX2="",0,ROUNDUP(SQRT('Input Sheet'!JX2),0)) -> 0 | JY2: =IF('Input Sheet'!JY2="",0,ROUNDUP(SQRT('Input Sheet'!JY2),0)) -> 0 | JZ2: =IF('Input Sheet'!JZ2="",0,ROUNDUP(SQRT('Input Sheet'!JZ2),0)) -> 0 | KA2: =IF('Input Sheet'!KA2="",0,ROUNDUP(SQRT('Input Sheet'!KA2),0)) -> 0 | KB2: =IF('Input Sheet'!KB2="",0,ROUNDUP(SQRT('Input Sheet'!KB2),0)) -> 0 | KC2: =IF('Input Sheet'!KC2="",0,ROUNDUP(SQRT('Input Sheet'!KC2),0)) -> 0 | KD2: =IF('Input Sheet'!KD2="",0,ROUNDUP(SQRT('Input Sheet'!KD2),0)) -> 0 | KE2: =IF('Input Sheet'!KE2="",0,ROUNDUP(SQRT('Input Sheet'!KE2),0)) -> 0 | KF2: =IF('Input Sheet'!KF2="",0,ROUNDUP(SQRT('Input Sheet'!KF2),0)) -> 0 | KG2: =IF('Input Sheet'!KG2="",0,ROUNDUP(SQRT('Input Sheet'!KG2),0)) -> 0 | KH2: =IF('Input Sheet'!KH2="",0,ROUNDUP(SQRT('Input Sheet'!KH2),0)) -> 0 | KI2: =IF('Input Sheet'!KI2="",0,ROUNDUP(SQRT('Input Sheet'!KI2),0)) -> 0 | KJ2: =IF('Input Sheet'!KJ2="",0,ROUNDUP(SQRT('Input Sheet'!KJ2),0)) -> 0 | KK2: =IF('Input Sheet'!KK2="",0,ROUNDUP(SQRT('Input Sheet'!KK2),0)) -> 0 | KL2: =IF('Input Sheet'!KL2="",0,ROUNDUP(SQRT('Input Sheet'!KL2),0)) -> 0 | KM2: =IF('Input Sheet'!KM2="",0,ROUNDUP(SQRT('Input Sheet'!KM2),0)) -> 0 | KN2: =IF('Input Sheet'!KN2="",0,ROUNDUP(SQRT('Input Sheet'!KN2),0)) -> 0 | KO2: =IF('Input Sheet'!KO2="",0,ROUNDUP(SQRT('Input Sheet'!KO2),0)) -> 0 | KP2: =IF('Input Sheet'!KP2="",0,ROUNDUP(SQRT('Input Sheet'!KP2),0)) -> 0 | KQ2: =IF('Input Sheet'!KQ2="",0,ROUNDUP(SQRT('Input Sheet'!KQ2),0)) -> 0 | KR2: =IF('Input Sheet'!KR2="",0,ROUNDUP(SQRT('Input Sheet'!KR2),0)) -> 0 | KS2: =IF('Input Sheet'!KS2="",0,ROUNDUP(SQRT('Input Sheet'!KS2),0)) -> 0 | KT2: =IF('Input Sheet'!KT2="",0,ROUNDUP(SQRT('Input Sheet'!KT2),0)) -> 0 | KU2: =IF('Input Sheet'!KU2="",0,ROUNDUP(SQRT('Input Sheet'!KU2),0)) -> 0 | KV2: =IF('Input Sheet'!KV2="",0,ROUNDUP(SQRT('Input Sheet'!KV2),0)) -> 0 | KW2: =IF('Input Sheet'!KW2="",0,ROUNDUP(SQRT('Input Sheet'!KW2),0)) -> 0 | KX2: =IF('Input Sheet'!KX2="",0,ROUNDUP(SQRT('Input Sheet'!KX2),0)) -> 0 | KY2: =IF('Input Sheet'!KY2="",0,ROUNDUP(SQRT('Input Sheet'!KY2),0)) -> 0 | KZ2: =IF('Input Sheet'!KZ2="",0,ROUNDUP(SQRT('Input Sheet'!KZ2),0)) -> 0 | LA2: =IF('Input Sheet'!LA2="",0,ROUNDUP(SQRT('Input Sheet'!LA2),0)) -> 0 | LB2: =IF('Input Sheet'!LB2="",0,ROUNDUP(SQRT('Input Sheet'!LB2),0)) -> 0 | LC2: =IF('Input Sheet'!LC2="",0,ROUNDUP(SQRT('Input Sheet'!LC2),0)) -> 0 | LD2: =IF('Input Sheet'!LD2="",0,ROUNDUP(SQRT('Input Sheet'!LD2),0)) -> 0 | LE2: =IF('Input Sheet'!LE2="",0,ROUNDUP(SQRT('Input Sheet'!LE2),0)) -> 0 | LF2: =IF('Input Sheet'!LF2="",0,ROUNDUP(SQRT('Input Sheet'!LF2),0)) -> 0 | LG2: =IF('Input Sheet'!LG2="",0,ROUNDUP(SQRT('Input Sheet'!LG2),0)) -> 0 | LH2: =IF('Input Sheet'!LH2="",0,ROUNDUP(SQRT('Input Sheet'!LH2),0)) -> 0 | LI2: =IF('Input Sheet'!LI2="",0,ROUNDUP(SQRT('Input Sheet'!LI2),0)) -> 0 | LJ2: =IF('Input Sheet'!LJ2="",0,ROUNDUP(SQRT('Input Sheet'!LJ2),0)) -> 0 | LK2: =IF('Input Sheet'!LK2="",0,ROUNDUP(SQRT('Input Sheet'!LK2),0)) -> 0 | LL2: =IF('Input Sheet'!LL2="",0,ROUNDUP(SQRT('Input Sheet'!LL2),0)) -> 0 | LM2: =IF('Input Sheet'!LM2="",0,ROUNDUP(SQRT('Input Sheet'!LM2),0)) -> 0 | LN2: =IF('Input Sheet'!LN2="",0,ROUNDUP(SQRT('Input Sheet'!LN2),0)) -> 0 | LO2: =IF('Input Sheet'!LO2="",0,ROUNDUP(SQRT('Input Sheet'!LO2),0)) -> 0 | LP2: =IF('Input Sheet'!LP2="",0,ROUNDUP(SQRT('Input Sheet'!LP2),0)) -> 0 | LQ2: =IF('Input Sheet'!LQ2="",0,ROUNDUP(SQRT('Input Sheet'!LQ2),0)) -> 0 | LR2: =IF('Input Sheet'!LR2="",0,ROUNDUP(SQRT('Input Sheet'!LR2),0)) -> 0 | LS2: =IF('Input Sheet'!LS2="",0,ROUNDUP(SQRT('Input Sheet'!LS2),0)) -> 0 | LT2: =IF('Input Sheet'!LT2="",0,ROUNDUP(SQRT('Input Sheet'!LT2),0)) -> 0 | LU2: =IF('Input Sheet'!LU2="",0,ROUNDUP(SQRT('Input Sheet'!LU2),0)) -> 0 | LV2: =IF('Input Sheet'!LV2="",0,ROUNDUP(SQRT('Input Sheet'!LV2),0)) -> 0 | LW2: =IF('Input Sheet'!LW2="",0,ROUNDUP(SQRT('Input Sheet'!LW2),0)) -> 0 | LX2: =IF('Input Sheet'!LX2="",0,ROUNDUP(SQRT('Input Sheet'!LX2),0)) -> 0 | LY2: =IF('Input Sheet'!LY2="",0,ROUNDUP(SQRT('Input Sheet'!LY2),0)) -> 0 | LZ2: =IF('Input Sheet'!LZ2="",0,ROUNDUP(SQRT('Input Sheet'!LZ2),0)) -> 0 | MA2: =IF('Input Sheet'!MA2="",0,ROUNDUP(SQRT('Input Sheet'!MA2),0)) -> 0 | MB2: =IF('Input Sheet'!MB2="",0,ROUNDUP(SQRT('Input Sheet'!MB2),0)) -> 0 | MC2: =IF('Input Sheet'!MC2="",0,ROUNDUP(SQRT('Input Sheet'!MC2),0)) -> 0 | MD2: =IF('Input Sheet'!MD2="",0,ROUNDUP(SQRT('Input Sheet'!MD2),0)) -> 0 | ME2: =IF('Input Sheet'!ME2="",0,ROUNDUP(SQRT('Input Sheet'!ME2),0)) -> 0 | MF2: =IF('Input Sheet'!MF2="",0,ROUNDUP(SQRT('Input Sheet'!MF2),0)) -> 0 | MG2: =IF('Input Sheet'!MG2="",0,ROUNDUP(SQRT('Input Sheet'!MG2),0)) -> 0 | MH2: =IF('Input Sheet'!MH2="",0,ROUNDUP(SQRT('Input Sheet'!MH2),0)) -> 0 | MI2: =IF('Input Sheet'!MI2="",0,ROUNDUP(SQRT('Input Sheet'!MI2),0)) -> 0 | MJ2: =IF('Input Sheet'!MJ2="",0,ROUNDUP(SQRT('Input Sheet'!MJ2),0)) -> 0 | MK2: =IF('Input Sheet'!MK2="",0,ROUNDUP(SQRT('Input Sheet'!MK2),0)) -> 0 | ML2: =IF('Input Sheet'!ML2="",0,ROUNDUP(SQRT('Input Sheet'!ML2),0)) -> 0 | MM2: =IF('Input Sheet'!MM2="",0,ROUNDUP(SQRT('Input Sheet'!MM2),0)) -> 0 | MN2: =IF('Input Sheet'!MN2="",0,ROUNDUP(SQRT('Input Sheet'!MN2),0)) -> 0 | MO2: =IF('Input Sheet'!MO2="",0,ROUNDUP(SQRT('Input Sheet'!MO2),0)) -> 0 | MP2: =IF('Input Sheet'!MP2="",0,ROUNDUP(SQRT('Input Sheet'!MP2),0)) -> 0 | MQ2: =IF('Input Sheet'!MQ2="",0,ROUNDUP(SQRT('Input Sheet'!MQ2),0)) -> 0 | MR2: =IF('Input Sheet'!MR2="",0,ROUNDUP(SQRT('Input Sheet'!MR2),0)) -> 0 | MS2: =IF('Input Sheet'!MS2="",0,ROUNDUP(SQRT('Input Sheet'!MS2),0)) -> 0 | MT2: =IF('Input Sheet'!MT2="",0,ROUNDUP(SQRT('Input Sheet'!MT2),0)) -> 0 | MU2: =IF('Input Sheet'!MU2="",0,ROUNDUP(SQRT('Input Sheet'!MU2),0)) -> 0 | MV2: =IF('Input Sheet'!MV2="",0,ROUNDUP(SQRT('Input Sheet'!MV2),0)) -> 0 | MW2: =IF('Input Sheet'!MW2="",0,ROUNDUP(SQRT('Input Sheet'!MW2),0)) -> 0 | MX2: =IF('Input Sheet'!MX2="",0,ROUNDUP(SQRT('Input Sheet'!MX2),0)) -> 0 | MY2: =IF('Input Sheet'!MY2="",0,ROUNDUP(SQRT('Input Sheet'!MY2),0)) -> 0 | MZ2: =IF('Input Sheet'!MZ2="",0,ROUNDUP(SQRT('Input Sheet'!MZ2),0)) -> 0 | NA2: =IF('Input Sheet'!NA2="",0,ROUNDUP(SQRT('Input Sheet'!NA2),0)) -> 0 | NB2: =IF('Input Sheet'!NB2="",0,ROUNDUP(SQRT('Input Sheet'!NB2),0)) -> 0 | NC2: =IF('Input Sheet'!NC2="",0,ROUNDUP(SQRT('Input Sheet'!NC2),0)) -> 0 | ND2: =IF('Input Sheet'!ND2="",0,ROUNDUP(SQRT('Input Sheet'!ND2),0)) -> 0 | NE2: =IF('Input Sheet'!NE2="",0,ROUNDUP(SQRT('Input Sheet'!NE2),0)) -> 0 | NF2: =IF('Input Sheet'!NF2="",0,ROUNDUP(SQRT('Input Sheet'!NF2),0)) -> 0 | NG2: =IF('Input Sheet'!NG2="",0,ROUNDUP(SQRT('Input Sheet'!NG2),0)) -> 0 | NH2: =IF('Input Sheet'!NH2="",0,ROUNDUP(SQRT('Input Sheet'!NH2),0)) -> 0 | NI2: =IF('Input Sheet'!NI2="",0,ROUNDUP(SQRT('Input Sheet'!NI2),0)) -> 0 | NJ2: =IF('Input Sheet'!NJ2="",0,ROUNDUP(SQRT('Input Sheet'!NJ2),0)) -> 0 | NK2: =IF('Input Sheet'!NK2="",0,ROUNDUP(SQRT('Input Sheet'!NK2),0)) -> 0 | NL2: =IF('Input Sheet'!NL2="",0,ROUNDUP(SQRT('Input Sheet'!NL2),0)) -> 0 | NM2: =IF('Input Sheet'!NM2="",0,ROUNDUP(SQRT('Input Sheet'!NM2),0)) -> 0 | NN2: =IF('Input Sheet'!NN2="",0,ROUNDUP(SQRT('Input Sheet'!NN2),0)) -> 0 | NO2: =IF('Input Sheet'!NO2="",0,ROUNDUP(SQRT('Input Sheet'!NO2),0)) -> 0 | NP2: =IF('Input Sheet'!NP2="",0,ROUNDUP(SQRT('Input Sheet'!NP2),0)) -> 0 | NQ2: =IF('Input Sheet'!NQ2="",0,ROUNDUP(SQRT('Input Sheet'!NQ2),0)) -> 0 | NR2: =IF('Input Sheet'!NR2="",0,ROUNDUP(SQRT('Input Sheet'!NR2),0)) -> 0 | NS2: =IF('Input Sheet'!NS2="",0,ROUNDUP(SQRT('Input Sheet'!NS2),0)) -> 0 | NT2: =IF('Input Sheet'!NT2="",0,ROUNDUP(SQRT('Input Sheet'!NT2),0)) -> 0 | NU2: =IF('Input Sheet'!NU2="",0,ROUNDUP(SQRT('Input Sheet'!NU2),0)) -> 0 | NV2: =IF('Input Sheet'!NV2="",0,ROUNDUP(SQRT('Input Sheet'!NV2),0)) -> 0 | NW2: =IF('Input Sheet'!NW2="",0,ROUNDUP(SQRT('Input Sheet'!NW2),0)) -> 0 | NX2: =IF('Input Sheet'!NX2="",0,ROUNDUP(SQRT('Input Sheet'!NX2),0)) -> 0 | NY2: =IF('Input Sheet'!NY2="",0,ROUNDUP(SQRT('Input Sheet'!NY2),0)) -> 0 | NZ2: =IF('Input Sheet'!NZ2="",0,ROUNDUP(SQRT('Input Sheet'!NZ2),0)) -> 0 | OA2: =IF('Input Sheet'!OA2="",0,ROUNDUP(SQRT('Input Sheet'!OA2),0)) -> 0 | OB2: =IF('Input Sheet'!OB2="",0,ROUNDUP(SQRT('Input Sheet'!OB2),0)) -> 0 | OC2: =IF('Input Sheet'!OC2="",0,ROUNDUP(SQRT('Input Sheet'!OC2),0)) -> 0 | OD2: =IF('Input Sheet'!OD2="",0,ROUNDUP(SQRT('Input Sheet'!OD2),0)) -> 0 | OE2: =IF('Input Sheet'!OE2="",0,ROUNDUP(SQRT('Input Sheet'!OE2),0)) -> 0 | OF2: =IF('Input Sheet'!OF2="",0,ROUNDUP(SQRT('Input Sheet'!OF2),0)) -> 0 | OG2: =IF('Input Sheet'!OG2="",0,ROUNDUP(SQRT('Input Sheet'!OG2),0)) -> 0 | OH2: =IF('Input Sheet'!OH2="",0,ROUNDUP(SQRT('Input Sheet'!OH2),0)) -> 0 | OI2: =IF('Input Sheet'!OI2="",0,ROUNDUP(SQRT('Input Sheet'!OI2),0)) -> 0 | OJ2: =IF('Input Sheet'!OJ2="",0,ROUNDUP(SQRT('Input Sheet'!OJ2),0)) -> 0 | OK2: =IF('Input Sheet'!OK2="",0,ROUNDUP(SQRT('Input Sheet'!OK2),0)) -> 0
A3: Bin Size | B3: =ROUND('Input Sheet'!B5/Sheet2!B2,2) -> 0 | C3: =ROUND('Input Sheet'!C5/Sheet2!C2,2) -> 2.79 | D3: =ROUND('Input Sheet'!D5/Sheet2!D2,2) -> 0.07 | E3: =IF('Input Sheet'!E5="",0,ROUND('Input Sheet'!E5/Sheet2!E2,2)) -> 0.08 | F3: =IF('Input Sheet'!F5="",0,ROUND('Input Sheet'!F5/Sheet2!F2,2)) -> 0.58 | G3: =IF('Input Sheet'!G5="",0,ROUND('Input Sheet'!G5/Sheet2!G2,2)) -> 0.52 | H3: =IF('Input Sheet'!H5="",0,ROUND('Input Sheet'!H5/Sheet2!H2,2)) -> 0.5 | I3: =IF('Input Sheet'!I5="",0,ROUND('Input Sheet'!I5/Sheet2!I2,2)) -> 0 | J3: =IF('Input Sheet'!J5="",0,ROUND('Input Sheet'!J5/Sheet2!J2,2)) -> 0.76 | K3: =IF('Input Sheet'!K5="",0,ROUND('Input Sheet'!K5/Sheet2!K2,2)) -> 0 | L3: =IF('Input Sheet'!L5="",0,ROUND('Input Sheet'!L5/Sheet2!L2,2)) -> 0 | M3: =IF('Input Sheet'!M5="",0,ROUND('Input Sheet'!M5/Sheet2!M2,2)) -> 0.29 | N3: =IF('Input Sheet'!N5="",0,ROUND('Input Sheet'!N5/Sheet2!N2,2)) -> 0 | O3: =IF('Input Sheet'!O5="",0,ROUND('Input Sheet'!O5/Sheet2!O2,2)) -> 0.56 | P3: =IF('Input Sheet'!P5="",0,ROUND('Input Sheet'!P5/Sheet2!P2,2)) -> 0.39 | Q3: =IF('Input Sheet'!Q5="",0,ROUND('Input Sheet'!Q5/Sheet2!Q2,2)) -> 3.04 | R3: =IF('Input Sheet'!R5="",0,ROUND('Input Sheet'!R5/Sheet2!R2,2)) -> 0.49 | S3: =IF('Input Sheet'!S5="",0,ROUND('Input Sheet'!S5/Sheet2!S2,2)) -> 0.28 | T3: =IF('Input Sheet'!T5="",0,ROUND('Input Sheet'!T5/Sheet2!T2,2)) -> 0 | U3: =IF('Input Sheet'!U5="",0,ROUND('Input Sheet'!U5/Sheet2!U2,2)) -> 0 | V3: =IF('Input Sheet'!V5="",0,ROUND('Input Sheet'!V5/Sheet2!V2,2)) -> 0 | W3: =IF('Input Sheet'!W5="",0,ROUND('Input Sheet'!W5/Sheet2!W2,2)) -> 0 | X3: =IF('Input Sheet'!X5="",0,ROUND('Input Sheet'!X5/Sheet2!X2,2)) -> 0 | Y3: =IF('Input Sheet'!Y5="",0,ROUND('Input Sheet'!Y5/Sheet2!Y2,2)) -> 0 | Z3: =IF('Input Sheet'!Z5="",0,ROUND('Input Sheet'!Z5/Sheet2!Z2,2)) -> 0 | AA3: =IF('Input Sheet'!AA5="",0,ROUND('Input Sheet'!AA5/Sheet2!AA2,2)) -> 0.9 | AB3: =IF('Input Sheet'!AB5="",0,ROUND('Input Sheet'!AB5/Sheet2!AB2,2)) -> 0 | AC3: =IF('Input Sheet'!AC5="",0,ROUND('Input Sheet'!AC5/Sheet2!AC2,2)) -> 16.73 | AD3: =IF('Input Sheet'!AD5="",0,ROUND('Input Sheet'!AD5/Sheet2!AD2,2)) -> 0 | AE3: =IF('Input Sheet'!AE5="",0,ROUND('Input Sheet'!AE5/Sheet2!AE2,2)) -> 0 | AF3: =IF('Input Sheet'!AF5="",0,ROUND('Input Sheet'!AF5/Sheet2!AF2,2)) -> 0 | AG3: =IF('Input Sheet'!AG5="",0,ROUND('Input Sheet'!AG5/Sheet2!AG2,2)) -> 0 | AH3: =IF('Input Sheet'!AH5="",0,ROUND('Input Sheet'!AH5/Sheet2!AH2,2)) -> 0 | AI3: =IF('Input Sheet'!AI5="",0,ROUND('Input Sheet'!AI5/Sheet2!AI2,2)) -> 0 | AJ3: =IF('Input Sheet'!AJ5="",0,ROUND('Input Sheet'!AJ5/Sheet2!AJ2,2)) -> 0 | AK3: =IF('Input Sheet'!AK5="",0,ROUND('Input Sheet'!AK5/Sheet2!AK2,2)) -> 0 | AL3: =IF('Input Sheet'!AL5="",0,ROUND('Input Sheet'!AL5/Sheet2!AL2,2)) -> 0 | AM3: =IF('Input Sheet'!AM5="",0,ROUND('Input Sheet'!AM5/Sheet2!AM2,2)) -> 0 | AN3: =IF('Input Sheet'!AN5="",0,ROUND('Input Sheet'!AN5/Sheet2!AN2,2)) -> 0 | AO3: =IF('Input Sheet'!AO5="",0,ROUND('Input Sheet'!AO5/Sheet2!AO2,2)) -> 0 | AP3: =IF('Input Sheet'!AP5="",0,ROUND('Input Sheet'!AP5/Sheet2!AP2,2)) -> 0 | AQ3: =IF('Input Sheet'!AQ5="",0,ROUND('Input Sheet'!AQ5/Sheet2!AQ2,2)) -> 0 | AR3: =IF('Input Sheet'!AR5="",0,ROUND('Input Sheet'!AR5/Sheet2!AR2,2)) -> 0 | AS3: =IF('Input Sheet'!AS5="",0,ROUND('Input Sheet'!AS5/Sheet2!AS2,2)) -> 0 | AT3: =IF('Input Sheet'!AT5="",0,ROUND('Input Sheet'!AT5/Sheet2!AT2,2)) -> 0 | AU3: =IF('Input Sheet'!AU5="",0,ROUND('Input Sheet'!AU5/Sheet2!AU2,2)) -> 0 | AV3: =IF('Input Sheet'!AV5="",0,ROUND('Input Sheet'!AV5/Sheet2!AV2,2)) -> 0 | AW3: =IF('Input Sheet'!AW5="",0,ROUND('Input Sheet'!AW5/Sheet2!AW2,2)) -> 0 | AX3: =IF('Input Sheet'!AX5="",0,ROUND('Input Sheet'!AX5/Sheet2!AX2,2)) -> 0 | AY3: =IF('Input Sheet'!AY5="",0,ROUND('Input Sheet'!AY5/Sheet2!AY2,2)) -> 0 | AZ3: =IF('Input Sheet'!AZ5="",0,ROUND('Input Sheet'!AZ5/Sheet2!AZ2,2)) -> 0 | BA3: =IF('Input Sheet'!BA5="",0,ROUND('Input Sheet'!BA5/Sheet2!BA2,2)) -> 0 | BB3: =IF('Input Sheet'!BB5="",0,ROUND('Input Sheet'!BB5/Sheet2!BB2,2)) -> 0 | BC3: =IF('Input Sheet'!BC5="",0,ROUND('Input Sheet'!BC5/Sheet2!BC2,2)) -> 0 | BD3: =IF('Input Sheet'!BD5="",0,ROUND('Input Sheet'!BD5/Sheet2!BD2,2)) -> 0 | BE3: =IF('Input Sheet'!BE5="",0,ROUND('Input Sheet'!BE5/Sheet2!BE2,2)) -> 0 | BF3: =IF('Input Sheet'!BF5="",0,ROUND('Input Sheet'!BF5/Sheet2!BF2,2)) -> 0 | BG3: =IF('Input Sheet'!BG5="",0,ROUND('Input Sheet'!BG5/Sheet2!BG2,2)) -> 0 | BH3: =IF('Input Sheet'!BH5="",0,ROUND('Input Sheet'!BH5/Sheet2!BH2,2)) -> 0 | BI3: =IF('Input Sheet'!BI5="",0,ROUND('Input Sheet'!BI5/Sheet2!BI2,2)) -> 0 | BJ3: =IF('Input Sheet'!BJ5="",0,ROUND('Input Sheet'!BJ5/Sheet2!BJ2,2)) -> 0 | BK3: =IF('Input Sheet'!BK5="",0,ROUND('Input Sheet'!BK5/Sheet2!BK2,2)) -> 0 | BL3: =IF('Input Sheet'!BL5="",0,ROUND('Input Sheet'!BL5/Sheet2!BL2,2)) -> 0 | BM3: =IF('Input Sheet'!BM5="",0,ROUND('Input Sheet'!BM5/Sheet2!BM2,2)) -> 0 | BN3: =IF('Input Sheet'!BN5="",0,ROUND('Input Sheet'!BN5/Sheet2!BN2,2)) -> 0 | BO3: =IF('Input Sheet'!BO5="",0,ROUND('Input Sheet'!BO5/Sheet2!BO2,2)) -> 0 | BP3: =IF('Input Sheet'!BP5="",0,ROUND('Input Sheet'!BP5/Sheet2!BP2,2)) -> 0 | BQ3: =IF('Input Sheet'!BQ5="",0,ROUND('Input Sheet'!BQ5/Sheet2!BQ2,2)) -> 0 | BR3: =IF('Input Sheet'!BR5="",0,ROUND('Input Sheet'!BR5/Sheet2!BR2,2)) -> 0 | BS3: =IF('Input Sheet'!BS5="",0,ROUND('Input Sheet'!BS5/Sheet2!BS2,2)) -> 0 | BT3: =IF('Input Sheet'!BT5="",0,ROUND('Input Sheet'!BT5/Sheet2!BT2,2)) -> 0 | BU3: =IF('Input Sheet'!BU5="",0,ROUND('Input Sheet'!BU5/Sheet2!BU2,2)) -> 0 | BV3: =IF('Input Sheet'!BV5="",0,ROUND('Input Sheet'!BV5/Sheet2!BV2,2)) -> 0 | BW3: =IF('Input Sheet'!BW5="",0,ROUND('Input Sheet'!BW5/Sheet2!BW2,2)) -> 0 | BX3: =IF('Input Sheet'!BX5="",0,ROUND('Input Sheet'!BX5/Sheet2!BX2,2)) -> 0 | BY3: =IF('Input Sheet'!BY5="",0,ROUND('Input Sheet'!BY5/Sheet2!BY2,2)) -> 0 | BZ3: =IF('Input Sheet'!BZ5="",0,ROUND('Input Sheet'!BZ5/Sheet2!BZ2,2)) -> 0 | CA3: =IF('Input Sheet'!CA5="",0,ROUND('Input Sheet'!CA5/Sheet2!CA2,2)) -> 0 | CB3: =IF('Input Sheet'!CB5="",0,ROUND('Input Sheet'!CB5/Sheet2!CB2,2)) -> 0 | CC3: =IF('Input Sheet'!CC5="",0,ROUND('Input Sheet'!CC5/Sheet2!CC2,2)) -> 0 | CD3: =IF('Input Sheet'!CD5="",0,ROUND('Input Sheet'!CD5/Sheet2!CD2,2)) -> 0 | CE3: =IF('Input Sheet'!CE5="",0,ROUND('Input Sheet'!CE5/Sheet2!CE2,2)) -> 0 | CF3: =IF('Input Sheet'!CF5="",0,ROUND('Input Sheet'!CF5/Sheet2!CF2,2)) -> 0 | CG3: =IF('Input Sheet'!CG5="",0,ROUND('Input Sheet'!CG5/Sheet2!CG2,2)) -> 0 | CH3: =IF('Input Sheet'!CH5="",0,ROUND('Input Sheet'!CH5/Sheet2!CH2,2)) -> 0 | CI3: =IF('Input Sheet'!CI5="",0,ROUND('Input Sheet'!CI5/Sheet2!CI2,2)) -> 0 | CJ3: =IF('Input Sheet'!CJ5="",0,ROUND('Input Sheet'!CJ5/Sheet2!CJ2,2)) -> 0 | CK3: =IF('Input Sheet'!CK5="",0,ROUND('Input Sheet'!CK5/Sheet2!CK2,2)) -> 0 | CL3: =IF('Input Sheet'!CL5="",0,ROUND('Input Sheet'!CL5/Sheet2!CL2,2)) -> 0 | CM3: =IF('Input Sheet'!CM5="",0,ROUND('Input Sheet'!CM5/Sheet2!CM2,2)) -> 0 | CN3: =IF('Input Sheet'!CN5="",0,ROUND('Input Sheet'!CN5/Sheet2!CN2,2)) -> 0 | CO3: =IF('Input Sheet'!CO5="",0,ROUND('Input Sheet'!CO5/Sheet2!CO2,2)) -> 0 | CP3: =IF('Input Sheet'!CP5="",0,ROUND('Input Sheet'!CP5/Sheet2!CP2,2)) -> 0 | CQ3: =IF('Input Sheet'!CQ5="",0,ROUND('Input Sheet'!CQ5/Sheet2!CQ2,2)) -> 0 | CR3: =IF('Input Sheet'!CR5="",0,ROUND('Input Sheet'!CR5/Sheet2!CR2,2)) -> 0 | CS3: =IF('Input Sheet'!CS5="",0,ROUND('Input Sheet'!CS5/Sheet2!CS2,2)) -> 0 | CT3: =IF('Input Sheet'!CT5="",0,ROUND('Input Sheet'!CT5/Sheet2!CT2,2)) -> 0 | CU3: =IF('Input Sheet'!CU5="",0,ROUND('Input Sheet'!CU5/Sheet2!CU2,2)) -> 0 | CV3: =IF('Input Sheet'!CV5="",0,ROUND('Input Sheet'!CV5/Sheet2!CV2,2)) -> 0 | CW3: =IF('Input Sheet'!CW5="",0,ROUND('Input Sheet'!CW5/Sheet2!CW2,2)) -> 0 | CX3: =IF('Input Sheet'!CX5="",0,ROUND('Input Sheet'!CX5/Sheet2!CX2,2)) -> 0 | CY3: =IF('Input Sheet'!CY5="",0,ROUND('Input Sheet'!CY5/Sheet2!CY2,2)) -> 0 | CZ3: =IF('Input Sheet'!CZ5="",0,ROUND('Input Sheet'!CZ5/Sheet2!CZ2,2)) -> 0 | DA3: =IF('Input Sheet'!DA5="",0,ROUND('Input Sheet'!DA5/Sheet2!DA2,2)) -> 0 | DB3: =IF('Input Sheet'!DB5="",0,ROUND('Input Sheet'!DB5/Sheet2!DB2,2)) -> 0 | DC3: =IF('Input Sheet'!DC5="",0,ROUND('Input Sheet'!DC5/Sheet2!DC2,2)) -> 0 | DD3: =IF('Input Sheet'!DD5="",0,ROUND('Input Sheet'!DD5/Sheet2!DD2,2)) -> 0 | DE3: =IF('Input Sheet'!DE5="",0,ROUND('Input Sheet'!DE5/Sheet2!DE2,2)) -> 0 | DF3: =IF('Input Sheet'!DF5="",0,ROUND('Input Sheet'!DF5/Sheet2!DF2,2)) -> 0 | DG3: =IF('Input Sheet'!DG5="",0,ROUND('Input Sheet'!DG5/Sheet2!DG2,2)) -> 0 | DH3: =IF('Input Sheet'!DH5="",0,ROUND('Input Sheet'!DH5/Sheet2!DH2,2)) -> 0 | DI3: =IF('Input Sheet'!DI5="",0,ROUND('Input Sheet'!DI5/Sheet2!DI2,2)) -> 0 | DJ3: =IF('Input Sheet'!DJ5="",0,ROUND('Input Sheet'!DJ5/Sheet2!DJ2,2)) -> 0 | DK3: =IF('Input Sheet'!DK5="",0,ROUND('Input Sheet'!DK5/Sheet2!DK2,2)) -> 0 | DL3: =IF('Input Sheet'!DL5="",0,ROUND('Input Sheet'!DL5/Sheet2!DL2,2)) -> 0 | DM3: =IF('Input Sheet'!DM5="",0,ROUND('Input Sheet'!DM5/Sheet2!DM2,2)) -> 0 | DN3: =IF('Input Sheet'!DN5="",0,ROUND('Input Sheet'!DN5/Sheet2!DN2,2)) -> 0 | DO3: =IF('Input Sheet'!DO5="",0,ROUND('Input Sheet'!DO5/Sheet2!DO2,2)) -> 0 | DP3: =IF('Input Sheet'!DP5="",0,ROUND('Input Sheet'!DP5/Sheet2!DP2,2)) -> 0 | DQ3: =IF('Input Sheet'!DQ5="",0,ROUND('Input Sheet'!DQ5/Sheet2!DQ2,2)) -> 0 | DR3: =IF('Input Sheet'!DR5="",0,ROUND('Input Sheet'!DR5/Sheet2!DR2,2)) -> 0 | DS3: =IF('Input Sheet'!DS5="",0,ROUND('Input Sheet'!DS5/Sheet2!DS2,2)) -> 0 | DT3: =IF('Input Sheet'!DT5="",0,ROUND('Input Sheet'!DT5/Sheet2!DT2,2)) -> 0 | DU3: =IF('Input Sheet'!DU5="",0,ROUND('Input Sheet'!DU5/Sheet2!DU2,2)) -> 0 | DV3: =IF('Input Sheet'!DV5="",0,ROUND('Input Sheet'!DV5/Sheet2!DV2,2)) -> 0 | DW3: =IF('Input Sheet'!DW5="",0,ROUND('Input Sheet'!DW5/Sheet2!DW2,2)) -> 0 | DX3: =IF('Input Sheet'!DX5="",0,ROUND('Input Sheet'!DX5/Sheet2!DX2,2)) -> 0 | DY3: =IF('Input Sheet'!DY5="",0,ROUND('Input Sheet'!DY5/Sheet2!DY2,2)) -> 0 | DZ3: =IF('Input Sheet'!DZ5="",0,ROUND('Input Sheet'!DZ5/Sheet2!DZ2,2)) -> 0 | EA3: =IF('Input Sheet'!EA5="",0,ROUND('Input Sheet'!EA5/Sheet2!EA2,2)) -> 0 | EB3: =IF('Input Sheet'!EB5="",0,ROUND('Input Sheet'!EB5/Sheet2!EB2,2)) -> 0 | EC3: =IF('Input Sheet'!EC5="",0,ROUND('Input Sheet'!EC5/Sheet2!EC2,2)) -> 0 | ED3: =IF('Input Sheet'!ED5="",0,ROUND('Input Sheet'!ED5/Sheet2!ED2,2)) -> 0 | EE3: =IF('Input Sheet'!EE5="",0,ROUND('Input Sheet'!EE5/Sheet2!EE2,2)) -> 0 | EF3: =IF('Input Sheet'!EF5="",0,ROUND('Input Sheet'!EF5/Sheet2!EF2,2)) -> 0 | EG3: =IF('Input Sheet'!EG5="",0,ROUND('Input Sheet'!EG5/Sheet2!EG2,2)) -> 0 | EH3: =IF('Input Sheet'!EH5="",0,ROUND('Input Sheet'!EH5/Sheet2!EH2,2)) -> 0 | EI3: =IF('Input Sheet'!EI5="",0,ROUND('Input Sheet'!EI5/Sheet2!EI2,2)) -> 0 | EJ3: =IF('Input Sheet'!EJ5="",0,ROUND('Input Sheet'!EJ5/Sheet2!EJ2,2)) -> 0 | EK3: =IF('Input Sheet'!EK5="",0,ROUND('Input Sheet'!EK5/Sheet2!EK2,2)) -> 0 | EL3: =IF('Input Sheet'!EL5="",0,ROUND('Input Sheet'!EL5/Sheet2!EL2,2)) -> 0 | EM3: =IF('Input Sheet'!EM5="",0,ROUND('Input Sheet'!EM5/Sheet2!EM2,2)) -> 0 | EN3: =IF('Input Sheet'!EN5="",0,ROUND('Input Sheet'!EN5/Sheet2!EN2,2)) -> 0 | EO3: =IF('Input Sheet'!EO5="",0,ROUND('Input Sheet'!EO5/Sheet2!EO2,2)) -> 0 | EP3: =IF('Input Sheet'!EP5="",0,ROUND('Input Sheet'!EP5/Sheet2!EP2,2)) -> 0 | EQ3: =IF('Input Sheet'!EQ5="",0,ROUND('Input Sheet'!EQ5/Sheet2!EQ2,2)) -> 0 | ER3: =IF('Input Sheet'!ER5="",0,ROUND('Input Sheet'!ER5/Sheet2!ER2,2)) -> 0 | ES3: =IF('Input Sheet'!ES5="",0,ROUND('Input Sheet'!ES5/Sheet2!ES2,2)) -> 0 | ET3: =IF('Input Sheet'!ET5="",0,ROUND('Input Sheet'!ET5/Sheet2!ET2,2)) -> 0 | EU3: =IF('Input Sheet'!EU5="",0,ROUND('Input Sheet'!EU5/Sheet2!EU2,2)) -> 0 | EV3: =IF('Input Sheet'!EV5="",0,ROUND('Input Sheet'!EV5/Sheet2!EV2,2)) -> 0 | EW3: =IF('Input Sheet'!EW5="",0,ROUND('Input Sheet'!EW5/Sheet2!EW2,2)) -> 0 | EX3: =IF('Input Sheet'!EX5="",0,ROUND('Input Sheet'!EX5/Sheet2!EX2,2)) -> 0 | EY3: =IF('Input Sheet'!EY5="",0,ROUND('Input Sheet'!EY5/Sheet2!EY2,2)) -> 0 | EZ3: =IF('Input Sheet'!EZ5="",0,ROUND('Input Sheet'!EZ5/Sheet2!EZ2,2)) -> 0 | FA3: =IF('Input Sheet'!FA5="",0,ROUND('Input Sheet'!FA5/Sheet2!FA2,2)) -> 0 | FB3: =IF('Input Sheet'!FB5="",0,ROUND('Input Sheet'!FB5/Sheet2!FB2,2)) -> 0 | FC3: =IF('Input Sheet'!FC5="",0,ROUND('Input Sheet'!FC5/Sheet2!FC2,2)) -> 0 | FD3: =IF('Input Sheet'!FD5="",0,ROUND('Input Sheet'!FD5/Sheet2!FD2,2)) -> 0 | FE3: =IF('Input Sheet'!FE5="",0,ROUND('Input Sheet'!FE5/Sheet2!FE2,2)) -> 0 | FF3: =IF('Input Sheet'!FF5="",0,ROUND('Input Sheet'!FF5/Sheet2!FF2,2)) -> 0 | FG3: =IF('Input Sheet'!FG5="",0,ROUND('Input Sheet'!FG5/Sheet2!FG2,2)) -> 0 | FH3: =IF('Input Sheet'!FH5="",0,ROUND('Input Sheet'!FH5/Sheet2!FH2,2)) -> 0 | FI3: =IF('Input Sheet'!FI5="",0,ROUND('Input Sheet'!FI5/Sheet2!FI2,2)) -> 0 | FJ3: =IF('Input Sheet'!FJ5="",0,ROUND('Input Sheet'!FJ5/Sheet2!FJ2,2)) -> 0 | FK3: =IF('Input Sheet'!FK5="",0,ROUND('Input Sheet'!FK5/Sheet2!FK2,2)) -> 0 | FL3: =IF('Input Sheet'!FL5="",0,ROUND('Input Sheet'!FL5/Sheet2!FL2,2)) -> 0 | FM3: =IF('Input Sheet'!FM5="",0,ROUND('Input Sheet'!FM5/Sheet2!FM2,2)) -> 0 | FN3: =IF('Input Sheet'!FN5="",0,ROUND('Input Sheet'!FN5/Sheet2!FN2,2)) -> 0 | FO3: =IF('Input Sheet'!FO5="",0,ROUND('Input Sheet'!FO5/Sheet2!FO2,2)) -> 0 | FP3: =IF('Input Sheet'!FP5="",0,ROUND('Input Sheet'!FP5/Sheet2!FP2,2)) -> 0 | FQ3: =IF('Input Sheet'!FQ5="",0,ROUND('Input Sheet'!FQ5/Sheet2!FQ2,2)) -> 0 | FR3: =IF('Input Sheet'!FR5="",0,ROUND('Input Sheet'!FR5/Sheet2!FR2,2)) -> 0 | FS3: =IF('Input Sheet'!FS5="",0,ROUND('Input Sheet'!FS5/Sheet2!FS2,2)) -> 0 | FT3: =IF('Input Sheet'!FT5="",0,ROUND('Input Sheet'!FT5/Sheet2!FT2,2)) -> 0 | FU3: =IF('Input Sheet'!FU5="",0,ROUND('Input Sheet'!FU5/Sheet2!FU2,2)) -> 0 | FV3: =IF('Input Sheet'!FV5="",0,ROUND('Input Sheet'!FV5/Sheet2!FV2,2)) -> 0 | FW3: =IF('Input Sheet'!FW5="",0,ROUND('Input Sheet'!FW5/Sheet2!FW2,2)) -> 0 | FX3: =IF('Input Sheet'!FX5="",0,ROUND('Input Sheet'!FX5/Sheet2!FX2,2)) -> 0 | FY3: =IF('Input Sheet'!FY5="",0,ROUND('Input Sheet'!FY5/Sheet2!FY2,2)) -> 0 | FZ3: =IF('Input Sheet'!FZ5="",0,ROUND('Input Sheet'!FZ5/Sheet2!FZ2,2)) -> 0 | GA3: =IF('Input Sheet'!GA5="",0,ROUND('Input Sheet'!GA5/Sheet2!GA2,2)) -> 0 | GB3: =IF('Input Sheet'!GB5="",0,ROUND('Input Sheet'!GB5/Sheet2!GB2,2)) -> 0 | GC3: =IF('Input Sheet'!GC5="",0,ROUND('Input Sheet'!GC5/Sheet2!GC2,2)) -> 0 | GD3: =IF('Input Sheet'!GD5="",0,ROUND('Input Sheet'!GD5/Sheet2!GD2,2)) -> 0 | GE3: =IF('Input Sheet'!GE5="",0,ROUND('Input Sheet'!GE5/Sheet2!GE2,2)) -> 0 | GF3: =IF('Input Sheet'!GF5="",0,ROUND('Input Sheet'!GF5/Sheet2!GF2,2)) -> 0 | GG3: =IF('Input Sheet'!GG5="",0,ROUND('Input Sheet'!GG5/Sheet2!GG2,2)) -> 0 | GH3: =IF('Input Sheet'!GH5="",0,ROUND('Input Sheet'!GH5/Sheet2!GH2,2)) -> 0 | GI3: =IF('Input Sheet'!GI5="",0,ROUND('Input Sheet'!GI5/Sheet2!GI2,2)) -> 0 | GJ3: =IF('Input Sheet'!GJ5="",0,ROUND('Input Sheet'!GJ5/Sheet2!GJ2,2)) -> 0 | GK3: =IF('Input Sheet'!GK5="",0,ROUND('Input Sheet'!GK5/Sheet2!GK2,2)) -> 0 | GL3: =IF('Input Sheet'!GL5="",0,ROUND('Input Sheet'!GL5/Sheet2!GL2,2)) -> 0 | GM3: =IF('Input Sheet'!GM5="",0,ROUND('Input Sheet'!GM5/Sheet2!GM2,2)) -> 0 | GN3: =IF('Input Sheet'!GN5="",0,ROUND('Input Sheet'!GN5/Sheet2!GN2,2)) -> 0 | GO3: =IF('Input Sheet'!GO5="",0,ROUND('Input Sheet'!GO5/Sheet2!GO2,2)) -> 0 | GP3: =IF('Input Sheet'!GP5="",0,ROUND('Input Sheet'!GP5/Sheet2!GP2,2)) -> 0 | GQ3: =IF('Input Sheet'!GQ5="",0,ROUND('Input Sheet'!GQ5/Sheet2!GQ2,2)) -> 0 | GR3: =IF('Input Sheet'!GR5="",0,ROUND('Input Sheet'!GR5/Sheet2!GR2,2)) -> 0 | GS3: =IF('Input Sheet'!GS5="",0,ROUND('Input Sheet'!GS5/Sheet2!GS2,2)) -> 0 | GT3: =IF('Input Sheet'!GT5="",0,ROUND('Input Sheet'!GT5/Sheet2!GT2,2)) -> 0 | GU3: =IF('Input Sheet'!GU5="",0,ROUND('Input Sheet'!GU5/Sheet2!GU2,2)) -> 0 | GV3: =IF('Input Sheet'!GV5="",0,ROUND('Input Sheet'!GV5/Sheet2!GV2,2)) -> 0 | GW3: =IF('Input Sheet'!GW5="",0,ROUND('Input Sheet'!GW5/Sheet2!GW2,2)) -> 0 | GX3: =IF('Input Sheet'!GX5="",0,ROUND('Input Sheet'!GX5/Sheet2!GX2,2)) -> 0 | GY3: =IF('Input Sheet'!GY5="",0,ROUND('Input Sheet'!GY5/Sheet2!GY2,2)) -> 0 | GZ3: =IF('Input Sheet'!GZ5="",0,ROUND('Input Sheet'!GZ5/Sheet2!GZ2,2)) -> 0 | HA3: =IF('Input Sheet'!HA5="",0,ROUND('Input Sheet'!HA5/Sheet2!HA2,2)) -> 0 | HB3: =IF('Input Sheet'!HB5="",0,ROUND('Input Sheet'!HB5/Sheet2!HB2,2)) -> 0 | HC3: =IF('Input Sheet'!HC5="",0,ROUND('Input Sheet'!HC5/Sheet2!HC2,2)) -> 0 | HD3: =IF('Input Sheet'!HD5="",0,ROUND('Input Sheet'!HD5/Sheet2!HD2,2)) -> 0 | HE3: =IF('Input Sheet'!HE5="",0,ROUND('Input Sheet'!HE5/Sheet2!HE2,2)) -> 0 | HF3: =IF('Input Sheet'!HF5="",0,ROUND('Input Sheet'!HF5/Sheet2!HF2,2)) -> 0 | HG3: =IF('Input Sheet'!HG5="",0,ROUND('Input Sheet'!HG5/Sheet2!HG2,2)) -> 0 | HH3: =IF('Input Sheet'!HH5="",0,ROUND('Input Sheet'!HH5/Sheet2!HH2,2)) -> 0 | HI3: =IF('Input Sheet'!HI5="",0,ROUND('Input Sheet'!HI5/Sheet2!HI2,2)) -> 0 | HJ3: =IF('Input Sheet'!HJ5="",0,ROUND('Input Sheet'!HJ5/Sheet2!HJ2,2)) -> 0 | HK3: =IF('Input Sheet'!HK5="",0,ROUND('Input Sheet'!HK5/Sheet2!HK2,2)) -> 0 | HL3: =IF('Input Sheet'!HL5="",0,ROUND('Input Sheet'!HL5/Sheet2!HL2,2)) -> 0 | HM3: =IF('Input Sheet'!HM5="",0,ROUND('Input Sheet'!HM5/Sheet2!HM2,2)) -> 0 | HN3: =IF('Input Sheet'!HN5="",0,ROUND('Input Sheet'!HN5/Sheet2!HN2,2)) -> 0 | HO3: =IF('Input Sheet'!HO5="",0,ROUND('Input Sheet'!HO5/Sheet2!HO2,2)) -> 0 | HP3: =IF('Input Sheet'!HP5="",0,ROUND('Input Sheet'!HP5/Sheet2!HP2,2)) -> 0 | HQ3: =IF('Input Sheet'!HQ5="",0,ROUND('Input Sheet'!HQ5/Sheet2!HQ2,2)) -> 0 | HR3: =IF('Input Sheet'!HR5="",0,ROUND('Input Sheet'!HR5/Sheet2!HR2,2)) -> 0 | HS3: =IF('Input Sheet'!HS5="",0,ROUND('Input Sheet'!HS5/Sheet2!HS2,2)) -> 0 | HT3: =IF('Input Sheet'!HT5="",0,ROUND('Input Sheet'!HT5/Sheet2!HT2,2)) -> 0 | HU3: =IF('Input Sheet'!HU5="",0,ROUND('Input Sheet'!HU5/Sheet2!HU2,2)) -> 0 | HV3: =IF('Input Sheet'!HV5="",0,ROUND('Input Sheet'!HV5/Sheet2!HV2,2)) -> 0 | HW3: =IF('Input Sheet'!HW5="",0,ROUND('Input Sheet'!HW5/Sheet2!HW2,2)) -> 0 | HX3: =IF('Input Sheet'!HX5="",0,ROUND('Input Sheet'!HX5/Sheet2!HX2,2)) -> 0 | HY3: =IF('Input Sheet'!HY5="",0,ROUND('Input Sheet'!HY5/Sheet2!HY2,2)) -> 0 | HZ3: =IF('Input Sheet'!HZ5="",0,ROUND('Input Sheet'!HZ5/Sheet2!HZ2,2)) -> 0 | IA3: =IF('Input Sheet'!IA5="",0,ROUND('Input Sheet'!IA5/Sheet2!IA2,2)) -> 0 | IB3: =IF('Input Sheet'!IB5="",0,ROUND('Input Sheet'!IB5/Sheet2!IB2,2)) -> 0 | IC3: =IF('Input Sheet'!IC5="",0,ROUND('Input Sheet'!IC5/Sheet2!IC2,2)) -> 0 | ID3: =IF('Input Sheet'!ID5="",0,ROUND('Input Sheet'!ID5/Sheet2!ID2,2)) -> 0 | IE3: =IF('Input Sheet'!IE5="",0,ROUND('Input Sheet'!IE5/Sheet2!IE2,2)) -> 0 | IF3: =IF('Input Sheet'!IF5="",0,ROUND('Input Sheet'!IF5/Sheet2!IF2,2)) -> 0 | IG3: =IF('Input Sheet'!IG5="",0,ROUND('Input Sheet'!IG5/Sheet2!IG2,2)) -> 0 | IH3: =IF('Input Sheet'!IH5="",0,ROUND('Input Sheet'!IH5/Sheet2!IH2,2)) -> 0 | II3: =IF('Input Sheet'!II5="",0,ROUND('Input Sheet'!II5/Sheet2!II2,2)) -> 0 | IJ3: =IF('Input Sheet'!IJ5="",0,ROUND('Input Sheet'!IJ5/Sheet2!IJ2,2)) -> 0 | IK3: =IF('Input Sheet'!IK5="",0,ROUND('Input Sheet'!IK5/Sheet2!IK2,2)) -> 0 | IL3: =IF('Input Sheet'!IL5="",0,ROUND('Input Sheet'!IL5/Sheet2!IL2,2)) -> 0 | IM3: =IF('Input Sheet'!IM5="",0,ROUND('Input Sheet'!IM5/Sheet2!IM2,2)) -> 0 | IN3: =IF('Input Sheet'!IN5="",0,ROUND('Input Sheet'!IN5/Sheet2!IN2,2)) -> 0 | IO3: =IF('Input Sheet'!IO5="",0,ROUND('Input Sheet'!IO5/Sheet2!IO2,2)) -> 0 | IP3: =IF('Input Sheet'!IP5="",0,ROUND('Input Sheet'!IP5/Sheet2!IP2,2)) -> 0 | IQ3: =IF('Input Sheet'!IQ5="",0,ROUND('Input Sheet'!IQ5/Sheet2!IQ2,2)) -> 0 | IR3: =IF('Input Sheet'!IR5="",0,ROUND('Input Sheet'!IR5/Sheet2!IR2,2)) -> 0 | IS3: =IF('Input Sheet'!IS5="",0,ROUND('Input Sheet'!IS5/Sheet2!IS2,2)) -> 0 | IT3: =IF('Input Sheet'!IT5="",0,ROUND('Input Sheet'!IT5/Sheet2!IT2,2)) -> 0 | IU3: =IF('Input Sheet'!IU5="",0,ROUND('Input Sheet'!IU5/Sheet2!IU2,2)) -> 0 | IV3: =IF('Input Sheet'!IV5="",0,ROUND('Input Sheet'!IV5/Sheet2!IV2,2)) -> 0 | IW3: =IF('Input Sheet'!IW5="",0,ROUND('Input Sheet'!IW5/Sheet2!IW2,2)) -> 0 | IX3: =IF('Input Sheet'!IX5="",0,ROUND('Input Sheet'!IX5/Sheet2!IX2,2)) -> 0 | IY3: =IF('Input Sheet'!IY5="",0,ROUND('Input Sheet'!IY5/Sheet2!IY2,2)) -> 0 | IZ3: =IF('Input Sheet'!IZ5="",0,ROUND('Input Sheet'!IZ5/Sheet2!IZ2,2)) -> 0 | JA3: =IF('Input Sheet'!JA5="",0,ROUND('Input Sheet'!JA5/Sheet2!JA2,2)) -> 0 | JB3: =IF('Input Sheet'!JB5="",0,ROUND('Input Sheet'!JB5/Sheet2!JB2,2)) -> 0 | JC3: =IF('Input Sheet'!JC5="",0,ROUND('Input Sheet'!JC5/Sheet2!JC2,2)) -> 0 | JD3: =IF('Input Sheet'!JD5="",0,ROUND('Input Sheet'!JD5/Sheet2!JD2,2)) -> 0 | JE3: =IF('Input Sheet'!JE5="",0,ROUND('Input Sheet'!JE5/Sheet2!JE2,2)) -> 0 | JF3: =IF('Input Sheet'!JF5="",0,ROUND('Input Sheet'!JF5/Sheet2!JF2,2)) -> 0 | JG3: =IF('Input Sheet'!JG5="",0,ROUND('Input Sheet'!JG5/Sheet2!JG2,2)) -> 0 | JH3: =IF('Input Sheet'!JH5="",0,ROUND('Input Sheet'!JH5/Sheet2!JH2,2)) -> 0 | JI3: =IF('Input Sheet'!JI5="",0,ROUND('Input Sheet'!JI5/Sheet2!JI2,2)) -> 0 | JJ3: =IF('Input Sheet'!JJ5="",0,ROUND('Input Sheet'!JJ5/Sheet2!JJ2,2)) -> 0 | JK3: =IF('Input Sheet'!JK5="",0,ROUND('Input Sheet'!JK5/Sheet2!JK2,2)) -> 0 | JL3: =IF('Input Sheet'!JL5="",0,ROUND('Input Sheet'!JL5/Sheet2!JL2,2)) -> 0 | JM3: =IF('Input Sheet'!JM5="",0,ROUND('Input Sheet'!JM5/Sheet2!JM2,2)) -> 0 | JN3: =IF('Input Sheet'!JN5="",0,ROUND('Input Sheet'!JN5/Sheet2!JN2,2)) -> 0 | JO3: =IF('Input Sheet'!JO5="",0,ROUND('Input Sheet'!JO5/Sheet2!JO2,2)) -> 0 | JP3: =IF('Input Sheet'!JP5="",0,ROUND('Input Sheet'!JP5/Sheet2!JP2,2)) -> 0 | JQ3: =IF('Input Sheet'!JQ5="",0,ROUND('Input Sheet'!JQ5/Sheet2!JQ2,2)) -> 0 | JR3: =IF('Input Sheet'!JR5="",0,ROUND('Input Sheet'!JR5/Sheet2!JR2,2)) -> 0 | JS3: =IF('Input Sheet'!JS5="",0,ROUND('Input Sheet'!JS5/Sheet2!JS2,2)) -> 0 | JT3: =IF('Input Sheet'!JT5="",0,ROUND('Input Sheet'!JT5/Sheet2!JT2,2)) -> 0 | JU3: =IF('Input Sheet'!JU5="",0,ROUND('Input Sheet'!JU5/Sheet2!JU2,2)) -> 0 | JV3: =IF('Input Sheet'!JV5="",0,ROUND('Input Sheet'!JV5/Sheet2!JV2,2)) -> 0 | JW3: =IF('Input Sheet'!JW5="",0,ROUND('Input Sheet'!JW5/Sheet2!JW2,2)) -> 0 | JX3: =IF('Input Sheet'!JX5="",0,ROUND('Input Sheet'!JX5/Sheet2!JX2,2)) -> 0 | JY3: =IF('Input Sheet'!JY5="",0,ROUND('Input Sheet'!JY5/Sheet2!JY2,2)) -> 0 | JZ3: =IF('Input Sheet'!JZ5="",0,ROUND('Input Sheet'!JZ5/Sheet2!JZ2,2)) -> 0 | KA3: =IF('Input Sheet'!KA5="",0,ROUND('Input Sheet'!KA5/Sheet2!KA2,2)) -> 0 | KB3: =IF('Input Sheet'!KB5="",0,ROUND('Input Sheet'!KB5/Sheet2!KB2,2)) -> 0 | KC3: =IF('Input Sheet'!KC5="",0,ROUND('Input Sheet'!KC5/Sheet2!KC2,2)) -> 0 | KD3: =IF('Input Sheet'!KD5="",0,ROUND('Input Sheet'!KD5/Sheet2!KD2,2)) -> 0 | KE3: =IF('Input Sheet'!KE5="",0,ROUND('Input Sheet'!KE5/Sheet2!KE2,2)) -> 0 | KF3: =IF('Input Sheet'!KF5="",0,ROUND('Input Sheet'!KF5/Sheet2!KF2,2)) -> 0 | KG3: =IF('Input Sheet'!KG5="",0,ROUND('Input Sheet'!KG5/Sheet2!KG2,2)) -> 0 | KH3: =IF('Input Sheet'!KH5="",0,ROUND('Input Sheet'!KH5/Sheet2!KH2,2)) -> 0 | KI3: =IF('Input Sheet'!KI5="",0,ROUND('Input Sheet'!KI5/Sheet2!KI2,2)) -> 0 | KJ3: =IF('Input Sheet'!KJ5="",0,ROUND('Input Sheet'!KJ5/Sheet2!KJ2,2)) -> 0 | KK3: =IF('Input Sheet'!KK5="",0,ROUND('Input Sheet'!KK5/Sheet2!KK2,2)) -> 0 | KL3: =IF('Input Sheet'!KL5="",0,ROUND('Input Sheet'!KL5/Sheet2!KL2,2)) -> 0 | KM3: =IF('Input Sheet'!KM5="",0,ROUND('Input Sheet'!KM5/Sheet2!KM2,2)) -> 0 | KN3: =IF('Input Sheet'!KN5="",0,ROUND('Input Sheet'!KN5/Sheet2!KN2,2)) -> 0 | KO3: =IF('Input Sheet'!KO5="",0,ROUND('Input Sheet'!KO5/Sheet2!KO2,2)) -> 0 | KP3: =IF('Input Sheet'!KP5="",0,ROUND('Input Sheet'!KP5/Sheet2!KP2,2)) -> 0 | KQ3: =IF('Input Sheet'!KQ5="",0,ROUND('Input Sheet'!KQ5/Sheet2!KQ2,2)) -> 0 | KR3: =IF('Input Sheet'!KR5="",0,ROUND('Input Sheet'!KR5/Sheet2!KR2,2)) -> 0 | KS3: =IF('Input Sheet'!KS5="",0,ROUND('Input Sheet'!KS5/Sheet2!KS2,2)) -> 0 | KT3: =IF('Input Sheet'!KT5="",0,ROUND('Input Sheet'!KT5/Sheet2!KT2,2)) -> 0 | KU3: =IF('Input Sheet'!KU5="",0,ROUND('Input Sheet'!KU5/Sheet2!KU2,2)) -> 0 | KV3: =IF('Input Sheet'!KV5="",0,ROUND('Input Sheet'!KV5/Sheet2!KV2,2)) -> 0 | KW3: =IF('Input Sheet'!KW5="",0,ROUND('Input Sheet'!KW5/Sheet2!KW2,2)) -> 0 | KX3: =IF('Input Sheet'!KX5="",0,ROUND('Input Sheet'!KX5/Sheet2!KX2,2)) -> 0 | KY3: =IF('Input Sheet'!KY5="",0,ROUND('Input Sheet'!KY5/Sheet2!KY2,2)) -> 0 | KZ3: =IF('Input Sheet'!KZ5="",0,ROUND('Input Sheet'!KZ5/Sheet2!KZ2,2)) -> 0 | LA3: =IF('Input Sheet'!LA5="",0,ROUND('Input Sheet'!LA5/Sheet2!LA2,2)) -> 0 | LB3: =IF('Input Sheet'!LB5="",0,ROUND('Input Sheet'!LB5/Sheet2!LB2,2)) -> 0 | LC3: =IF('Input Sheet'!LC5="",0,ROUND('Input Sheet'!LC5/Sheet2!LC2,2)) -> 0 | LD3: =IF('Input Sheet'!LD5="",0,ROUND('Input Sheet'!LD5/Sheet2!LD2,2)) -> 0 | LE3: =IF('Input Sheet'!LE5="",0,ROUND('Input Sheet'!LE5/Sheet2!LE2,2)) -> 0 | LF3: =IF('Input Sheet'!LF5="",0,ROUND('Input Sheet'!LF5/Sheet2!LF2,2)) -> 0 | LG3: =IF('Input Sheet'!LG5="",0,ROUND('Input Sheet'!LG5/Sheet2!LG2,2)) -> 0 | LH3: =IF('Input Sheet'!LH5="",0,ROUND('Input Sheet'!LH5/Sheet2!LH2,2)) -> 0 | LI3: =IF('Input Sheet'!LI5="",0,ROUND('Input Sheet'!LI5/Sheet2!LI2,2)) -> 0 | LJ3: =IF('Input Sheet'!LJ5="",0,ROUND('Input Sheet'!LJ5/Sheet2!LJ2,2)) -> 0 | LK3: =IF('Input Sheet'!LK5="",0,ROUND('Input Sheet'!LK5/Sheet2!LK2,2)) -> 0 | LL3: =IF('Input Sheet'!LL5="",0,ROUND('Input Sheet'!LL5/Sheet2!LL2,2)) -> 0 | LM3: =IF('Input Sheet'!LM5="",0,ROUND('Input Sheet'!LM5/Sheet2!LM2,2)) -> 0 | LN3: =IF('Input Sheet'!LN5="",0,ROUND('Input Sheet'!LN5/Sheet2!LN2,2)) -> 0 | LO3: =IF('Input Sheet'!LO5="",0,ROUND('Input Sheet'!LO5/Sheet2!LO2,2)) -> 0 | LP3: =IF('Input Sheet'!LP5="",0,ROUND('Input Sheet'!LP5/Sheet2!LP2,2)) -> 0 | LQ3: =IF('Input Sheet'!LQ5="",0,ROUND('Input Sheet'!LQ5/Sheet2!LQ2,2)) -> 0 | LR3: =IF('Input Sheet'!LR5="",0,ROUND('Input Sheet'!LR5/Sheet2!LR2,2)) -> 0 | LS3: =IF('Input Sheet'!LS5="",0,ROUND('Input Sheet'!LS5/Sheet2!LS2,2)) -> 0 | LT3: =IF('Input Sheet'!LT5="",0,ROUND('Input Sheet'!LT5/Sheet2!LT2,2)) -> 0 | LU3: =IF('Input Sheet'!LU5="",0,ROUND('Input Sheet'!LU5/Sheet2!LU2,2)) -> 0 | LV3: =IF('Input Sheet'!LV5="",0,ROUND('Input Sheet'!LV5/Sheet2!LV2,2)) -> 0 | LW3: =IF('Input Sheet'!LW5="",0,ROUND('Input Sheet'!LW5/Sheet2!LW2,2)) -> 0 | LX3: =IF('Input Sheet'!LX5="",0,ROUND('Input Sheet'!LX5/Sheet2!LX2,2)) -> 0 | LY3: =IF('Input Sheet'!LY5="",0,ROUND('Input Sheet'!LY5/Sheet2!LY2,2)) -> 0 | LZ3: =IF('Input Sheet'!LZ5="",0,ROUND('Input Sheet'!LZ5/Sheet2!LZ2,2)) -> 0 | MA3: =IF('Input Sheet'!MA5="",0,ROUND('Input Sheet'!MA5/Sheet2!MA2,2)) -> 0 | MB3: =IF('Input Sheet'!MB5="",0,ROUND('Input Sheet'!MB5/Sheet2!MB2,2)) -> 0 | MC3: =IF('Input Sheet'!MC5="",0,ROUND('Input Sheet'!MC5/Sheet2!MC2,2)) -> 0 | MD3: =IF('Input Sheet'!MD5="",0,ROUND('Input Sheet'!MD5/Sheet2!MD2,2)) -> 0 | ME3: =IF('Input Sheet'!ME5="",0,ROUND('Input Sheet'!ME5/Sheet2!ME2,2)) -> 0 | MF3: =IF('Input Sheet'!MF5="",0,ROUND('Input Sheet'!MF5/Sheet2!MF2,2)) -> 0 | MG3: =IF('Input Sheet'!MG5="",0,ROUND('Input Sheet'!MG5/Sheet2!MG2,2)) -> 0 | MH3: =IF('Input Sheet'!MH5="",0,ROUND('Input Sheet'!MH5/Sheet2!MH2,2)) -> 0 | MI3: =IF('Input Sheet'!MI5="",0,ROUND('Input Sheet'!MI5/Sheet2!MI2,2)) -> 0 | MJ3: =IF('Input Sheet'!MJ5="",0,ROUND('Input Sheet'!MJ5/Sheet2!MJ2,2)) -> 0 | MK3: =IF('Input Sheet'!MK5="",0,ROUND('Input Sheet'!MK5/Sheet2!MK2,2)) -> 0 | ML3: =IF('Input Sheet'!ML5="",0,ROUND('Input Sheet'!ML5/Sheet2!ML2,2)) -> 0 | MM3: =IF('Input Sheet'!MM5="",0,ROUND('Input Sheet'!MM5/Sheet2!MM2,2)) -> 0 | MN3: =IF('Input Sheet'!MN5="",0,ROUND('Input Sheet'!MN5/Sheet2!MN2,2)) -> 0 | MO3: =IF('Input Sheet'!MO5="",0,ROUND('Input Sheet'!MO5/Sheet2!MO2,2)) -> 0 | MP3: =IF('Input Sheet'!MP5="",0,ROUND('Input Sheet'!MP5/Sheet2!MP2,2)) -> 0 | MQ3: =IF('Input Sheet'!MQ5="",0,ROUND('Input Sheet'!MQ5/Sheet2!MQ2,2)) -> 0 | MR3: =IF('Input Sheet'!MR5="",0,ROUND('Input Sheet'!MR5/Sheet2!MR2,2)) -> 0 | MS3: =IF('Input Sheet'!MS5="",0,ROUND('Input Sheet'!MS5/Sheet2!MS2,2)) -> 0 | MT3: =IF('Input Sheet'!MT5="",0,ROUND('Input Sheet'!MT5/Sheet2!MT2,2)) -> 0 | MU3: =IF('Input Sheet'!MU5="",0,ROUND('Input Sheet'!MU5/Sheet2!MU2,2)) -> 0 | MV3: =IF('Input Sheet'!MV5="",0,ROUND('Input Sheet'!MV5/Sheet2!MV2,2)) -> 0 | MW3: =IF('Input Sheet'!MW5="",0,ROUND('Input Sheet'!MW5/Sheet2!MW2,2)) -> 0 | MX3: =IF('Input Sheet'!MX5="",0,ROUND('Input Sheet'!MX5/Sheet2!MX2,2)) -> 0 | MY3: =IF('Input Sheet'!MY5="",0,ROUND('Input Sheet'!MY5/Sheet2!MY2,2)) -> 0 | MZ3: =IF('Input Sheet'!MZ5="",0,ROUND('Input Sheet'!MZ5/Sheet2!MZ2,2)) -> 0 | NA3: =IF('Input Sheet'!NA5="",0,ROUND('Input Sheet'!NA5/Sheet2!NA2,2)) -> 0 | NB3: =IF('Input Sheet'!NB5="",0,ROUND('Input Sheet'!NB5/Sheet2!NB2,2)) -> 0 | NC3: =IF('Input Sheet'!NC5="",0,ROUND('Input Sheet'!NC5/Sheet2!NC2,2)) -> 0 | ND3: =IF('Input Sheet'!ND5="",0,ROUND('Input Sheet'!ND5/Sheet2!ND2,2)) -> 0 | NE3: =IF('Input Sheet'!NE5="",0,ROUND('Input Sheet'!NE5/Sheet2!NE2,2)) -> 0 | NF3: =IF('Input Sheet'!NF5="",0,ROUND('Input Sheet'!NF5/Sheet2!NF2,2)) -> 0 | NG3: =IF('Input Sheet'!NG5="",0,ROUND('Input Sheet'!NG5/Sheet2!NG2,2)) -> 0 | NH3: =IF('Input Sheet'!NH5="",0,ROUND('Input Sheet'!NH5/Sheet2!NH2,2)) -> 0 | NI3: =IF('Input Sheet'!NI5="",0,ROUND('Input Sheet'!NI5/Sheet2!NI2,2)) -> 0 | NJ3: =IF('Input Sheet'!NJ5="",0,ROUND('Input Sheet'!NJ5/Sheet2!NJ2,2)) -> 0 | NK3: =IF('Input Sheet'!NK5="",0,ROUND('Input Sheet'!NK5/Sheet2!NK2,2)) -> 0 | NL3: =IF('Input Sheet'!NL5="",0,ROUND('Input Sheet'!NL5/Sheet2!NL2,2)) -> 0 | NM3: =IF('Input Sheet'!NM5="",0,ROUND('Input Sheet'!NM5/Sheet2!NM2,2)) -> 0 | NN3: =IF('Input Sheet'!NN5="",0,ROUND('Input Sheet'!NN5/Sheet2!NN2,2)) -> 0 | NO3: =IF('Input Sheet'!NO5="",0,ROUND('Input Sheet'!NO5/Sheet2!NO2,2)) -> 0 | NP3: =IF('Input Sheet'!NP5="",0,ROUND('Input Sheet'!NP5/Sheet2!NP2,2)) -> 0 | NQ3: =IF('Input Sheet'!NQ5="",0,ROUND('Input Sheet'!NQ5/Sheet2!NQ2,2)) -> 0 | NR3: =IF('Input Sheet'!NR5="",0,ROUND('Input Sheet'!NR5/Sheet2!NR2,2)) -> 0 | NS3: =IF('Input Sheet'!NS5="",0,ROUND('Input Sheet'!NS5/Sheet2!NS2,2)) -> 0 | NT3: =IF('Input Sheet'!NT5="",0,ROUND('Input Sheet'!NT5/Sheet2!NT2,2)) -> 0 | NU3: =IF('Input Sheet'!NU5="",0,ROUND('Input Sheet'!NU5/Sheet2!NU2,2)) -> 0 | NV3: =IF('Input Sheet'!NV5="",0,ROUND('Input Sheet'!NV5/Sheet2!NV2,2)) -> 0 | NW3: =IF('Input Sheet'!NW5="",0,ROUND('Input Sheet'!NW5/Sheet2!NW2,2)) -> 0 | NX3: =IF('Input Sheet'!NX5="",0,ROUND('Input Sheet'!NX5/Sheet2!NX2,2)) -> 0 | NY3: =IF('Input Sheet'!NY5="",0,ROUND('Input Sheet'!NY5/Sheet2!NY2,2)) -> 0 | NZ3: =IF('Input Sheet'!NZ5="",0,ROUND('Input Sheet'!NZ5/Sheet2!NZ2,2)) -> 0 | OA3: =IF('Input Sheet'!OA5="",0,ROUND('Input Sheet'!OA5/Sheet2!OA2,2)) -> 0 | OB3: =IF('Input Sheet'!OB5="",0,ROUND('Input Sheet'!OB5/Sheet2!OB2,2)) -> 0 | OC3: =IF('Input Sheet'!OC5="",0,ROUND('Input Sheet'!OC5/Sheet2!OC2,2)) -> 0 | OD3: =IF('Input Sheet'!OD5="",0,ROUND('Input Sheet'!OD5/Sheet2!OD2,2)) -> 0 | OE3: =IF('Input Sheet'!OE5="",0,ROUND('Input Sheet'!OE5/Sheet2!OE2,2)) -> 0 | OF3: =IF('Input Sheet'!OF5="",0,ROUND('Input Sheet'!OF5/Sheet2!OF2,2)) -> 0 | OG3: =IF('Input Sheet'!OG5="",0,ROUND('Input Sheet'!OG5/Sheet2!OG2,2)) -> 0 | OH3: =IF('Input Sheet'!OH5="",0,ROUND('Input Sheet'!OH5/Sheet2!OH2,2)) -> 0 | OI3: =IF('Input Sheet'!OI5="",0,ROUND('Input Sheet'!OI5/Sheet2!OI2,2)) -> 0 | OJ3: =IF('Input Sheet'!OJ5="",0,ROUND('Input Sheet'!OJ5/Sheet2!OJ2,2)) -> 0 | OK3: =IF('Input Sheet'!OK5="",0,ROUND('Input Sheet'!OK5/Sheet2!OK2,2)) -> 0
A20: Bins
A21: 1 | B21: =IF(B2=0,"",IF(('Input Sheet'!B$4-(1.5*Sheet2!B$3))<'Input Sheet'!B$16,'Input Sheet'!B$16,IF(('Input Sheet'!B$4-(1.5*Sheet2!B$3))>'Input Sheet'!B$15,'Input Sheet'!B$15,'Input Sheet'!B$4-(1.5*Sheet2!B$3)))) -> 0 | C21: =IF(C2=0,"",IF(('Input Sheet'!C$4-(1.5*Sheet2!C$3))<'Input Sheet'!C$16,'Input Sheet'!C$16,IF(('Input Sheet'!C$4-(1.5*Sheet2!C$3))>'Input Sheet'!C$15,'Input Sheet'!C$15,'Input Sheet'!C$4-(1.5*Sheet2!C$3)))) -> 0 | D21: =IF(D2=0,"",IF(('Input Sheet'!D$4-(1.5*Sheet2!D$3))<'Input Sheet'!D$16,'Input Sheet'!D$16,IF(('Input Sheet'!D$4-(1.5*Sheet2!D$3))>'Input Sheet'!D$15,'Input Sheet'!D$15,'Input Sheet'!D$4-(1.5*Sheet2!D$3)))) -> 0.195 | E21: =IF(E2=0,"",IF(('Input Sheet'!E$4-(1.5*Sheet2!E$3))<'Input Sheet'!E$16,'Input Sheet'!E$16,IF(('Input Sheet'!E$4-(1.5*Sheet2!E$3))>'Input Sheet'!E$15,'Input Sheet'!E$15,'Input Sheet'!E$4-(1.5*Sheet2!E$3)))) -> 0 | F21: =IF(F2=0,"",IF(('Input Sheet'!F$4-(1.5*Sheet2!F$3))<'Input Sheet'!F$16,'Input Sheet'!F$16,IF(('Input Sheet'!F$4-(1.5*Sheet2!F$3))>'Input Sheet'!F$15,'Input Sheet'!F$15,'Input Sheet'!F$4-(1.5*Sheet2!F$3)))) -> 0 | G21: =IF(G2=0,"",IF(('Input Sheet'!G$4-(1.5*Sheet2!G$3))<'Input Sheet'!G$16,'Input Sheet'!G$16,IF(('Input Sheet'!G$4-(1.5*Sheet2!G$3))>'Input Sheet'!G$15,'Input Sheet'!G$15,'Input Sheet'!G$4-(1.5*Sheet2!G$3)))) -> 2.48 | H21: =IF(H2=0,"",IF(('Input Sheet'!H$4-(1.5*Sheet2!H$3))<'Input Sheet'!H$16,'Input Sheet'!H$16,IF(('Input Sheet'!H$4-(1.5*Sheet2!H$3))>'Input Sheet'!H$15,'Input Sheet'!H$15,'Input Sheet'!H$4-(1.5*Sheet2!H$3)))) -> 0 | I21: =IF(I2=0,"",IF(('Input Sheet'!I$4-(1.5*Sheet2!I$3))<'Input Sheet'!I$16,'Input Sheet'!I$16,IF(('Input Sheet'!I$4-(1.5*Sheet2!I$3))>'Input Sheet'!I$15,'Input Sheet'!I$15,'Input Sheet'!I$4-(1.5*Sheet2!I$3)))) -> 0.88 | J21: =IF(J2=0,"",IF(('Input Sheet'!J$4-(1.5*Sheet2!J$3))<'Input Sheet'!J$16,'Input Sheet'!J$16,IF(('Input Sheet'!J$4-(1.5*Sheet2!J$3))>'Input Sheet'!J$15,'Input Sheet'!J$15,'Input Sheet'!J$4-(1.5*Sheet2!J$3)))) -> 0 | K21: =IF(K2=0,"",IF(('Input Sheet'!K$4-(1.5*Sheet2!K$3))<'Input Sheet'!K$16,'Input Sheet'!K$16,IF(('Input Sheet'!K$4-(1.5*Sheet2!K$3))>'Input Sheet'!K$15,'Input Sheet'!K$15,'Input Sheet'!K$4-(1.5*Sheet2!K$3)))) -> 0 | L21: =IF(L2=0,"",IF(('Input Sheet'!L$4-(1.5*Sheet2!L$3))<'Input Sheet'!L$16,'Input Sheet'!L$16,IF(('Input Sheet'!L$4-(1.5*Sheet2!L$3))>'Input Sheet'!L$15,'Input Sheet'!L$15,'Input Sheet'!L$4-(1.5*Sheet2!L$3)))) -> 0 | M21: =IF(M2=0,"",IF(('Input Sheet'!M$4-(1.5*Sheet2!M$3))<'Input Sheet'!M$16,'Input Sheet'!M$16,IF(('Input Sheet'!M$4-(1.5*Sheet2!M$3))>'Input Sheet'!M$15,'Input Sheet'!M$15,'Input Sheet'!M$4-(1.5*Sheet2!M$3)))) -> 94.565 | N21: =IF(N2=0,"",IF(('Input Sheet'!N$4-(1.5*Sheet2!N$3))<'Input Sheet'!N$16,'Input Sheet'!N$16,IF(('Input Sheet'!N$4-(1.5*Sheet2!N$3))>'Input Sheet'!N$15,'Input Sheet'!N$15,'Input Sheet'!N$4-(1.5*Sheet2!N$3)))) ->  | O21: =IF(O2=0,"",IF(('Input Sheet'!O$4-(1.5*Sheet2!O$3))<'Input Sheet'!O$16,'Input Sheet'!O$16,IF(('Input Sheet'!O$4-(1.5*Sheet2!O$3))>'Input Sheet'!O$15,'Input Sheet'!O$15,'Input Sheet'!O$4-(1.5*Sheet2!O$3)))) -> 0 | P21: =IF(P2=0,"",IF(('Input Sheet'!P$4-(1.5*Sheet2!P$3))<'Input Sheet'!P$16,'Input Sheet'!P$16,IF(('Input Sheet'!P$4-(1.5*Sheet2!P$3))>'Input Sheet'!P$15,'Input Sheet'!P$15,'Input Sheet'!P$4-(1.5*Sheet2!P$3)))) -> 0 | Q21: =IF(Q2=0,"",IF(('Input Sheet'!Q$4-(1.5*Sheet2!Q$3))<'Input Sheet'!Q$16,'Input Sheet'!Q$16,IF(('Input Sheet'!Q$4-(1.5*Sheet2!Q$3))>'Input Sheet'!Q$15,'Input Sheet'!Q$15,'Input Sheet'!Q$4-(1.5*Sheet2!Q$3)))) -> 0 | R21: =IF(R2=0,"",IF(('Input Sheet'!R$4-(1.5*Sheet2!R$3))<'Input Sheet'!R$16,'Input Sheet'!R$16,IF(('Input Sheet'!R$4-(1.5*Sheet2!R$3))>'Input Sheet'!R$15,'Input Sheet'!R$15,'Input Sheet'!R$4-(1.5*Sheet2!R$3)))) -> 0 | S21: =IF(S2=0,"",IF(('Input Sheet'!S$4-(1.5*Sheet2!S$3))<'Input Sheet'!S$16,'Input Sheet'!S$16,IF(('Input Sheet'!S$4-(1.5*Sheet2!S$3))>'Input Sheet'!S$15,'Input Sheet'!S$15,'Input Sheet'!S$4-(1.5*Sheet2!S$3)))) -> 0 | T21: =IF(T2=0,"",IF(('Input Sheet'!T$4-(1.5*Sheet2!T$3))<'Input Sheet'!T$16,'Input Sheet'!T$16,IF(('Input Sheet'!T$4-(1.5*Sheet2!T$3))>'Input Sheet'!T$15,'Input Sheet'!T$15,'Input Sheet'!T$4-(1.5*Sheet2!T$3)))) -> 1 | U21: =IF(U2=0,"",IF(('Input Sheet'!U$4-(1.5*Sheet2!U$3))<'Input Sheet'!U$16,'Input Sheet'!U$16,IF(('Input Sheet'!U$4-(1.5*Sheet2!U$3))>'Input Sheet'!U$15,'Input Sheet'!U$15,'Input Sheet'!U$4-(1.5*Sheet2!U$3)))) -> 1 | V21: =IF(V2=0,"",IF(('Input Sheet'!V$4-(1.5*Sheet2!V$3))<'Input Sheet'!V$16,'Input Sheet'!V$16,IF(('Input Sheet'!V$4-(1.5*Sheet2!V$3))>'Input Sheet'!V$15,'Input Sheet'!V$15,'Input Sheet'!V$4-(1.5*Sheet2!V$3)))) -> 1 | W21: =IF(W2=0,"",IF(('Input Sheet'!W$4-(1.5*Sheet2!W$3))<'Input Sheet'!W$16,'Input Sheet'!W$16,IF(('Input Sheet'!W$4-(1.5*Sheet2!W$3))>'Input Sheet'!W$15,'Input Sheet'!W$15,'Input Sheet'!W$4-(1.5*Sheet2!W$3)))) -> 1 | X21: =IF(X2=0,"",IF(('Input Sheet'!X$4-(1.5*Sheet2!X$3))<'Input Sheet'!X$16,'Input Sheet'!X$16,IF(('Input Sheet'!X$4-(1.5*Sheet2!X$3))>'Input Sheet'!X$15,'Input Sheet'!X$15,'Input Sheet'!X$4-(1.5*Sheet2!X$3)))) -> 1 | Y21: =IF(Y2=0,"",IF(('Input Sheet'!Y$4-(1.5*Sheet2!Y$3))<'Input Sheet'!Y$16,'Input Sheet'!Y$16,IF(('Input Sheet'!Y$4-(1.5*Sheet2!Y$3))>'Input Sheet'!Y$15,'Input Sheet'!Y$15,'Input Sheet'!Y$4-(1.5*Sheet2!Y$3)))) -> 1 | Z21: =IF(Z2=0,"",IF(('Input Sheet'!Z$4-(1.5*Sheet2!Z$3))<'Input Sheet'!Z$16,'Input Sheet'!Z$16,IF(('Input Sheet'!Z$4-(1.5*Sheet2!Z$3))>'Input Sheet'!Z$15,'Input Sheet'!Z$15,'Input Sheet'!Z$4-(1.5*Sheet2!Z$3)))) -> 1 | AA21: =IF(AA2=0,"",IF(('Input Sheet'!AA$4-(1.5*Sheet2!AA$3))<'Input Sheet'!AA$16,'Input Sheet'!AA$16,IF(('Input Sheet'!AA$4-(1.5*Sheet2!AA$3))>'Input Sheet'!AA$15,'Input Sheet'!AA$15,'Input Sheet'!AA$4-(1.5*Sheet2!AA$3)))) -> 0 | AB21: =IF(AB2=0,"",IF(('Input Sheet'!AB$4-(1.5*Sheet2!AB$3))<'Input Sheet'!AB$16,'Input Sheet'!AB$16,IF(('Input Sheet'!AB$4-(1.5*Sheet2!AB$3))>'Input Sheet'!AB$15,'Input Sheet'!AB$15,'Input Sheet'!AB$4-(1.5*Sheet2!AB$3)))) -> 0 | AC21: =IF(AC2=0,"",IF(('Input Sheet'!AC$4-(1.5*Sheet2!AC$3))<'Input Sheet'!AC$16,'Input Sheet'!AC$16,IF(('Input Sheet'!AC$4-(1.5*Sheet2!AC$3))>'Input Sheet'!AC$15,'Input Sheet'!AC$15,'Input Sheet'!AC$4-(1.5*Sheet2!AC$3)))) -> 0 | AD21: =IF(AD2=0,"",IF(('Input Sheet'!AD$4-(1.5*Sheet2!AD$3))<'Input Sheet'!AD$16,'Input Sheet'!AD$16,IF(('Input Sheet'!AD$4-(1.5*Sheet2!AD$3))>'Input Sheet'!AD$15,'Input Sheet'!AD$15,'Input Sheet'!AD$4-(1.5*Sheet2!AD$3)))) ->  | AE21: =IF(AE2=0,"",IF(('Input Sheet'!AE$4-(1.5*Sheet2!AE$3))<'Input Sheet'!AE$16,'Input Sheet'!AE$16,IF(('Input Sheet'!AE$4-(1.5*Sheet2!AE$3))>'Input Sheet'!AE$15,'Input Sheet'!AE$15,'Input Sheet'!AE$4-(1.5*Sheet2!AE$3)))) ->  | AF21: =IF(AF2=0,"",IF(('Input Sheet'!AF$4-(1.5*Sheet2!AF$3))<'Input Sheet'!AF$16,'Input Sheet'!AF$16,IF(('Input Sheet'!AF$4-(1.5*Sheet2!AF$3))>'Input Sheet'!AF$15,'Input Sheet'!AF$15,'Input Sheet'!AF$4-(1.5*Sheet2!AF$3)))) ->  | AG21: =IF(AG2=0,"",IF(('Input Sheet'!AG$4-(1.5*Sheet2!AG$3))<'Input Sheet'!AG$16,'Input Sheet'!AG$16,IF(('Input Sheet'!AG$4-(1.5*Sheet2!AG$3))>'Input Sheet'!AG$15,'Input Sheet'!AG$15,'Input Sheet'!AG$4-(1.5*Sheet2!AG$3)))) ->  | AH21: =IF(AH2=0,"",IF(('Input Sheet'!AH$4-(1.5*Sheet2!AH$3))<'Input Sheet'!AH$16,'Input Sheet'!AH$16,IF(('Input Sheet'!AH$4-(1.5*Sheet2!AH$3))>'Input Sheet'!AH$15,'Input Sheet'!AH$15,'Input Sheet'!AH$4-(1.5*Sheet2!AH$3)))) ->  | AI21: =IF(AI2=0,"",IF(('Input Sheet'!AI$4-(1.5*Sheet2!AI$3))<'Input Sheet'!AI$16,'Input Sheet'!AI$16,IF(('Input Sheet'!AI$4-(1.5*Sheet2!AI$3))>'Input Sheet'!AI$15,'Input Sheet'!AI$15,'Input Sheet'!AI$4-(1.5*Sheet2!AI$3)))) ->  | AJ21: =IF(AJ2=0,"",IF(('Input Sheet'!AJ$4-(1.5*Sheet2!AJ$3))<'Input Sheet'!AJ$16,'Input Sheet'!AJ$16,IF(('Input Sheet'!AJ$4-(1.5*Sheet2!AJ$3))>'Input Sheet'!AJ$15,'Input Sheet'!AJ$15,'Input Sheet'!AJ$4-(1.5*Sheet2!AJ$3)))) ->  | AK21: =IF(AK2=0,"",IF(('Input Sheet'!AK$4-(1.5*Sheet2!AK$3))<'Input Sheet'!AK$16,'Input Sheet'!AK$16,IF(('Input Sheet'!AK$4-(1.5*Sheet2!AK$3))>'Input Sheet'!AK$15,'Input Sheet'!AK$15,'Input Sheet'!AK$4-(1.5*Sheet2!AK$3)))) ->  | AL21: =IF(AL2=0,"",IF(('Input Sheet'!AL$4-(1.5*Sheet2!AL$3))<'Input Sheet'!AL$16,'Input Sheet'!AL$16,IF(('Input Sheet'!AL$4-(1.5*Sheet2!AL$3))>'Input Sheet'!AL$15,'Input Sheet'!AL$15,'Input Sheet'!AL$4-(1.5*Sheet2!AL$3)))) ->  | AM21: =IF(AM2=0,"",IF(('Input Sheet'!AM$4-(1.5*Sheet2!AM$3))<'Input Sheet'!AM$16,'Input Sheet'!AM$16,IF(('Input Sheet'!AM$4-(1.5*Sheet2!AM$3))>'Input Sheet'!AM$15,'Input Sheet'!AM$15,'Input Sheet'!AM$4-(1.5*Sheet2!AM$3)))) ->  | AN21: =IF(AN2=0,"",IF(('Input Sheet'!AN$4-(1.5*Sheet2!AN$3))<'Input Sheet'!AN$16,'Input Sheet'!AN$16,IF(('Input Sheet'!AN$4-(1.5*Sheet2!AN$3))>'Input Sheet'!AN$15,'Input Sheet'!AN$15,'Input Sheet'!AN$4-(1.5*Sheet2!AN$3)))) ->  | AO21: =IF(AO2=0,"",IF(('Input Sheet'!AO$4-(1.5*Sheet2!AO$3))<'Input Sheet'!AO$16,'Input Sheet'!AO$16,IF(('Input Sheet'!AO$4-(1.5*Sheet2!AO$3))>'Input Sheet'!AO$15,'Input Sheet'!AO$15,'Input Sheet'!AO$4-(1.5*Sheet2!AO$3)))) ->  | AP21: =IF(AP2=0,"",IF(('Input Sheet'!AP$4-(1.5*Sheet2!AP$3))<'Input Sheet'!AP$16,'Input Sheet'!AP$16,IF(('Input Sheet'!AP$4-(1.5*Sheet2!AP$3))>'Input Sheet'!AP$15,'Input Sheet'!AP$15,'Input Sheet'!AP$4-(1.5*Sheet2!AP$3)))) ->  | AQ21: =IF(AQ2=0,"",IF(('Input Sheet'!AQ$4-(1.5*Sheet2!AQ$3))<'Input Sheet'!AQ$16,'Input Sheet'!AQ$16,IF(('Input Sheet'!AQ$4-(1.5*Sheet2!AQ$3))>'Input Sheet'!AQ$15,'Input Sheet'!AQ$15,'Input Sheet'!AQ$4-(1.5*Sheet2!AQ$3)))) ->  | AR21: =IF(AR2=0,"",IF(('Input Sheet'!AR$4-(1.5*Sheet2!AR$3))<'Input Sheet'!AR$16,'Input Sheet'!AR$16,IF(('Input Sheet'!AR$4-(1.5*Sheet2!AR$3))>'Input Sheet'!AR$15,'Input Sheet'!AR$15,'Input Sheet'!AR$4-(1.5*Sheet2!AR$3)))) ->  | AS21: =IF(AS2=0,"",IF(('Input Sheet'!AS$4-(1.5*Sheet2!AS$3))<'Input Sheet'!AS$16,'Input Sheet'!AS$16,IF(('Input Sheet'!AS$4-(1.5*Sheet2!AS$3))>'Input Sheet'!AS$15,'Input Sheet'!AS$15,'Input Sheet'!AS$4-(1.5*Sheet2!AS$3)))) ->  | AT21: =IF(AT2=0,"",IF(('Input Sheet'!AT$4-(1.5*Sheet2!AT$3))<'Input Sheet'!AT$16,'Input Sheet'!AT$16,IF(('Input Sheet'!AT$4-(1.5*Sheet2!AT$3))>'Input Sheet'!AT$15,'Input Sheet'!AT$15,'Input Sheet'!AT$4-(1.5*Sheet2!AT$3)))) ->  | AU21: =IF(AU2=0,"",IF(('Input Sheet'!AU$4-(1.5*Sheet2!AU$3))<'Input Sheet'!AU$16,'Input Sheet'!AU$16,IF(('Input Sheet'!AU$4-(1.5*Sheet2!AU$3))>'Input Sheet'!AU$15,'Input Sheet'!AU$15,'Input Sheet'!AU$4-(1.5*Sheet2!AU$3)))) ->  | AV21: =IF(AV2=0,"",IF(('Input Sheet'!AV$4-(1.5*Sheet2!AV$3))<'Input Sheet'!AV$16,'Input Sheet'!AV$16,IF(('Input Sheet'!AV$4-(1.5*Sheet2!AV$3))>'Input Sheet'!AV$15,'Input Sheet'!AV$15,'Input Sheet'!AV$4-(1.5*Sheet2!AV$3)))) ->  | AW21: =IF(AW2=0,"",IF(('Input Sheet'!AW$4-(1.5*Sheet2!AW$3))<'Input Sheet'!AW$16,'Input Sheet'!AW$16,IF(('Input Sheet'!AW$4-(1.5*Sheet2!AW$3))>'Input Sheet'!AW$15,'Input Sheet'!AW$15,'Input Sheet'!AW$4-(1.5*Sheet2!AW$3)))) ->  | AX21: =IF(AX2=0,"",IF(('Input Sheet'!AX$4-(1.5*Sheet2!AX$3))<'Input Sheet'!AX$16,'Input Sheet'!AX$16,IF(('Input Sheet'!AX$4-(1.5*Sheet2!AX$3))>'Input Sheet'!AX$15,'Input Sheet'!AX$15,'Input Sheet'!AX$4-(1.5*Sheet2!AX$3)))) ->  | AY21: =IF(AY2=0,"",IF(('Input Sheet'!AY$4-(1.5*Sheet2!AY$3))<'Input Sheet'!AY$16,'Input Sheet'!AY$16,IF(('Input Sheet'!AY$4-(1.5*Sheet2!AY$3))>'Input Sheet'!AY$15,'Input Sheet'!AY$15,'Input Sheet'!AY$4-(1.5*Sheet2!AY$3)))) ->  | AZ21: =IF(AZ2=0,"",IF(('Input Sheet'!AZ$4-(1.5*Sheet2!AZ$3))<'Input Sheet'!AZ$16,'Input Sheet'!AZ$16,IF(('Input Sheet'!AZ$4-(1.5*Sheet2!AZ$3))>'Input Sheet'!AZ$15,'Input Sheet'!AZ$15,'Input Sheet'!AZ$4-(1.5*Sheet2!AZ$3)))) ->  | BA21: =IF(BA2=0,"",IF(('Input Sheet'!BA$4-(1.5*Sheet2!BA$3))<'Input Sheet'!BA$16,'Input Sheet'!BA$16,IF(('Input Sheet'!BA$4-(1.5*Sheet2!BA$3))>'Input Sheet'!BA$15,'Input Sheet'!BA$15,'Input Sheet'!BA$4-(1.5*Sheet2!BA$3)))) ->  | BB21: =IF(BB2=0,"",IF(('Input Sheet'!BB$4-(1.5*Sheet2!BB$3))<'Input Sheet'!BB$16,'Input Sheet'!BB$16,IF(('Input Sheet'!BB$4-(1.5*Sheet2!BB$3))>'Input Sheet'!BB$15,'Input Sheet'!BB$15,'Input Sheet'!BB$4-(1.5*Sheet2!BB$3)))) ->  | BC21: =IF(BC2=0,"",IF(('Input Sheet'!BC$4-(1.5*Sheet2!BC$3))<'Input Sheet'!BC$16,'Input Sheet'!BC$16,IF(('Input Sheet'!BC$4-(1.5*Sheet2!BC$3))>'Input Sheet'!BC$15,'Input Sheet'!BC$15,'Input Sheet'!BC$4-(1.5*Sheet2!BC$3)))) ->  | BD21: =IF(BD2=0,"",IF(('Input Sheet'!BD$4-(1.5*Sheet2!BD$3))<'Input Sheet'!BD$16,'Input Sheet'!BD$16,IF(('Input Sheet'!BD$4-(1.5*Sheet2!BD$3))>'Input Sheet'!BD$15,'Input Sheet'!BD$15,'Input Sheet'!BD$4-(1.5*Sheet2!BD$3)))) ->  | BE21: =IF(BE2=0,"",IF(('Input Sheet'!BE$4-(1.5*Sheet2!BE$3))<'Input Sheet'!BE$16,'Input Sheet'!BE$16,IF(('Input Sheet'!BE$4-(1.5*Sheet2!BE$3))>'Input Sheet'!BE$15,'Input Sheet'!BE$15,'Input Sheet'!BE$4-(1.5*Sheet2!BE$3)))) ->  | BF21: =IF(BF2=0,"",IF(('Input Sheet'!BF$4-(1.5*Sheet2!BF$3))<'Input Sheet'!BF$16,'Input Sheet'!BF$16,IF(('Input Sheet'!BF$4-(1.5*Sheet2!BF$3))>'Input Sheet'!BF$15,'Input Sheet'!BF$15,'Input Sheet'!BF$4-(1.5*Sheet2!BF$3)))) ->  | BG21: =IF(BG2=0,"",IF(('Input Sheet'!BG$4-(1.5*Sheet2!BG$3))<'Input Sheet'!BG$16,'Input Sheet'!BG$16,IF(('Input Sheet'!BG$4-(1.5*Sheet2!BG$3))>'Input Sheet'!BG$15,'Input Sheet'!BG$15,'Input Sheet'!BG$4-(1.5*Sheet2!BG$3)))) ->  | BH21: =IF(BH2=0,"",IF(('Input Sheet'!BH$4-(1.5*Sheet2!BH$3))<'Input Sheet'!BH$16,'Input Sheet'!BH$16,IF(('Input Sheet'!BH$4-(1.5*Sheet2!BH$3))>'Input Sheet'!BH$15,'Input Sheet'!BH$15,'Input Sheet'!BH$4-(1.5*Sheet2!BH$3)))) ->  | BI21: =IF(BI2=0,"",IF(('Input Sheet'!BI$4-(1.5*Sheet2!BI$3))<'Input Sheet'!BI$16,'Input Sheet'!BI$16,IF(('Input Sheet'!BI$4-(1.5*Sheet2!BI$3))>'Input Sheet'!BI$15,'Input Sheet'!BI$15,'Input Sheet'!BI$4-(1.5*Sheet2!BI$3)))) ->  | BJ21: =IF(BJ2=0,"",IF(('Input Sheet'!BJ$4-(1.5*Sheet2!BJ$3))<'Input Sheet'!BJ$16,'Input Sheet'!BJ$16,IF(('Input Sheet'!BJ$4-(1.5*Sheet2!BJ$3))>'Input Sheet'!BJ$15,'Input Sheet'!BJ$15,'Input Sheet'!BJ$4-(1.5*Sheet2!BJ$3)))) ->  | BK21: =IF(BK2=0,"",IF(('Input Sheet'!BK$4-(1.5*Sheet2!BK$3))<'Input Sheet'!BK$16,'Input Sheet'!BK$16,IF(('Input Sheet'!BK$4-(1.5*Sheet2!BK$3))>'Input Sheet'!BK$15,'Input Sheet'!BK$15,'Input Sheet'!BK$4-(1.5*Sheet2!BK$3)))) ->  | BL21: =IF(BL2=0,"",IF(('Input Sheet'!BL$4-(1.5*Sheet2!BL$3))<'Input Sheet'!BL$16,'Input Sheet'!BL$16,IF(('Input Sheet'!BL$4-(1.5*Sheet2!BL$3))>'Input Sheet'!BL$15,'Input Sheet'!BL$15,'Input Sheet'!BL$4-(1.5*Sheet2!BL$3)))) ->  | BM21: =IF(BM2=0,"",IF(('Input Sheet'!BM$4-(1.5*Sheet2!BM$3))<'Input Sheet'!BM$16,'Input Sheet'!BM$16,IF(('Input Sheet'!BM$4-(1.5*Sheet2!BM$3))>'Input Sheet'!BM$15,'Input Sheet'!BM$15,'Input Sheet'!BM$4-(1.5*Sheet2!BM$3)))) ->  | BN21: =IF(BN2=0,"",IF(('Input Sheet'!BN$4-(1.5*Sheet2!BN$3))<'Input Sheet'!BN$16,'Input Sheet'!BN$16,IF(('Input Sheet'!BN$4-(1.5*Sheet2!BN$3))>'Input Sheet'!BN$15,'Input Sheet'!BN$15,'Input Sheet'!BN$4-(1.5*Sheet2!BN$3)))) ->  | BO21: =IF(BO2=0,"",IF(('Input Sheet'!BO$4-(1.5*Sheet2!BO$3))<'Input Sheet'!BO$16,'Input Sheet'!BO$16,IF(('Input Sheet'!BO$4-(1.5*Sheet2!BO$3))>'Input Sheet'!BO$15,'Input Sheet'!BO$15,'Input Sheet'!BO$4-(1.5*Sheet2!BO$3)))) ->  | BP21: =IF(BP2=0,"",IF(('Input Sheet'!BP$4-(1.5*Sheet2!BP$3))<'Input Sheet'!BP$16,'Input Sheet'!BP$16,IF(('Input Sheet'!BP$4-(1.5*Sheet2!BP$3))>'Input Sheet'!BP$15,'Input Sheet'!BP$15,'Input Sheet'!BP$4-(1.5*Sheet2!BP$3)))) ->  | BQ21: =IF(BQ2=0,"",IF(('Input Sheet'!BQ$4-(1.5*Sheet2!BQ$3))<'Input Sheet'!BQ$16,'Input Sheet'!BQ$16,IF(('Input Sheet'!BQ$4-(1.5*Sheet2!BQ$3))>'Input Sheet'!BQ$15,'Input Sheet'!BQ$15,'Input Sheet'!BQ$4-(1.5*Sheet2!BQ$3)))) ->  | BR21: =IF(BR2=0,"",IF(('Input Sheet'!BR$4-(1.5*Sheet2!BR$3))<'Input Sheet'!BR$16,'Input Sheet'!BR$16,IF(('Input Sheet'!BR$4-(1.5*Sheet2!BR$3))>'Input Sheet'!BR$15,'Input Sheet'!BR$15,'Input Sheet'!BR$4-(1.5*Sheet2!BR$3)))) ->  | BS21: =IF(BS2=0,"",IF(('Input Sheet'!BS$4-(1.5*Sheet2!BS$3))<'Input Sheet'!BS$16,'Input Sheet'!BS$16,IF(('Input Sheet'!BS$4-(1.5*Sheet2!BS$3))>'Input Sheet'!BS$15,'Input Sheet'!BS$15,'Input Sheet'!BS$4-(1.5*Sheet2!BS$3)))) ->  | BT21: =IF(BT2=0,"",IF(('Input Sheet'!BT$4-(1.5*Sheet2!BT$3))<'Input Sheet'!BT$16,'Input Sheet'!BT$16,IF(('Input Sheet'!BT$4-(1.5*Sheet2!BT$3))>'Input Sheet'!BT$15,'Input Sheet'!BT$15,'Input Sheet'!BT$4-(1.5*Sheet2!BT$3)))) ->  | BU21: =IF(BU2=0,"",IF(('Input Sheet'!BU$4-(1.5*Sheet2!BU$3))<'Input Sheet'!BU$16,'Input Sheet'!BU$16,IF(('Input Sheet'!BU$4-(1.5*Sheet2!BU$3))>'Input Sheet'!BU$15,'Input Sheet'!BU$15,'Input Sheet'!BU$4-(1.5*Sheet2!BU$3)))) ->  | BV21: =IF(BV2=0,"",IF(('Input Sheet'!BV$4-(1.5*Sheet2!BV$3))<'Input Sheet'!BV$16,'Input Sheet'!BV$16,IF(('Input Sheet'!BV$4-(1.5*Sheet2!BV$3))>'Input Sheet'!BV$15,'Input Sheet'!BV$15,'Input Sheet'!BV$4-(1.5*Sheet2!BV$3)))) ->  | BW21: =IF(BW2=0,"",IF(('Input Sheet'!BW$4-(1.5*Sheet2!BW$3))<'Input Sheet'!BW$16,'Input Sheet'!BW$16,IF(('Input Sheet'!BW$4-(1.5*Sheet2!BW$3))>'Input Sheet'!BW$15,'Input Sheet'!BW$15,'Input Sheet'!BW$4-(1.5*Sheet2!BW$3)))) ->  | BX21: =IF(BX2=0,"",IF(('Input Sheet'!BX$4-(1.5*Sheet2!BX$3))<'Input Sheet'!BX$16,'Input Sheet'!BX$16,IF(('Input Sheet'!BX$4-(1.5*Sheet2!BX$3))>'Input Sheet'!BX$15,'Input Sheet'!BX$15,'Input Sheet'!BX$4-(1.5*Sheet2!BX$3)))) ->  | BY21: =IF(BY2=0,"",IF(('Input Sheet'!BY$4-(1.5*Sheet2!BY$3))<'Input Sheet'!BY$16,'Input Sheet'!BY$16,IF(('Input Sheet'!BY$4-(1.5*Sheet2!BY$3))>'Input Sheet'!BY$15,'Input Sheet'!BY$15,'Input Sheet'!BY$4-(1.5*Sheet2!BY$3)))) ->  | BZ21: =IF(BZ2=0,"",IF(('Input Sheet'!BZ$4-(1.5*Sheet2!BZ$3))<'Input Sheet'!BZ$16,'Input Sheet'!BZ$16,IF(('Input Sheet'!BZ$4-(1.5*Sheet2!BZ$3))>'Input Sheet'!BZ$15,'Input Sheet'!BZ$15,'Input Sheet'!BZ$4-(1.5*Sheet2!BZ$3)))) ->  | CA21: =IF(CA2=0,"",IF(('Input Sheet'!CA$4-(1.5*Sheet2!CA$3))<'Input Sheet'!CA$16,'Input Sheet'!CA$16,IF(('Input Sheet'!CA$4-(1.5*Sheet2!CA$3))>'Input Sheet'!CA$15,'Input Sheet'!CA$15,'Input Sheet'!CA$4-(1.5*Sheet2!CA$3)))) ->  | CB21: =IF(CB2=0,"",IF(('Input Sheet'!CB$4-(1.5*Sheet2!CB$3))<'Input Sheet'!CB$16,'Input Sheet'!CB$16,IF(('Input Sheet'!CB$4-(1.5*Sheet2!CB$3))>'Input Sheet'!CB$15,'Input Sheet'!CB$15,'Input Sheet'!CB$4-(1.5*Sheet2!CB$3)))) ->  | CC21: =IF(CC2=0,"",IF(('Input Sheet'!CC$4-(1.5*Sheet2!CC$3))<'Input Sheet'!CC$16,'Input Sheet'!CC$16,IF(('Input Sheet'!CC$4-(1.5*Sheet2!CC$3))>'Input Sheet'!CC$15,'Input Sheet'!CC$15,'Input Sheet'!CC$4-(1.5*Sheet2!CC$3)))) ->  | CD21: =IF(CD2=0,"",IF(('Input Sheet'!CD$4-(1.5*Sheet2!CD$3))<'Input Sheet'!CD$16,'Input Sheet'!CD$16,IF(('Input Sheet'!CD$4-(1.5*Sheet2!CD$3))>'Input Sheet'!CD$15,'Input Sheet'!CD$15,'Input Sheet'!CD$4-(1.5*Sheet2!CD$3)))) ->  | CE21: =IF(CE2=0,"",IF(('Input Sheet'!CE$4-(1.5*Sheet2!CE$3))<'Input Sheet'!CE$16,'Input Sheet'!CE$16,IF(('Input Sheet'!CE$4-(1.5*Sheet2!CE$3))>'Input Sheet'!CE$15,'Input Sheet'!CE$15,'Input Sheet'!CE$4-(1.5*Sheet2!CE$3)))) ->  | CF21: =IF(CF2=0,"",IF(('Input Sheet'!CF$4-(1.5*Sheet2!CF$3))<'Input Sheet'!CF$16,'Input Sheet'!CF$16,IF(('Input Sheet'!CF$4-(1.5*Sheet2!CF$3))>'Input Sheet'!CF$15,'Input Sheet'!CF$15,'Input Sheet'!CF$4-(1.5*Sheet2!CF$3)))) ->  | CG21: =IF(CG2=0,"",IF(('Input Sheet'!CG$4-(1.5*Sheet2!CG$3))<'Input Sheet'!CG$16,'Input Sheet'!CG$16,IF(('Input Sheet'!CG$4-(1.5*Sheet2!CG$3))>'Input Sheet'!CG$15,'Input Sheet'!CG$15,'Input Sheet'!CG$4-(1.5*Sheet2!CG$3)))) ->  | CH21: =IF(CH2=0,"",IF(('Input Sheet'!CH$4-(1.5*Sheet2!CH$3))<'Input Sheet'!CH$16,'Input Sheet'!CH$16,IF(('Input Sheet'!CH$4-(1.5*Sheet2!CH$3))>'Input Sheet'!CH$15,'Input Sheet'!CH$15,'Input Sheet'!CH$4-(1.5*Sheet2!CH$3)))) ->  | CI21: =IF(CI2=0,"",IF(('Input Sheet'!CI$4-(1.5*Sheet2!CI$3))<'Input Sheet'!CI$16,'Input Sheet'!CI$16,IF(('Input Sheet'!CI$4-(1.5*Sheet2!CI$3))>'Input Sheet'!CI$15,'Input Sheet'!CI$15,'Input Sheet'!CI$4-(1.5*Sheet2!CI$3)))) ->  | CJ21: =IF(CJ2=0,"",IF(('Input Sheet'!CJ$4-(1.5*Sheet2!CJ$3))<'Input Sheet'!CJ$16,'Input Sheet'!CJ$16,IF(('Input Sheet'!CJ$4-(1.5*Sheet2!CJ$3))>'Input Sheet'!CJ$15,'Input Sheet'!CJ$15,'Input Sheet'!CJ$4-(1.5*Sheet2!CJ$3)))) ->  | CK21: =IF(CK2=0,"",IF(('Input Sheet'!CK$4-(1.5*Sheet2!CK$3))<'Input Sheet'!CK$16,'Input Sheet'!CK$16,IF(('Input Sheet'!CK$4-(1.5*Sheet2!CK$3))>'Input Sheet'!CK$15,'Input Sheet'!CK$15,'Input Sheet'!CK$4-(1.5*Sheet2!CK$3)))) ->  | CL21: =IF(CL2=0,"",IF(('Input Sheet'!CL$4-(1.5*Sheet2!CL$3))<'Input Sheet'!CL$16,'Input Sheet'!CL$16,IF(('Input Sheet'!CL$4-(1.5*Sheet2!CL$3))>'Input Sheet'!CL$15,'Input Sheet'!CL$15,'Input Sheet'!CL$4-(1.5*Sheet2!CL$3)))) ->  | CM21: =IF(CM2=0,"",IF(('Input Sheet'!CM$4-(1.5*Sheet2!CM$3))<'Input Sheet'!CM$16,'Input Sheet'!CM$16,IF(('Input Sheet'!CM$4-(1.5*Sheet2!CM$3))>'Input Sheet'!CM$15,'Input Sheet'!CM$15,'Input Sheet'!CM$4-(1.5*Sheet2!CM$3)))) ->  | CN21: =IF(CN2=0,"",IF(('Input Sheet'!CN$4-(1.5*Sheet2!CN$3))<'Input Sheet'!CN$16,'Input Sheet'!CN$16,IF(('Input Sheet'!CN$4-(1.5*Sheet2!CN$3))>'Input Sheet'!CN$15,'Input Sheet'!CN$15,'Input Sheet'!CN$4-(1.5*Sheet2!CN$3)))) ->  | CO21: =IF(CO2=0,"",IF(('Input Sheet'!CO$4-(1.5*Sheet2!CO$3))<'Input Sheet'!CO$16,'Input Sheet'!CO$16,IF(('Input Sheet'!CO$4-(1.5*Sheet2!CO$3))>'Input Sheet'!CO$15,'Input Sheet'!CO$15,'Input Sheet'!CO$4-(1.5*Sheet2!CO$3)))) ->  | CP21: =IF(CP2=0,"",IF(('Input Sheet'!CP$4-(1.5*Sheet2!CP$3))<'Input Sheet'!CP$16,'Input Sheet'!CP$16,IF(('Input Sheet'!CP$4-(1.5*Sheet2!CP$3))>'Input Sheet'!CP$15,'Input Sheet'!CP$15,'Input Sheet'!CP$4-(1.5*Sheet2!CP$3)))) ->  | CQ21: =IF(CQ2=0,"",IF(('Input Sheet'!CQ$4-(1.5*Sheet2!CQ$3))<'Input Sheet'!CQ$16,'Input Sheet'!CQ$16,IF(('Input Sheet'!CQ$4-(1.5*Sheet2!CQ$3))>'Input Sheet'!CQ$15,'Input Sheet'!CQ$15,'Input Sheet'!CQ$4-(1.5*Sheet2!CQ$3)))) ->  | CR21: =IF(CR2=0,"",IF(('Input Sheet'!CR$4-(1.5*Sheet2!CR$3))<'Input Sheet'!CR$16,'Input Sheet'!CR$16,IF(('Input Sheet'!CR$4-(1.5*Sheet2!CR$3))>'Input Sheet'!CR$15,'Input Sheet'!CR$15,'Input Sheet'!CR$4-(1.5*Sheet2!CR$3)))) ->  | CS21: =IF(CS2=0,"",IF(('Input Sheet'!CS$4-(1.5*Sheet2!CS$3))<'Input Sheet'!CS$16,'Input Sheet'!CS$16,IF(('Input Sheet'!CS$4-(1.5*Sheet2!CS$3))>'Input Sheet'!CS$15,'Input Sheet'!CS$15,'Input Sheet'!CS$4-(1.5*Sheet2!CS$3)))) ->  | CT21: =IF(CT2=0,"",IF(('Input Sheet'!CT$4-(1.5*Sheet2!CT$3))<'Input Sheet'!CT$16,'Input Sheet'!CT$16,IF(('Input Sheet'!CT$4-(1.5*Sheet2!CT$3))>'Input Sheet'!CT$15,'Input Sheet'!CT$15,'Input Sheet'!CT$4-(1.5*Sheet2!CT$3)))) ->  | CU21: =IF(CU2=0,"",IF(('Input Sheet'!CU$4-(1.5*Sheet2!CU$3))<'Input Sheet'!CU$16,'Input Sheet'!CU$16,IF(('Input Sheet'!CU$4-(1.5*Sheet2!CU$3))>'Input Sheet'!CU$15,'Input Sheet'!CU$15,'Input Sheet'!CU$4-(1.5*Sheet2!CU$3)))) ->  | CV21: =IF(CV2=0,"",IF(('Input Sheet'!CV$4-(1.5*Sheet2!CV$3))<'Input Sheet'!CV$16,'Input Sheet'!CV$16,IF(('Input Sheet'!CV$4-(1.5*Sheet2!CV$3))>'Input Sheet'!CV$15,'Input Sheet'!CV$15,'Input Sheet'!CV$4-(1.5*Sheet2!CV$3)))) ->  | CW21: =IF(CW2=0,"",IF(('Input Sheet'!CW$4-(1.5*Sheet2!CW$3))<'Input Sheet'!CW$16,'Input Sheet'!CW$16,IF(('Input Sheet'!CW$4-(1.5*Sheet2!CW$3))>'Input Sheet'!CW$15,'Input Sheet'!CW$15,'Input Sheet'!CW$4-(1.5*Sheet2!CW$3)))) ->  | CX21: =IF(CX2=0,"",IF(('Input Sheet'!CX$4-(1.5*Sheet2!CX$3))<'Input Sheet'!CX$16,'Input Sheet'!CX$16,IF(('Input Sheet'!CX$4-(1.5*Sheet2!CX$3))>'Input Sheet'!CX$15,'Input Sheet'!CX$15,'Input Sheet'!CX$4-(1.5*Sheet2!CX$3)))) ->  | CY21: =IF(CY2=0,"",IF(('Input Sheet'!CY$4-(1.5*Sheet2!CY$3))<'Input Sheet'!CY$16,'Input Sheet'!CY$16,IF(('Input Sheet'!CY$4-(1.5*Sheet2!CY$3))>'Input Sheet'!CY$15,'Input Sheet'!CY$15,'Input Sheet'!CY$4-(1.5*Sheet2!CY$3)))) ->  | CZ21: =IF(CZ2=0,"",IF(('Input Sheet'!CZ$4-(1.5*Sheet2!CZ$3))<'Input Sheet'!CZ$16,'Input Sheet'!CZ$16,IF(('Input Sheet'!CZ$4-(1.5*Sheet2!CZ$3))>'Input Sheet'!CZ$15,'Input Sheet'!CZ$15,'Input Sheet'!CZ$4-(1.5*Sheet2!CZ$3)))) ->  | DA21: =IF(DA2=0,"",IF(('Input Sheet'!DA$4-(1.5*Sheet2!DA$3))<'Input Sheet'!DA$16,'Input Sheet'!DA$16,IF(('Input Sheet'!DA$4-(1.5*Sheet2!DA$3))>'Input Sheet'!DA$15,'Input Sheet'!DA$15,'Input Sheet'!DA$4-(1.5*Sheet2!DA$3)))) ->  | DB21: =IF(DB2=0,"",IF(('Input Sheet'!DB$4-(1.5*Sheet2!DB$3))<'Input Sheet'!DB$16,'Input Sheet'!DB$16,IF(('Input Sheet'!DB$4-(1.5*Sheet2!DB$3))>'Input Sheet'!DB$15,'Input Sheet'!DB$15,'Input Sheet'!DB$4-(1.5*Sheet2!DB$3)))) ->  | DC21: =IF(DC2=0,"",IF(('Input Sheet'!DC$4-(1.5*Sheet2!DC$3))<'Input Sheet'!DC$16,'Input Sheet'!DC$16,IF(('Input Sheet'!DC$4-(1.5*Sheet2!DC$3))>'Input Sheet'!DC$15,'Input Sheet'!DC$15,'Input Sheet'!DC$4-(1.5*Sheet2!DC$3)))) ->  | DD21: =IF(DD2=0,"",IF(('Input Sheet'!DD$4-(1.5*Sheet2!DD$3))<'Input Sheet'!DD$16,'Input Sheet'!DD$16,IF(('Input Sheet'!DD$4-(1.5*Sheet2!DD$3))>'Input Sheet'!DD$15,'Input Sheet'!DD$15,'Input Sheet'!DD$4-(1.5*Sheet2!DD$3)))) ->  | DE21: =IF(DE2=0,"",IF(('Input Sheet'!DE$4-(1.5*Sheet2!DE$3))<'Input Sheet'!DE$16,'Input Sheet'!DE$16,IF(('Input Sheet'!DE$4-(1.5*Sheet2!DE$3))>'Input Sheet'!DE$15,'Input Sheet'!DE$15,'Input Sheet'!DE$4-(1.5*Sheet2!DE$3)))) ->  | DF21: =IF(DF2=0,"",IF(('Input Sheet'!DF$4-(1.5*Sheet2!DF$3))<'Input Sheet'!DF$16,'Input Sheet'!DF$16,IF(('Input Sheet'!DF$4-(1.5*Sheet2!DF$3))>'Input Sheet'!DF$15,'Input Sheet'!DF$15,'Input Sheet'!DF$4-(1.5*Sheet2!DF$3)))) ->  | DG21: =IF(DG2=0,"",IF(('Input Sheet'!DG$4-(1.5*Sheet2!DG$3))<'Input Sheet'!DG$16,'Input Sheet'!DG$16,IF(('Input Sheet'!DG$4-(1.5*Sheet2!DG$3))>'Input Sheet'!DG$15,'Input Sheet'!DG$15,'Input Sheet'!DG$4-(1.5*Sheet2!DG$3)))) ->  | DH21: =IF(DH2=0,"",IF(('Input Sheet'!DH$4-(1.5*Sheet2!DH$3))<'Input Sheet'!DH$16,'Input Sheet'!DH$16,IF(('Input Sheet'!DH$4-(1.5*Sheet2!DH$3))>'Input Sheet'!DH$15,'Input Sheet'!DH$15,'Input Sheet'!DH$4-(1.5*Sheet2!DH$3)))) ->  | DI21: =IF(DI2=0,"",IF(('Input Sheet'!DI$4-(1.5*Sheet2!DI$3))<'Input Sheet'!DI$16,'Input Sheet'!DI$16,IF(('Input Sheet'!DI$4-(1.5*Sheet2!DI$3))>'Input Sheet'!DI$15,'Input Sheet'!DI$15,'Input Sheet'!DI$4-(1.5*Sheet2!DI$3)))) ->  | DJ21: =IF(DJ2=0,"",IF(('Input Sheet'!DJ$4-(1.5*Sheet2!DJ$3))<'Input Sheet'!DJ$16,'Input Sheet'!DJ$16,IF(('Input Sheet'!DJ$4-(1.5*Sheet2!DJ$3))>'Input Sheet'!DJ$15,'Input Sheet'!DJ$15,'Input Sheet'!DJ$4-(1.5*Sheet2!DJ$3)))) ->  | DK21: =IF(DK2=0,"",IF(('Input Sheet'!DK$4-(1.5*Sheet2!DK$3))<'Input Sheet'!DK$16,'Input Sheet'!DK$16,IF(('Input Sheet'!DK$4-(1.5*Sheet2!DK$3))>'Input Sheet'!DK$15,'Input Sheet'!DK$15,'Input Sheet'!DK$4-(1.5*Sheet2!DK$3)))) ->  | DL21: =IF(DL2=0,"",IF(('Input Sheet'!DL$4-(1.5*Sheet2!DL$3))<'Input Sheet'!DL$16,'Input Sheet'!DL$16,IF(('Input Sheet'!DL$4-(1.5*Sheet2!DL$3))>'Input Sheet'!DL$15,'Input Sheet'!DL$15,'Input Sheet'!DL$4-(1.5*Sheet2!DL$3)))) ->  | DM21: =IF(DM2=0,"",IF(('Input Sheet'!DM$4-(1.5*Sheet2!DM$3))<'Input Sheet'!DM$16,'Input Sheet'!DM$16,IF(('Input Sheet'!DM$4-(1.5*Sheet2!DM$3))>'Input Sheet'!DM$15,'Input Sheet'!DM$15,'Input Sheet'!DM$4-(1.5*Sheet2!DM$3)))) ->  | DN21: =IF(DN2=0,"",IF(('Input Sheet'!DN$4-(1.5*Sheet2!DN$3))<'Input Sheet'!DN$16,'Input Sheet'!DN$16,IF(('Input Sheet'!DN$4-(1.5*Sheet2!DN$3))>'Input Sheet'!DN$15,'Input Sheet'!DN$15,'Input Sheet'!DN$4-(1.5*Sheet2!DN$3)))) ->  | DO21: =IF(DO2=0,"",IF(('Input Sheet'!DO$4-(1.5*Sheet2!DO$3))<'Input Sheet'!DO$16,'Input Sheet'!DO$16,IF(('Input Sheet'!DO$4-(1.5*Sheet2!DO$3))>'Input Sheet'!DO$15,'Input Sheet'!DO$15,'Input Sheet'!DO$4-(1.5*Sheet2!DO$3)))) ->  | DP21: =IF(DP2=0,"",IF(('Input Sheet'!DP$4-(1.5*Sheet2!DP$3))<'Input Sheet'!DP$16,'Input Sheet'!DP$16,IF(('Input Sheet'!DP$4-(1.5*Sheet2!DP$3))>'Input Sheet'!DP$15,'Input Sheet'!DP$15,'Input Sheet'!DP$4-(1.5*Sheet2!DP$3)))) ->  | DQ21: =IF(DQ2=0,"",IF(('Input Sheet'!DQ$4-(1.5*Sheet2!DQ$3))<'Input Sheet'!DQ$16,'Input Sheet'!DQ$16,IF(('Input Sheet'!DQ$4-(1.5*Sheet2!DQ$3))>'Input Sheet'!DQ$15,'Input Sheet'!DQ$15,'Input Sheet'!DQ$4-(1.5*Sheet2!DQ$3)))) ->  | DR21: =IF(DR2=0,"",IF(('Input Sheet'!DR$4-(1.5*Sheet2!DR$3))<'Input Sheet'!DR$16,'Input Sheet'!DR$16,IF(('Input Sheet'!DR$4-(1.5*Sheet2!DR$3))>'Input Sheet'!DR$15,'Input Sheet'!DR$15,'Input Sheet'!DR$4-(1.5*Sheet2!DR$3)))) ->  | DS21: =IF(DS2=0,"",IF(('Input Sheet'!DS$4-(1.5*Sheet2!DS$3))<'Input Sheet'!DS$16,'Input Sheet'!DS$16,IF(('Input Sheet'!DS$4-(1.5*Sheet2!DS$3))>'Input Sheet'!DS$15,'Input Sheet'!DS$15,'Input Sheet'!DS$4-(1.5*Sheet2!DS$3)))) ->  | DT21: =IF(DT2=0,"",IF(('Input Sheet'!DT$4-(1.5*Sheet2!DT$3))<'Input Sheet'!DT$16,'Input Sheet'!DT$16,IF(('Input Sheet'!DT$4-(1.5*Sheet2!DT$3))>'Input Sheet'!DT$15,'Input Sheet'!DT$15,'Input Sheet'!DT$4-(1.5*Sheet2!DT$3)))) ->  | DU21: =IF(DU2=0,"",IF(('Input Sheet'!DU$4-(1.5*Sheet2!DU$3))<'Input Sheet'!DU$16,'Input Sheet'!DU$16,IF(('Input Sheet'!DU$4-(1.5*Sheet2!DU$3))>'Input Sheet'!DU$15,'Input Sheet'!DU$15,'Input Sheet'!DU$4-(1.5*Sheet2!DU$3)))) ->  | DV21: =IF(DV2=0,"",IF(('Input Sheet'!DV$4-(1.5*Sheet2!DV$3))<'Input Sheet'!DV$16,'Input Sheet'!DV$16,IF(('Input Sheet'!DV$4-(1.5*Sheet2!DV$3))>'Input Sheet'!DV$15,'Input Sheet'!DV$15,'Input Sheet'!DV$4-(1.5*Sheet2!DV$3)))) ->  | DW21: =IF(DW2=0,"",IF(('Input Sheet'!DW$4-(1.5*Sheet2!DW$3))<'Input Sheet'!DW$16,'Input Sheet'!DW$16,IF(('Input Sheet'!DW$4-(1.5*Sheet2!DW$3))>'Input Sheet'!DW$15,'Input Sheet'!DW$15,'Input Sheet'!DW$4-(1.5*Sheet2!DW$3)))) ->  | DX21: =IF(DX2=0,"",IF(('Input Sheet'!DX$4-(1.5*Sheet2!DX$3))<'Input Sheet'!DX$16,'Input Sheet'!DX$16,IF(('Input Sheet'!DX$4-(1.5*Sheet2!DX$3))>'Input Sheet'!DX$15,'Input Sheet'!DX$15,'Input Sheet'!DX$4-(1.5*Sheet2!DX$3)))) ->  | DY21: =IF(DY2=0,"",IF(('Input Sheet'!DY$4-(1.5*Sheet2!DY$3))<'Input Sheet'!DY$16,'Input Sheet'!DY$16,IF(('Input Sheet'!DY$4-(1.5*Sheet2!DY$3))>'Input Sheet'!DY$15,'Input Sheet'!DY$15,'Input Sheet'!DY$4-(1.5*Sheet2!DY$3)))) ->  | DZ21: =IF(DZ2=0,"",IF(('Input Sheet'!DZ$4-(1.5*Sheet2!DZ$3))<'Input Sheet'!DZ$16,'Input Sheet'!DZ$16,IF(('Input Sheet'!DZ$4-(1.5*Sheet2!DZ$3))>'Input Sheet'!DZ$15,'Input Sheet'!DZ$15,'Input Sheet'!DZ$4-(1.5*Sheet2!DZ$3)))) ->  | EA21: =IF(EA2=0,"",IF(('Input Sheet'!EA$4-(1.5*Sheet2!EA$3))<'Input Sheet'!EA$16,'Input Sheet'!EA$16,IF(('Input Sheet'!EA$4-(1.5*Sheet2!EA$3))>'Input Sheet'!EA$15,'Input Sheet'!EA$15,'Input Sheet'!EA$4-(1.5*Sheet2!EA$3)))) ->  | EB21: =IF(EB2=0,"",IF(('Input Sheet'!EB$4-(1.5*Sheet2!EB$3))<'Input Sheet'!EB$16,'Input Sheet'!EB$16,IF(('Input Sheet'!EB$4-(1.5*Sheet2!EB$3))>'Input Sheet'!EB$15,'Input Sheet'!EB$15,'Input Sheet'!EB$4-(1.5*Sheet2!EB$3)))) ->  | EC21: =IF(EC2=0,"",IF(('Input Sheet'!EC$4-(1.5*Sheet2!EC$3))<'Input Sheet'!EC$16,'Input Sheet'!EC$16,IF(('Input Sheet'!EC$4-(1.5*Sheet2!EC$3))>'Input Sheet'!EC$15,'Input Sheet'!EC$15,'Input Sheet'!EC$4-(1.5*Sheet2!EC$3)))) ->  | ED21: =IF(ED2=0,"",IF(('Input Sheet'!ED$4-(1.5*Sheet2!ED$3))<'Input Sheet'!ED$16,'Input Sheet'!ED$16,IF(('Input Sheet'!ED$4-(1.5*Sheet2!ED$3))>'Input Sheet'!ED$15,'Input Sheet'!ED$15,'Input Sheet'!ED$4-(1.5*Sheet2!ED$3)))) ->  | EE21: =IF(EE2=0,"",IF(('Input Sheet'!EE$4-(1.5*Sheet2!EE$3))<'Input Sheet'!EE$16,'Input Sheet'!EE$16,IF(('Input Sheet'!EE$4-(1.5*Sheet2!EE$3))>'Input Sheet'!EE$15,'Input Sheet'!EE$15,'Input Sheet'!EE$4-(1.5*Sheet2!EE$3)))) ->  | EF21: =IF(EF2=0,"",IF(('Input Sheet'!EF$4-(1.5*Sheet2!EF$3))<'Input Sheet'!EF$16,'Input Sheet'!EF$16,IF(('Input Sheet'!EF$4-(1.5*Sheet2!EF$3))>'Input Sheet'!EF$15,'Input Sheet'!EF$15,'Input Sheet'!EF$4-(1.5*Sheet2!EF$3)))) ->  | EG21: =IF(EG2=0,"",IF(('Input Sheet'!EG$4-(1.5*Sheet2!EG$3))<'Input Sheet'!EG$16,'Input Sheet'!EG$16,IF(('Input Sheet'!EG$4-(1.5*Sheet2!EG$3))>'Input Sheet'!EG$15,'Input Sheet'!EG$15,'Input Sheet'!EG$4-(1.5*Sheet2!EG$3)))) ->  | EH21: =IF(EH2=0,"",IF(('Input Sheet'!EH$4-(1.5*Sheet2!EH$3))<'Input Sheet'!EH$16,'Input Sheet'!EH$16,IF(('Input Sheet'!EH$4-(1.5*Sheet2!EH$3))>'Input Sheet'!EH$15,'Input Sheet'!EH$15,'Input Sheet'!EH$4-(1.5*Sheet2!EH$3)))) ->  | EI21: =IF(EI2=0,"",IF(('Input Sheet'!EI$4-(1.5*Sheet2!EI$3))<'Input Sheet'!EI$16,'Input Sheet'!EI$16,IF(('Input Sheet'!EI$4-(1.5*Sheet2!EI$3))>'Input Sheet'!EI$15,'Input Sheet'!EI$15,'Input Sheet'!EI$4-(1.5*Sheet2!EI$3)))) ->  | EJ21: =IF(EJ2=0,"",IF(('Input Sheet'!EJ$4-(1.5*Sheet2!EJ$3))<'Input Sheet'!EJ$16,'Input Sheet'!EJ$16,IF(('Input Sheet'!EJ$4-(1.5*Sheet2!EJ$3))>'Input Sheet'!EJ$15,'Input Sheet'!EJ$15,'Input Sheet'!EJ$4-(1.5*Sheet2!EJ$3)))) ->  | EK21: =IF(EK2=0,"",IF(('Input Sheet'!EK$4-(1.5*Sheet2!EK$3))<'Input Sheet'!EK$16,'Input Sheet'!EK$16,IF(('Input Sheet'!EK$4-(1.5*Sheet2!EK$3))>'Input Sheet'!EK$15,'Input Sheet'!EK$15,'Input Sheet'!EK$4-(1.5*Sheet2!EK$3)))) ->  | EL21: =IF(EL2=0,"",IF(('Input Sheet'!EL$4-(1.5*Sheet2!EL$3))<'Input Sheet'!EL$16,'Input Sheet'!EL$16,IF(('Input Sheet'!EL$4-(1.5*Sheet2!EL$3))>'Input Sheet'!EL$15,'Input Sheet'!EL$15,'Input Sheet'!EL$4-(1.5*Sheet2!EL$3)))) ->  | EM21: =IF(EM2=0,"",IF(('Input Sheet'!EM$4-(1.5*Sheet2!EM$3))<'Input Sheet'!EM$16,'Input Sheet'!EM$16,IF(('Input Sheet'!EM$4-(1.5*Sheet2!EM$3))>'Input Sheet'!EM$15,'Input Sheet'!EM$15,'Input Sheet'!EM$4-(1.5*Sheet2!EM$3)))) ->  | EN21: =IF(EN2=0,"",IF(('Input Sheet'!EN$4-(1.5*Sheet2!EN$3))<'Input Sheet'!EN$16,'Input Sheet'!EN$16,IF(('Input Sheet'!EN$4-(1.5*Sheet2!EN$3))>'Input Sheet'!EN$15,'Input Sheet'!EN$15,'Input Sheet'!EN$4-(1.5*Sheet2!EN$3)))) ->  | EO21: =IF(EO2=0,"",IF(('Input Sheet'!EO$4-(1.5*Sheet2!EO$3))<'Input Sheet'!EO$16,'Input Sheet'!EO$16,IF(('Input Sheet'!EO$4-(1.5*Sheet2!EO$3))>'Input Sheet'!EO$15,'Input Sheet'!EO$15,'Input Sheet'!EO$4-(1.5*Sheet2!EO$3)))) ->  | EP21: =IF(EP2=0,"",IF(('Input Sheet'!EP$4-(1.5*Sheet2!EP$3))<'Input Sheet'!EP$16,'Input Sheet'!EP$16,IF(('Input Sheet'!EP$4-(1.5*Sheet2!EP$3))>'Input Sheet'!EP$15,'Input Sheet'!EP$15,'Input Sheet'!EP$4-(1.5*Sheet2!EP$3)))) ->  | EQ21: =IF(EQ2=0,"",IF(('Input Sheet'!EQ$4-(1.5*Sheet2!EQ$3))<'Input Sheet'!EQ$16,'Input Sheet'!EQ$16,IF(('Input Sheet'!EQ$4-(1.5*Sheet2!EQ$3))>'Input Sheet'!EQ$15,'Input Sheet'!EQ$15,'Input Sheet'!EQ$4-(1.5*Sheet2!EQ$3)))) ->  | ER21: =IF(ER2=0,"",IF(('Input Sheet'!ER$4-(1.5*Sheet2!ER$3))<'Input Sheet'!ER$16,'Input Sheet'!ER$16,IF(('Input Sheet'!ER$4-(1.5*Sheet2!ER$3))>'Input Sheet'!ER$15,'Input Sheet'!ER$15,'Input Sheet'!ER$4-(1.5*Sheet2!ER$3)))) ->  | ES21: =IF(ES2=0,"",IF(('Input Sheet'!ES$4-(1.5*Sheet2!ES$3))<'Input Sheet'!ES$16,'Input Sheet'!ES$16,IF(('Input Sheet'!ES$4-(1.5*Sheet2!ES$3))>'Input Sheet'!ES$15,'Input Sheet'!ES$15,'Input Sheet'!ES$4-(1.5*Sheet2!ES$3)))) ->  | ET21: =IF(ET2=0,"",IF(('Input Sheet'!ET$4-(1.5*Sheet2!ET$3))<'Input Sheet'!ET$16,'Input Sheet'!ET$16,IF(('Input Sheet'!ET$4-(1.5*Sheet2!ET$3))>'Input Sheet'!ET$15,'Input Sheet'!ET$15,'Input Sheet'!ET$4-(1.5*Sheet2!ET$3)))) ->  | EU21: =IF(EU2=0,"",IF(('Input Sheet'!EU$4-(1.5*Sheet2!EU$3))<'Input Sheet'!EU$16,'Input Sheet'!EU$16,IF(('Input Sheet'!EU$4-(1.5*Sheet2!EU$3))>'Input Sheet'!EU$15,'Input Sheet'!EU$15,'Input Sheet'!EU$4-(1.5*Sheet2!EU$3)))) ->  | EV21: =IF(EV2=0,"",IF(('Input Sheet'!EV$4-(1.5*Sheet2!EV$3))<'Input Sheet'!EV$16,'Input Sheet'!EV$16,IF(('Input Sheet'!EV$4-(1.5*Sheet2!EV$3))>'Input Sheet'!EV$15,'Input Sheet'!EV$15,'Input Sheet'!EV$4-(1.5*Sheet2!EV$3)))) ->  | EW21: =IF(EW2=0,"",IF(('Input Sheet'!EW$4-(1.5*Sheet2!EW$3))<'Input Sheet'!EW$16,'Input Sheet'!EW$16,IF(('Input Sheet'!EW$4-(1.5*Sheet2!EW$3))>'Input Sheet'!EW$15,'Input Sheet'!EW$15,'Input Sheet'!EW$4-(1.5*Sheet2!EW$3)))) ->  | EX21: =IF(EX2=0,"",IF(('Input Sheet'!EX$4-(1.5*Sheet2!EX$3))<'Input Sheet'!EX$16,'Input Sheet'!EX$16,IF(('Input Sheet'!EX$4-(1.5*Sheet2!EX$3))>'Input Sheet'!EX$15,'Input Sheet'!EX$15,'Input Sheet'!EX$4-(1.5*Sheet2!EX$3)))) ->  | EY21: =IF(EY2=0,"",IF(('Input Sheet'!EY$4-(1.5*Sheet2!EY$3))<'Input Sheet'!EY$16,'Input Sheet'!EY$16,IF(('Input Sheet'!EY$4-(1.5*Sheet2!EY$3))>'Input Sheet'!EY$15,'Input Sheet'!EY$15,'Input Sheet'!EY$4-(1.5*Sheet2!EY$3)))) ->  | EZ21: =IF(EZ2=0,"",IF(('Input Sheet'!EZ$4-(1.5*Sheet2!EZ$3))<'Input Sheet'!EZ$16,'Input Sheet'!EZ$16,IF(('Input Sheet'!EZ$4-(1.5*Sheet2!EZ$3))>'Input Sheet'!EZ$15,'Input Sheet'!EZ$15,'Input Sheet'!EZ$4-(1.5*Sheet2!EZ$3)))) ->  | FA21: =IF(FA2=0,"",IF(('Input Sheet'!FA$4-(1.5*Sheet2!FA$3))<'Input Sheet'!FA$16,'Input Sheet'!FA$16,IF(('Input Sheet'!FA$4-(1.5*Sheet2!FA$3))>'Input Sheet'!FA$15,'Input Sheet'!FA$15,'Input Sheet'!FA$4-(1.5*Sheet2!FA$3)))) ->  | FB21: =IF(FB2=0,"",IF(('Input Sheet'!FB$4-(1.5*Sheet2!FB$3))<'Input Sheet'!FB$16,'Input Sheet'!FB$16,IF(('Input Sheet'!FB$4-(1.5*Sheet2!FB$3))>'Input Sheet'!FB$15,'Input Sheet'!FB$15,'Input Sheet'!FB$4-(1.5*Sheet2!FB$3)))) ->  | FC21: =IF(FC2=0,"",IF(('Input Sheet'!FC$4-(1.5*Sheet2!FC$3))<'Input Sheet'!FC$16,'Input Sheet'!FC$16,IF(('Input Sheet'!FC$4-(1.5*Sheet2!FC$3))>'Input Sheet'!FC$15,'Input Sheet'!FC$15,'Input Sheet'!FC$4-(1.5*Sheet2!FC$3)))) ->  | FD21: =IF(FD2=0,"",IF(('Input Sheet'!FD$4-(1.5*Sheet2!FD$3))<'Input Sheet'!FD$16,'Input Sheet'!FD$16,IF(('Input Sheet'!FD$4-(1.5*Sheet2!FD$3))>'Input Sheet'!FD$15,'Input Sheet'!FD$15,'Input Sheet'!FD$4-(1.5*Sheet2!FD$3)))) ->  | FE21: =IF(FE2=0,"",IF(('Input Sheet'!FE$4-(1.5*Sheet2!FE$3))<'Input Sheet'!FE$16,'Input Sheet'!FE$16,IF(('Input Sheet'!FE$4-(1.5*Sheet2!FE$3))>'Input Sheet'!FE$15,'Input Sheet'!FE$15,'Input Sheet'!FE$4-(1.5*Sheet2!FE$3)))) ->  | FF21: =IF(FF2=0,"",IF(('Input Sheet'!FF$4-(1.5*Sheet2!FF$3))<'Input Sheet'!FF$16,'Input Sheet'!FF$16,IF(('Input Sheet'!FF$4-(1.5*Sheet2!FF$3))>'Input Sheet'!FF$15,'Input Sheet'!FF$15,'Input Sheet'!FF$4-(1.5*Sheet2!FF$3)))) ->  | FG21: =IF(FG2=0,"",IF(('Input Sheet'!FG$4-(1.5*Sheet2!FG$3))<'Input Sheet'!FG$16,'Input Sheet'!FG$16,IF(('Input Sheet'!FG$4-(1.5*Sheet2!FG$3))>'Input Sheet'!FG$15,'Input Sheet'!FG$15,'Input Sheet'!FG$4-(1.5*Sheet2!FG$3)))) ->  | FH21: =IF(FH2=0,"",IF(('Input Sheet'!FH$4-(1.5*Sheet2!FH$3))<'Input Sheet'!FH$16,'Input Sheet'!FH$16,IF(('Input Sheet'!FH$4-(1.5*Sheet2!FH$3))>'Input Sheet'!FH$15,'Input Sheet'!FH$15,'Input Sheet'!FH$4-(1.5*Sheet2!FH$3)))) ->  | FI21: =IF(FI2=0,"",IF(('Input Sheet'!FI$4-(1.5*Sheet2!FI$3))<'Input Sheet'!FI$16,'Input Sheet'!FI$16,IF(('Input Sheet'!FI$4-(1.5*Sheet2!FI$3))>'Input Sheet'!FI$15,'Input Sheet'!FI$15,'Input Sheet'!FI$4-(1.5*Sheet2!FI$3)))) ->  | FJ21: =IF(FJ2=0,"",IF(('Input Sheet'!FJ$4-(1.5*Sheet2!FJ$3))<'Input Sheet'!FJ$16,'Input Sheet'!FJ$16,IF(('Input Sheet'!FJ$4-(1.5*Sheet2!FJ$3))>'Input Sheet'!FJ$15,'Input Sheet'!FJ$15,'Input Sheet'!FJ$4-(1.5*Sheet2!FJ$3)))) ->  | FK21: =IF(FK2=0,"",IF(('Input Sheet'!FK$4-(1.5*Sheet2!FK$3))<'Input Sheet'!FK$16,'Input Sheet'!FK$16,IF(('Input Sheet'!FK$4-(1.5*Sheet2!FK$3))>'Input Sheet'!FK$15,'Input Sheet'!FK$15,'Input Sheet'!FK$4-(1.5*Sheet2!FK$3)))) ->  | FL21: =IF(FL2=0,"",IF(('Input Sheet'!FL$4-(1.5*Sheet2!FL$3))<'Input Sheet'!FL$16,'Input Sheet'!FL$16,IF(('Input Sheet'!FL$4-(1.5*Sheet2!FL$3))>'Input Sheet'!FL$15,'Input Sheet'!FL$15,'Input Sheet'!FL$4-(1.5*Sheet2!FL$3)))) ->  | FM21: =IF(FM2=0,"",IF(('Input Sheet'!FM$4-(1.5*Sheet2!FM$3))<'Input Sheet'!FM$16,'Input Sheet'!FM$16,IF(('Input Sheet'!FM$4-(1.5*Sheet2!FM$3))>'Input Sheet'!FM$15,'Input Sheet'!FM$15,'Input Sheet'!FM$4-(1.5*Sheet2!FM$3)))) ->  | FN21: =IF(FN2=0,"",IF(('Input Sheet'!FN$4-(1.5*Sheet2!FN$3))<'Input Sheet'!FN$16,'Input Sheet'!FN$16,IF(('Input Sheet'!FN$4-(1.5*Sheet2!FN$3))>'Input Sheet'!FN$15,'Input Sheet'!FN$15,'Input Sheet'!FN$4-(1.5*Sheet2!FN$3)))) ->  | FO21: =IF(FO2=0,"",IF(('Input Sheet'!FO$4-(1.5*Sheet2!FO$3))<'Input Sheet'!FO$16,'Input Sheet'!FO$16,IF(('Input Sheet'!FO$4-(1.5*Sheet2!FO$3))>'Input Sheet'!FO$15,'Input Sheet'!FO$15,'Input Sheet'!FO$4-(1.5*Sheet2!FO$3)))) ->  | FP21: =IF(FP2=0,"",IF(('Input Sheet'!FP$4-(1.5*Sheet2!FP$3))<'Input Sheet'!FP$16,'Input Sheet'!FP$16,IF(('Input Sheet'!FP$4-(1.5*Sheet2!FP$3))>'Input Sheet'!FP$15,'Input Sheet'!FP$15,'Input Sheet'!FP$4-(1.5*Sheet2!FP$3)))) ->  | FQ21: =IF(FQ2=0,"",IF(('Input Sheet'!FQ$4-(1.5*Sheet2!FQ$3))<'Input Sheet'!FQ$16,'Input Sheet'!FQ$16,IF(('Input Sheet'!FQ$4-(1.5*Sheet2!FQ$3))>'Input Sheet'!FQ$15,'Input Sheet'!FQ$15,'Input Sheet'!FQ$4-(1.5*Sheet2!FQ$3)))) ->  | FR21: =IF(FR2=0,"",IF(('Input Sheet'!FR$4-(1.5*Sheet2!FR$3))<'Input Sheet'!FR$16,'Input Sheet'!FR$16,IF(('Input Sheet'!FR$4-(1.5*Sheet2!FR$3))>'Input Sheet'!FR$15,'Input Sheet'!FR$15,'Input Sheet'!FR$4-(1.5*Sheet2!FR$3)))) ->  | FS21: =IF(FS2=0,"",IF(('Input Sheet'!FS$4-(1.5*Sheet2!FS$3))<'Input Sheet'!FS$16,'Input Sheet'!FS$16,IF(('Input Sheet'!FS$4-(1.5*Sheet2!FS$3))>'Input Sheet'!FS$15,'Input Sheet'!FS$15,'Input Sheet'!FS$4-(1.5*Sheet2!FS$3)))) ->  | FT21: =IF(FT2=0,"",IF(('Input Sheet'!FT$4-(1.5*Sheet2!FT$3))<'Input Sheet'!FT$16,'Input Sheet'!FT$16,IF(('Input Sheet'!FT$4-(1.5*Sheet2!FT$3))>'Input Sheet'!FT$15,'Input Sheet'!FT$15,'Input Sheet'!FT$4-(1.5*Sheet2!FT$3)))) ->  | FU21: =IF(FU2=0,"",IF(('Input Sheet'!FU$4-(1.5*Sheet2!FU$3))<'Input Sheet'!FU$16,'Input Sheet'!FU$16,IF(('Input Sheet'!FU$4-(1.5*Sheet2!FU$3))>'Input Sheet'!FU$15,'Input Sheet'!FU$15,'Input Sheet'!FU$4-(1.5*Sheet2!FU$3)))) ->  | FV21: =IF(FV2=0,"",IF(('Input Sheet'!FV$4-(1.5*Sheet2!FV$3))<'Input Sheet'!FV$16,'Input Sheet'!FV$16,IF(('Input Sheet'!FV$4-(1.5*Sheet2!FV$3))>'Input Sheet'!FV$15,'Input Sheet'!FV$15,'Input Sheet'!FV$4-(1.5*Sheet2!FV$3)))) ->  | FW21: =IF(FW2=0,"",IF(('Input Sheet'!FW$4-(1.5*Sheet2!FW$3))<'Input Sheet'!FW$16,'Input Sheet'!FW$16,IF(('Input Sheet'!FW$4-(1.5*Sheet2!FW$3))>'Input Sheet'!FW$15,'Input Sheet'!FW$15,'Input Sheet'!FW$4-(1.5*Sheet2!FW$3)))) ->  | FX21: =IF(FX2=0,"",IF(('Input Sheet'!FX$4-(1.5*Sheet2!FX$3))<'Input Sheet'!FX$16,'Input Sheet'!FX$16,IF(('Input Sheet'!FX$4-(1.5*Sheet2!FX$3))>'Input Sheet'!FX$15,'Input Sheet'!FX$15,'Input Sheet'!FX$4-(1.5*Sheet2!FX$3)))) ->  | FY21: =IF(FY2=0,"",IF(('Input Sheet'!FY$4-(1.5*Sheet2!FY$3))<'Input Sheet'!FY$16,'Input Sheet'!FY$16,IF(('Input Sheet'!FY$4-(1.5*Sheet2!FY$3))>'Input Sheet'!FY$15,'Input Sheet'!FY$15,'Input Sheet'!FY$4-(1.5*Sheet2!FY$3)))) ->  | FZ21: =IF(FZ2=0,"",IF(('Input Sheet'!FZ$4-(1.5*Sheet2!FZ$3))<'Input Sheet'!FZ$16,'Input Sheet'!FZ$16,IF(('Input Sheet'!FZ$4-(1.5*Sheet2!FZ$3))>'Input Sheet'!FZ$15,'Input Sheet'!FZ$15,'Input Sheet'!FZ$4-(1.5*Sheet2!FZ$3)))) ->  | GA21: =IF(GA2=0,"",IF(('Input Sheet'!GA$4-(1.5*Sheet2!GA$3))<'Input Sheet'!GA$16,'Input Sheet'!GA$16,IF(('Input Sheet'!GA$4-(1.5*Sheet2!GA$3))>'Input Sheet'!GA$15,'Input Sheet'!GA$15,'Input Sheet'!GA$4-(1.5*Sheet2!GA$3)))) ->  | GB21: =IF(GB2=0,"",IF(('Input Sheet'!GB$4-(1.5*Sheet2!GB$3))<'Input Sheet'!GB$16,'Input Sheet'!GB$16,IF(('Input Sheet'!GB$4-(1.5*Sheet2!GB$3))>'Input Sheet'!GB$15,'Input Sheet'!GB$15,'Input Sheet'!GB$4-(1.5*Sheet2!GB$3)))) ->  | GC21: =IF(GC2=0,"",IF(('Input Sheet'!GC$4-(1.5*Sheet2!GC$3))<'Input Sheet'!GC$16,'Input Sheet'!GC$16,IF(('Input Sheet'!GC$4-(1.5*Sheet2!GC$3))>'Input Sheet'!GC$15,'Input Sheet'!GC$15,'Input Sheet'!GC$4-(1.5*Sheet2!GC$3)))) ->  | GD21: =IF(GD2=0,"",IF(('Input Sheet'!GD$4-(1.5*Sheet2!GD$3))<'Input Sheet'!GD$16,'Input Sheet'!GD$16,IF(('Input Sheet'!GD$4-(1.5*Sheet2!GD$3))>'Input Sheet'!GD$15,'Input Sheet'!GD$15,'Input Sheet'!GD$4-(1.5*Sheet2!GD$3)))) ->  | GE21: =IF(GE2=0,"",IF(('Input Sheet'!GE$4-(1.5*Sheet2!GE$3))<'Input Sheet'!GE$16,'Input Sheet'!GE$16,IF(('Input Sheet'!GE$4-(1.5*Sheet2!GE$3))>'Input Sheet'!GE$15,'Input Sheet'!GE$15,'Input Sheet'!GE$4-(1.5*Sheet2!GE$3)))) ->  | GF21: =IF(GF2=0,"",IF(('Input Sheet'!GF$4-(1.5*Sheet2!GF$3))<'Input Sheet'!GF$16,'Input Sheet'!GF$16,IF(('Input Sheet'!GF$4-(1.5*Sheet2!GF$3))>'Input Sheet'!GF$15,'Input Sheet'!GF$15,'Input Sheet'!GF$4-(1.5*Sheet2!GF$3)))) ->  | GG21: =IF(GG2=0,"",IF(('Input Sheet'!GG$4-(1.5*Sheet2!GG$3))<'Input Sheet'!GG$16,'Input Sheet'!GG$16,IF(('Input Sheet'!GG$4-(1.5*Sheet2!GG$3))>'Input Sheet'!GG$15,'Input Sheet'!GG$15,'Input Sheet'!GG$4-(1.5*Sheet2!GG$3)))) ->  | GH21: =IF(GH2=0,"",IF(('Input Sheet'!GH$4-(1.5*Sheet2!GH$3))<'Input Sheet'!GH$16,'Input Sheet'!GH$16,IF(('Input Sheet'!GH$4-(1.5*Sheet2!GH$3))>'Input Sheet'!GH$15,'Input Sheet'!GH$15,'Input Sheet'!GH$4-(1.5*Sheet2!GH$3)))) ->  | GI21: =IF(GI2=0,"",IF(('Input Sheet'!GI$4-(1.5*Sheet2!GI$3))<'Input Sheet'!GI$16,'Input Sheet'!GI$16,IF(('Input Sheet'!GI$4-(1.5*Sheet2!GI$3))>'Input Sheet'!GI$15,'Input Sheet'!GI$15,'Input Sheet'!GI$4-(1.5*Sheet2!GI$3)))) ->  | GJ21: =IF(GJ2=0,"",IF(('Input Sheet'!GJ$4-(1.5*Sheet2!GJ$3))<'Input Sheet'!GJ$16,'Input Sheet'!GJ$16,IF(('Input Sheet'!GJ$4-(1.5*Sheet2!GJ$3))>'Input Sheet'!GJ$15,'Input Sheet'!GJ$15,'Input Sheet'!GJ$4-(1.5*Sheet2!GJ$3)))) ->  | GK21: =IF(GK2=0,"",IF(('Input Sheet'!GK$4-(1.5*Sheet2!GK$3))<'Input Sheet'!GK$16,'Input Sheet'!GK$16,IF(('Input Sheet'!GK$4-(1.5*Sheet2!GK$3))>'Input Sheet'!GK$15,'Input Sheet'!GK$15,'Input Sheet'!GK$4-(1.5*Sheet2!GK$3)))) ->  | GL21: =IF(GL2=0,"",IF(('Input Sheet'!GL$4-(1.5*Sheet2!GL$3))<'Input Sheet'!GL$16,'Input Sheet'!GL$16,IF(('Input Sheet'!GL$4-(1.5*Sheet2!GL$3))>'Input Sheet'!GL$15,'Input Sheet'!GL$15,'Input Sheet'!GL$4-(1.5*Sheet2!GL$3)))) ->  | GM21: =IF(GM2=0,"",IF(('Input Sheet'!GM$4-(1.5*Sheet2!GM$3))<'Input Sheet'!GM$16,'Input Sheet'!GM$16,IF(('Input Sheet'!GM$4-(1.5*Sheet2!GM$3))>'Input Sheet'!GM$15,'Input Sheet'!GM$15,'Input Sheet'!GM$4-(1.5*Sheet2!GM$3)))) ->  | GN21: =IF(GN2=0,"",IF(('Input Sheet'!GN$4-(1.5*Sheet2!GN$3))<'Input Sheet'!GN$16,'Input Sheet'!GN$16,IF(('Input Sheet'!GN$4-(1.5*Sheet2!GN$3))>'Input Sheet'!GN$15,'Input Sheet'!GN$15,'Input Sheet'!GN$4-(1.5*Sheet2!GN$3)))) ->  | GO21: =IF(GO2=0,"",IF(('Input Sheet'!GO$4-(1.5*Sheet2!GO$3))<'Input Sheet'!GO$16,'Input Sheet'!GO$16,IF(('Input Sheet'!GO$4-(1.5*Sheet2!GO$3))>'Input Sheet'!GO$15,'Input Sheet'!GO$15,'Input Sheet'!GO$4-(1.5*Sheet2!GO$3)))) ->  | GP21: =IF(GP2=0,"",IF(('Input Sheet'!GP$4-(1.5*Sheet2!GP$3))<'Input Sheet'!GP$16,'Input Sheet'!GP$16,IF(('Input Sheet'!GP$4-(1.5*Sheet2!GP$3))>'Input Sheet'!GP$15,'Input Sheet'!GP$15,'Input Sheet'!GP$4-(1.5*Sheet2!GP$3)))) ->  | GQ21: =IF(GQ2=0,"",IF(('Input Sheet'!GQ$4-(1.5*Sheet2!GQ$3))<'Input Sheet'!GQ$16,'Input Sheet'!GQ$16,IF(('Input Sheet'!GQ$4-(1.5*Sheet2!GQ$3))>'Input Sheet'!GQ$15,'Input Sheet'!GQ$15,'Input Sheet'!GQ$4-(1.5*Sheet2!GQ$3)))) ->  | GR21: =IF(GR2=0,"",IF(('Input Sheet'!GR$4-(1.5*Sheet2!GR$3))<'Input Sheet'!GR$16,'Input Sheet'!GR$16,IF(('Input Sheet'!GR$4-(1.5*Sheet2!GR$3))>'Input Sheet'!GR$15,'Input Sheet'!GR$15,'Input Sheet'!GR$4-(1.5*Sheet2!GR$3)))) ->  | GS21: =IF(GS2=0,"",IF(('Input Sheet'!GS$4-(1.5*Sheet2!GS$3))<'Input Sheet'!GS$16,'Input Sheet'!GS$16,IF(('Input Sheet'!GS$4-(1.5*Sheet2!GS$3))>'Input Sheet'!GS$15,'Input Sheet'!GS$15,'Input Sheet'!GS$4-(1.5*Sheet2!GS$3)))) ->  | GT21: =IF(GT2=0,"",IF(('Input Sheet'!GT$4-(1.5*Sheet2!GT$3))<'Input Sheet'!GT$16,'Input Sheet'!GT$16,IF(('Input Sheet'!GT$4-(1.5*Sheet2!GT$3))>'Input Sheet'!GT$15,'Input Sheet'!GT$15,'Input Sheet'!GT$4-(1.5*Sheet2!GT$3)))) ->  | GU21: =IF(GU2=0,"",IF(('Input Sheet'!GU$4-(1.5*Sheet2!GU$3))<'Input Sheet'!GU$16,'Input Sheet'!GU$16,IF(('Input Sheet'!GU$4-(1.5*Sheet2!GU$3))>'Input Sheet'!GU$15,'Input Sheet'!GU$15,'Input Sheet'!GU$4-(1.5*Sheet2!GU$3)))) ->  | GV21: =IF(GV2=0,"",IF(('Input Sheet'!GV$4-(1.5*Sheet2!GV$3))<'Input Sheet'!GV$16,'Input Sheet'!GV$16,IF(('Input Sheet'!GV$4-(1.5*Sheet2!GV$3))>'Input Sheet'!GV$15,'Input Sheet'!GV$15,'Input Sheet'!GV$4-(1.5*Sheet2!GV$3)))) ->  | GW21: =IF(GW2=0,"",IF(('Input Sheet'!GW$4-(1.5*Sheet2!GW$3))<'Input Sheet'!GW$16,'Input Sheet'!GW$16,IF(('Input Sheet'!GW$4-(1.5*Sheet2!GW$3))>'Input Sheet'!GW$15,'Input Sheet'!GW$15,'Input Sheet'!GW$4-(1.5*Sheet2!GW$3)))) ->  | GX21: =IF(GX2=0,"",IF(('Input Sheet'!GX$4-(1.5*Sheet2!GX$3))<'Input Sheet'!GX$16,'Input Sheet'!GX$16,IF(('Input Sheet'!GX$4-(1.5*Sheet2!GX$3))>'Input Sheet'!GX$15,'Input Sheet'!GX$15,'Input Sheet'!GX$4-(1.5*Sheet2!GX$3)))) ->  | GY21: =IF(GY2=0,"",IF(('Input Sheet'!GY$4-(1.5*Sheet2!GY$3))<'Input Sheet'!GY$16,'Input Sheet'!GY$16,IF(('Input Sheet'!GY$4-(1.5*Sheet2!GY$3))>'Input Sheet'!GY$15,'Input Sheet'!GY$15,'Input Sheet'!GY$4-(1.5*Sheet2!GY$3)))) ->  | GZ21: =IF(GZ2=0,"",IF(('Input Sheet'!GZ$4-(1.5*Sheet2!GZ$3))<'Input Sheet'!GZ$16,'Input Sheet'!GZ$16,IF(('Input Sheet'!GZ$4-(1.5*Sheet2!GZ$3))>'Input Sheet'!GZ$15,'Input Sheet'!GZ$15,'Input Sheet'!GZ$4-(1.5*Sheet2!GZ$3)))) ->  | HA21: =IF(HA2=0,"",IF(('Input Sheet'!HA$4-(1.5*Sheet2!HA$3))<'Input Sheet'!HA$16,'Input Sheet'!HA$16,IF(('Input Sheet'!HA$4-(1.5*Sheet2!HA$3))>'Input Sheet'!HA$15,'Input Sheet'!HA$15,'Input Sheet'!HA$4-(1.5*Sheet2!HA$3)))) ->  | HB21: =IF(HB2=0,"",IF(('Input Sheet'!HB$4-(1.5*Sheet2!HB$3))<'Input Sheet'!HB$16,'Input Sheet'!HB$16,IF(('Input Sheet'!HB$4-(1.5*Sheet2!HB$3))>'Input Sheet'!HB$15,'Input Sheet'!HB$15,'Input Sheet'!HB$4-(1.5*Sheet2!HB$3)))) ->  | HC21: =IF(HC2=0,"",IF(('Input Sheet'!HC$4-(1.5*Sheet2!HC$3))<'Input Sheet'!HC$16,'Input Sheet'!HC$16,IF(('Input Sheet'!HC$4-(1.5*Sheet2!HC$3))>'Input Sheet'!HC$15,'Input Sheet'!HC$15,'Input Sheet'!HC$4-(1.5*Sheet2!HC$3)))) ->  | HD21: =IF(HD2=0,"",IF(('Input Sheet'!HD$4-(1.5*Sheet2!HD$3))<'Input Sheet'!HD$16,'Input Sheet'!HD$16,IF(('Input Sheet'!HD$4-(1.5*Sheet2!HD$3))>'Input Sheet'!HD$15,'Input Sheet'!HD$15,'Input Sheet'!HD$4-(1.5*Sheet2!HD$3)))) ->  | HE21: =IF(HE2=0,"",IF(('Input Sheet'!HE$4-(1.5*Sheet2!HE$3))<'Input Sheet'!HE$16,'Input Sheet'!HE$16,IF(('Input Sheet'!HE$4-(1.5*Sheet2!HE$3))>'Input Sheet'!HE$15,'Input Sheet'!HE$15,'Input Sheet'!HE$4-(1.5*Sheet2!HE$3)))) ->  | HF21: =IF(HF2=0,"",IF(('Input Sheet'!HF$4-(1.5*Sheet2!HF$3))<'Input Sheet'!HF$16,'Input Sheet'!HF$16,IF(('Input Sheet'!HF$4-(1.5*Sheet2!HF$3))>'Input Sheet'!HF$15,'Input Sheet'!HF$15,'Input Sheet'!HF$4-(1.5*Sheet2!HF$3)))) ->  | HG21: =IF(HG2=0,"",IF(('Input Sheet'!HG$4-(1.5*Sheet2!HG$3))<'Input Sheet'!HG$16,'Input Sheet'!HG$16,IF(('Input Sheet'!HG$4-(1.5*Sheet2!HG$3))>'Input Sheet'!HG$15,'Input Sheet'!HG$15,'Input Sheet'!HG$4-(1.5*Sheet2!HG$3)))) ->  | HH21: =IF(HH2=0,"",IF(('Input Sheet'!HH$4-(1.5*Sheet2!HH$3))<'Input Sheet'!HH$16,'Input Sheet'!HH$16,IF(('Input Sheet'!HH$4-(1.5*Sheet2!HH$3))>'Input Sheet'!HH$15,'Input Sheet'!HH$15,'Input Sheet'!HH$4-(1.5*Sheet2!HH$3)))) ->  | HI21: =IF(HI2=0,"",IF(('Input Sheet'!HI$4-(1.5*Sheet2!HI$3))<'Input Sheet'!HI$16,'Input Sheet'!HI$16,IF(('Input Sheet'!HI$4-(1.5*Sheet2!HI$3))>'Input Sheet'!HI$15,'Input Sheet'!HI$15,'Input Sheet'!HI$4-(1.5*Sheet2!HI$3)))) ->  | HJ21: =IF(HJ2=0,"",IF(('Input Sheet'!HJ$4-(1.5*Sheet2!HJ$3))<'Input Sheet'!HJ$16,'Input Sheet'!HJ$16,IF(('Input Sheet'!HJ$4-(1.5*Sheet2!HJ$3))>'Input Sheet'!HJ$15,'Input Sheet'!HJ$15,'Input Sheet'!HJ$4-(1.5*Sheet2!HJ$3)))) ->  | HK21: =IF(HK2=0,"",IF(('Input Sheet'!HK$4-(1.5*Sheet2!HK$3))<'Input Sheet'!HK$16,'Input Sheet'!HK$16,IF(('Input Sheet'!HK$4-(1.5*Sheet2!HK$3))>'Input Sheet'!HK$15,'Input Sheet'!HK$15,'Input Sheet'!HK$4-(1.5*Sheet2!HK$3)))) ->  | HL21: =IF(HL2=0,"",IF(('Input Sheet'!HL$4-(1.5*Sheet2!HL$3))<'Input Sheet'!HL$16,'Input Sheet'!HL$16,IF(('Input Sheet'!HL$4-(1.5*Sheet2!HL$3))>'Input Sheet'!HL$15,'Input Sheet'!HL$15,'Input Sheet'!HL$4-(1.5*Sheet2!HL$3)))) ->  | HM21: =IF(HM2=0,"",IF(('Input Sheet'!HM$4-(1.5*Sheet2!HM$3))<'Input Sheet'!HM$16,'Input Sheet'!HM$16,IF(('Input Sheet'!HM$4-(1.5*Sheet2!HM$3))>'Input Sheet'!HM$15,'Input Sheet'!HM$15,'Input Sheet'!HM$4-(1.5*Sheet2!HM$3)))) ->  | HN21: =IF(HN2=0,"",IF(('Input Sheet'!HN$4-(1.5*Sheet2!HN$3))<'Input Sheet'!HN$16,'Input Sheet'!HN$16,IF(('Input Sheet'!HN$4-(1.5*Sheet2!HN$3))>'Input Sheet'!HN$15,'Input Sheet'!HN$15,'Input Sheet'!HN$4-(1.5*Sheet2!HN$3)))) ->  | HO21: =IF(HO2=0,"",IF(('Input Sheet'!HO$4-(1.5*Sheet2!HO$3))<'Input Sheet'!HO$16,'Input Sheet'!HO$16,IF(('Input Sheet'!HO$4-(1.5*Sheet2!HO$3))>'Input Sheet'!HO$15,'Input Sheet'!HO$15,'Input Sheet'!HO$4-(1.5*Sheet2!HO$3)))) ->  | HP21: =IF(HP2=0,"",IF(('Input Sheet'!HP$4-(1.5*Sheet2!HP$3))<'Input Sheet'!HP$16,'Input Sheet'!HP$16,IF(('Input Sheet'!HP$4-(1.5*Sheet2!HP$3))>'Input Sheet'!HP$15,'Input Sheet'!HP$15,'Input Sheet'!HP$4-(1.5*Sheet2!HP$3)))) ->  | HQ21: =IF(HQ2=0,"",IF(('Input Sheet'!HQ$4-(1.5*Sheet2!HQ$3))<'Input Sheet'!HQ$16,'Input Sheet'!HQ$16,IF(('Input Sheet'!HQ$4-(1.5*Sheet2!HQ$3))>'Input Sheet'!HQ$15,'Input Sheet'!HQ$15,'Input Sheet'!HQ$4-(1.5*Sheet2!HQ$3)))) ->  | HR21: =IF(HR2=0,"",IF(('Input Sheet'!HR$4-(1.5*Sheet2!HR$3))<'Input Sheet'!HR$16,'Input Sheet'!HR$16,IF(('Input Sheet'!HR$4-(1.5*Sheet2!HR$3))>'Input Sheet'!HR$15,'Input Sheet'!HR$15,'Input Sheet'!HR$4-(1.5*Sheet2!HR$3)))) ->  | HS21: =IF(HS2=0,"",IF(('Input Sheet'!HS$4-(1.5*Sheet2!HS$3))<'Input Sheet'!HS$16,'Input Sheet'!HS$16,IF(('Input Sheet'!HS$4-(1.5*Sheet2!HS$3))>'Input Sheet'!HS$15,'Input Sheet'!HS$15,'Input Sheet'!HS$4-(1.5*Sheet2!HS$3)))) ->  | HT21: =IF(HT2=0,"",IF(('Input Sheet'!HT$4-(1.5*Sheet2!HT$3))<'Input Sheet'!HT$16,'Input Sheet'!HT$16,IF(('Input Sheet'!HT$4-(1.5*Sheet2!HT$3))>'Input Sheet'!HT$15,'Input Sheet'!HT$15,'Input Sheet'!HT$4-(1.5*Sheet2!HT$3)))) ->  | HU21: =IF(HU2=0,"",IF(('Input Sheet'!HU$4-(1.5*Sheet2!HU$3))<'Input Sheet'!HU$16,'Input Sheet'!HU$16,IF(('Input Sheet'!HU$4-(1.5*Sheet2!HU$3))>'Input Sheet'!HU$15,'Input Sheet'!HU$15,'Input Sheet'!HU$4-(1.5*Sheet2!HU$3)))) ->  | HV21: =IF(HV2=0,"",IF(('Input Sheet'!HV$4-(1.5*Sheet2!HV$3))<'Input Sheet'!HV$16,'Input Sheet'!HV$16,IF(('Input Sheet'!HV$4-(1.5*Sheet2!HV$3))>'Input Sheet'!HV$15,'Input Sheet'!HV$15,'Input Sheet'!HV$4-(1.5*Sheet2!HV$3)))) ->  | HW21: =IF(HW2=0,"",IF(('Input Sheet'!HW$4-(1.5*Sheet2!HW$3))<'Input Sheet'!HW$16,'Input Sheet'!HW$16,IF(('Input Sheet'!HW$4-(1.5*Sheet2!HW$3))>'Input Sheet'!HW$15,'Input Sheet'!HW$15,'Input Sheet'!HW$4-(1.5*Sheet2!HW$3)))) ->  | HX21: =IF(HX2=0,"",IF(('Input Sheet'!HX$4-(1.5*Sheet2!HX$3))<'Input Sheet'!HX$16,'Input Sheet'!HX$16,IF(('Input Sheet'!HX$4-(1.5*Sheet2!HX$3))>'Input Sheet'!HX$15,'Input Sheet'!HX$15,'Input Sheet'!HX$4-(1.5*Sheet2!HX$3)))) ->  | HY21: =IF(HY2=0,"",IF(('Input Sheet'!HY$4-(1.5*Sheet2!HY$3))<'Input Sheet'!HY$16,'Input Sheet'!HY$16,IF(('Input Sheet'!HY$4-(1.5*Sheet2!HY$3))>'Input Sheet'!HY$15,'Input Sheet'!HY$15,'Input Sheet'!HY$4-(1.5*Sheet2!HY$3)))) ->  | HZ21: =IF(HZ2=0,"",IF(('Input Sheet'!HZ$4-(1.5*Sheet2!HZ$3))<'Input Sheet'!HZ$16,'Input Sheet'!HZ$16,IF(('Input Sheet'!HZ$4-(1.5*Sheet2!HZ$3))>'Input Sheet'!HZ$15,'Input Sheet'!HZ$15,'Input Sheet'!HZ$4-(1.5*Sheet2!HZ$3)))) ->  | IA21: =IF(IA2=0,"",IF(('Input Sheet'!IA$4-(1.5*Sheet2!IA$3))<'Input Sheet'!IA$16,'Input Sheet'!IA$16,IF(('Input Sheet'!IA$4-(1.5*Sheet2!IA$3))>'Input Sheet'!IA$15,'Input Sheet'!IA$15,'Input Sheet'!IA$4-(1.5*Sheet2!IA$3)))) ->  | IB21: =IF(IB2=0,"",IF(('Input Sheet'!IB$4-(1.5*Sheet2!IB$3))<'Input Sheet'!IB$16,'Input Sheet'!IB$16,IF(('Input Sheet'!IB$4-(1.5*Sheet2!IB$3))>'Input Sheet'!IB$15,'Input Sheet'!IB$15,'Input Sheet'!IB$4-(1.5*Sheet2!IB$3)))) ->  | IC21: =IF(IC2=0,"",IF(('Input Sheet'!IC$4-(1.5*Sheet2!IC$3))<'Input Sheet'!IC$16,'Input Sheet'!IC$16,IF(('Input Sheet'!IC$4-(1.5*Sheet2!IC$3))>'Input Sheet'!IC$15,'Input Sheet'!IC$15,'Input Sheet'!IC$4-(1.5*Sheet2!IC$3)))) ->  | ID21: =IF(ID2=0,"",IF(('Input Sheet'!ID$4-(1.5*Sheet2!ID$3))<'Input Sheet'!ID$16,'Input Sheet'!ID$16,IF(('Input Sheet'!ID$4-(1.5*Sheet2!ID$3))>'Input Sheet'!ID$15,'Input Sheet'!ID$15,'Input Sheet'!ID$4-(1.5*Sheet2!ID$3)))) ->  | IE21: =IF(IE2=0,"",IF(('Input Sheet'!IE$4-(1.5*Sheet2!IE$3))<'Input Sheet'!IE$16,'Input Sheet'!IE$16,IF(('Input Sheet'!IE$4-(1.5*Sheet2!IE$3))>'Input Sheet'!IE$15,'Input Sheet'!IE$15,'Input Sheet'!IE$4-(1.5*Sheet2!IE$3)))) ->  | IF21: =IF(IF2=0,"",IF(('Input Sheet'!IF$4-(1.5*Sheet2!IF$3))<'Input Sheet'!IF$16,'Input Sheet'!IF$16,IF(('Input Sheet'!IF$4-(1.5*Sheet2!IF$3))>'Input Sheet'!IF$15,'Input Sheet'!IF$15,'Input Sheet'!IF$4-(1.5*Sheet2!IF$3)))) ->  | IG21: =IF(IG2=0,"",IF(('Input Sheet'!IG$4-(1.5*Sheet2!IG$3))<'Input Sheet'!IG$16,'Input Sheet'!IG$16,IF(('Input Sheet'!IG$4-(1.5*Sheet2!IG$3))>'Input Sheet'!IG$15,'Input Sheet'!IG$15,'Input Sheet'!IG$4-(1.5*Sheet2!IG$3)))) ->  | IH21: =IF(IH2=0,"",IF(('Input Sheet'!IH$4-(1.5*Sheet2!IH$3))<'Input Sheet'!IH$16,'Input Sheet'!IH$16,IF(('Input Sheet'!IH$4-(1.5*Sheet2!IH$3))>'Input Sheet'!IH$15,'Input Sheet'!IH$15,'Input Sheet'!IH$4-(1.5*Sheet2!IH$3)))) ->  | II21: =IF(II2=0,"",IF(('Input Sheet'!II$4-(1.5*Sheet2!II$3))<'Input Sheet'!II$16,'Input Sheet'!II$16,IF(('Input Sheet'!II$4-(1.5*Sheet2!II$3))>'Input Sheet'!II$15,'Input Sheet'!II$15,'Input Sheet'!II$4-(1.5*Sheet2!II$3)))) ->  | IJ21: =IF(IJ2=0,"",IF(('Input Sheet'!IJ$4-(1.5*Sheet2!IJ$3))<'Input Sheet'!IJ$16,'Input Sheet'!IJ$16,IF(('Input Sheet'!IJ$4-(1.5*Sheet2!IJ$3))>'Input Sheet'!IJ$15,'Input Sheet'!IJ$15,'Input Sheet'!IJ$4-(1.5*Sheet2!IJ$3)))) ->  | IK21: =IF(IK2=0,"",IF(('Input Sheet'!IK$4-(1.5*Sheet2!IK$3))<'Input Sheet'!IK$16,'Input Sheet'!IK$16,IF(('Input Sheet'!IK$4-(1.5*Sheet2!IK$3))>'Input Sheet'!IK$15,'Input Sheet'!IK$15,'Input Sheet'!IK$4-(1.5*Sheet2!IK$3)))) ->  | IL21: =IF(IL2=0,"",IF(('Input Sheet'!IL$4-(1.5*Sheet2!IL$3))<'Input Sheet'!IL$16,'Input Sheet'!IL$16,IF(('Input Sheet'!IL$4-(1.5*Sheet2!IL$3))>'Input Sheet'!IL$15,'Input Sheet'!IL$15,'Input Sheet'!IL$4-(1.5*Sheet2!IL$3)))) ->  | IM21: =IF(IM2=0,"",IF(('Input Sheet'!IM$4-(1.5*Sheet2!IM$3))<'Input Sheet'!IM$16,'Input Sheet'!IM$16,IF(('Input Sheet'!IM$4-(1.5*Sheet2!IM$3))>'Input Sheet'!IM$15,'Input Sheet'!IM$15,'Input Sheet'!IM$4-(1.5*Sheet2!IM$3)))) ->  | IN21: =IF(IN2=0,"",IF(('Input Sheet'!IN$4-(1.5*Sheet2!IN$3))<'Input Sheet'!IN$16,'Input Sheet'!IN$16,IF(('Input Sheet'!IN$4-(1.5*Sheet2!IN$3))>'Input Sheet'!IN$15,'Input Sheet'!IN$15,'Input Sheet'!IN$4-(1.5*Sheet2!IN$3)))) ->  | IO21: =IF(IO2=0,"",IF(('Input Sheet'!IO$4-(1.5*Sheet2!IO$3))<'Input Sheet'!IO$16,'Input Sheet'!IO$16,IF(('Input Sheet'!IO$4-(1.5*Sheet2!IO$3))>'Input Sheet'!IO$15,'Input Sheet'!IO$15,'Input Sheet'!IO$4-(1.5*Sheet2!IO$3)))) ->  | IP21: =IF(IP2=0,"",IF(('Input Sheet'!IP$4-(1.5*Sheet2!IP$3))<'Input Sheet'!IP$16,'Input Sheet'!IP$16,IF(('Input Sheet'!IP$4-(1.5*Sheet2!IP$3))>'Input Sheet'!IP$15,'Input Sheet'!IP$15,'Input Sheet'!IP$4-(1.5*Sheet2!IP$3)))) ->  | IQ21: =IF(IQ2=0,"",IF(('Input Sheet'!IQ$4-(1.5*Sheet2!IQ$3))<'Input Sheet'!IQ$16,'Input Sheet'!IQ$16,IF(('Input Sheet'!IQ$4-(1.5*Sheet2!IQ$3))>'Input Sheet'!IQ$15,'Input Sheet'!IQ$15,'Input Sheet'!IQ$4-(1.5*Sheet2!IQ$3)))) ->  | IR21: =IF(IR2=0,"",IF(('Input Sheet'!IR$4-(1.5*Sheet2!IR$3))<'Input Sheet'!IR$16,'Input Sheet'!IR$16,IF(('Input Sheet'!IR$4-(1.5*Sheet2!IR$3))>'Input Sheet'!IR$15,'Input Sheet'!IR$15,'Input Sheet'!IR$4-(1.5*Sheet2!IR$3)))) ->  | IS21: =IF(IS2=0,"",IF(('Input Sheet'!IS$4-(1.5*Sheet2!IS$3))<'Input Sheet'!IS$16,'Input Sheet'!IS$16,IF(('Input Sheet'!IS$4-(1.5*Sheet2!IS$3))>'Input Sheet'!IS$15,'Input Sheet'!IS$15,'Input Sheet'!IS$4-(1.5*Sheet2!IS$3)))) ->  | IT21: =IF(IT2=0,"",IF(('Input Sheet'!IT$4-(1.5*Sheet2!IT$3))<'Input Sheet'!IT$16,'Input Sheet'!IT$16,IF(('Input Sheet'!IT$4-(1.5*Sheet2!IT$3))>'Input Sheet'!IT$15,'Input Sheet'!IT$15,'Input Sheet'!IT$4-(1.5*Sheet2!IT$3)))) ->  | IU21: =IF(IU2=0,"",IF(('Input Sheet'!IU$4-(1.5*Sheet2!IU$3))<'Input Sheet'!IU$16,'Input Sheet'!IU$16,IF(('Input Sheet'!IU$4-(1.5*Sheet2!IU$3))>'Input Sheet'!IU$15,'Input Sheet'!IU$15,'Input Sheet'!IU$4-(1.5*Sheet2!IU$3)))) ->  | IV21: =IF(IV2=0,"",IF(('Input Sheet'!IV$4-(1.5*Sheet2!IV$3))<'Input Sheet'!IV$16,'Input Sheet'!IV$16,IF(('Input Sheet'!IV$4-(1.5*Sheet2!IV$3))>'Input Sheet'!IV$15,'Input Sheet'!IV$15,'Input Sheet'!IV$4-(1.5*Sheet2!IV$3)))) ->  | IW21: =IF(IW2=0,"",IF(('Input Sheet'!IW$4-(1.5*Sheet2!IW$3))<'Input Sheet'!IW$16,'Input Sheet'!IW$16,IF(('Input Sheet'!IW$4-(1.5*Sheet2!IW$3))>'Input Sheet'!IW$15,'Input Sheet'!IW$15,'Input Sheet'!IW$4-(1.5*Sheet2!IW$3)))) ->  | IX21: =IF(IX2=0,"",IF(('Input Sheet'!IX$4-(1.5*Sheet2!IX$3))<'Input Sheet'!IX$16,'Input Sheet'!IX$16,IF(('Input Sheet'!IX$4-(1.5*Sheet2!IX$3))>'Input Sheet'!IX$15,'Input Sheet'!IX$15,'Input Sheet'!IX$4-(1.5*Sheet2!IX$3)))) ->  | IY21: =IF(IY2=0,"",IF(('Input Sheet'!IY$4-(1.5*Sheet2!IY$3))<'Input Sheet'!IY$16,'Input Sheet'!IY$16,IF(('Input Sheet'!IY$4-(1.5*Sheet2!IY$3))>'Input Sheet'!IY$15,'Input Sheet'!IY$15,'Input Sheet'!IY$4-(1.5*Sheet2!IY$3)))) ->  | IZ21: =IF(IZ2=0,"",IF(('Input Sheet'!IZ$4-(1.5*Sheet2!IZ$3))<'Input Sheet'!IZ$16,'Input Sheet'!IZ$16,IF(('Input Sheet'!IZ$4-(1.5*Sheet2!IZ$3))>'Input Sheet'!IZ$15,'Input Sheet'!IZ$15,'Input Sheet'!IZ$4-(1.5*Sheet2!IZ$3)))) ->  | JA21: =IF(JA2=0,"",IF(('Input Sheet'!JA$4-(1.5*Sheet2!JA$3))<'Input Sheet'!JA$16,'Input Sheet'!JA$16,IF(('Input Sheet'!JA$4-(1.5*Sheet2!JA$3))>'Input Sheet'!JA$15,'Input Sheet'!JA$15,'Input Sheet'!JA$4-(1.5*Sheet2!JA$3)))) ->  | JB21: =IF(JB2=0,"",IF(('Input Sheet'!JB$4-(1.5*Sheet2!JB$3))<'Input Sheet'!JB$16,'Input Sheet'!JB$16,IF(('Input Sheet'!JB$4-(1.5*Sheet2!JB$3))>'Input Sheet'!JB$15,'Input Sheet'!JB$15,'Input Sheet'!JB$4-(1.5*Sheet2!JB$3)))) ->  | JC21: =IF(JC2=0,"",IF(('Input Sheet'!JC$4-(1.5*Sheet2!JC$3))<'Input Sheet'!JC$16,'Input Sheet'!JC$16,IF(('Input Sheet'!JC$4-(1.5*Sheet2!JC$3))>'Input Sheet'!JC$15,'Input Sheet'!JC$15,'Input Sheet'!JC$4-(1.5*Sheet2!JC$3)))) ->  | JD21: =IF(JD2=0,"",IF(('Input Sheet'!JD$4-(1.5*Sheet2!JD$3))<'Input Sheet'!JD$16,'Input Sheet'!JD$16,IF(('Input Sheet'!JD$4-(1.5*Sheet2!JD$3))>'Input Sheet'!JD$15,'Input Sheet'!JD$15,'Input Sheet'!JD$4-(1.5*Sheet2!JD$3)))) ->  | JE21: =IF(JE2=0,"",IF(('Input Sheet'!JE$4-(1.5*Sheet2!JE$3))<'Input Sheet'!JE$16,'Input Sheet'!JE$16,IF(('Input Sheet'!JE$4-(1.5*Sheet2!JE$3))>'Input Sheet'!JE$15,'Input Sheet'!JE$15,'Input Sheet'!JE$4-(1.5*Sheet2!JE$3)))) ->  | JF21: =IF(JF2=0,"",IF(('Input Sheet'!JF$4-(1.5*Sheet2!JF$3))<'Input Sheet'!JF$16,'Input Sheet'!JF$16,IF(('Input Sheet'!JF$4-(1.5*Sheet2!JF$3))>'Input Sheet'!JF$15,'Input Sheet'!JF$15,'Input Sheet'!JF$4-(1.5*Sheet2!JF$3)))) ->  | JG21: =IF(JG2=0,"",IF(('Input Sheet'!JG$4-(1.5*Sheet2!JG$3))<'Input Sheet'!JG$16,'Input Sheet'!JG$16,IF(('Input Sheet'!JG$4-(1.5*Sheet2!JG$3))>'Input Sheet'!JG$15,'Input Sheet'!JG$15,'Input Sheet'!JG$4-(1.5*Sheet2!JG$3)))) ->  | JH21: =IF(JH2=0,"",IF(('Input Sheet'!JH$4-(1.5*Sheet2!JH$3))<'Input Sheet'!JH$16,'Input Sheet'!JH$16,IF(('Input Sheet'!JH$4-(1.5*Sheet2!JH$3))>'Input Sheet'!JH$15,'Input Sheet'!JH$15,'Input Sheet'!JH$4-(1.5*Sheet2!JH$3)))) ->  | JI21: =IF(JI2=0,"",IF(('Input Sheet'!JI$4-(1.5*Sheet2!JI$3))<'Input Sheet'!JI$16,'Input Sheet'!JI$16,IF(('Input Sheet'!JI$4-(1.5*Sheet2!JI$3))>'Input Sheet'!JI$15,'Input Sheet'!JI$15,'Input Sheet'!JI$4-(1.5*Sheet2!JI$3)))) ->  | JJ21: =IF(JJ2=0,"",IF(('Input Sheet'!JJ$4-(1.5*Sheet2!JJ$3))<'Input Sheet'!JJ$16,'Input Sheet'!JJ$16,IF(('Input Sheet'!JJ$4-(1.5*Sheet2!JJ$3))>'Input Sheet'!JJ$15,'Input Sheet'!JJ$15,'Input Sheet'!JJ$4-(1.5*Sheet2!JJ$3)))) ->  | JK21: =IF(JK2=0,"",IF(('Input Sheet'!JK$4-(1.5*Sheet2!JK$3))<'Input Sheet'!JK$16,'Input Sheet'!JK$16,IF(('Input Sheet'!JK$4-(1.5*Sheet2!JK$3))>'Input Sheet'!JK$15,'Input Sheet'!JK$15,'Input Sheet'!JK$4-(1.5*Sheet2!JK$3)))) ->  | JL21: =IF(JL2=0,"",IF(('Input Sheet'!JL$4-(1.5*Sheet2!JL$3))<'Input Sheet'!JL$16,'Input Sheet'!JL$16,IF(('Input Sheet'!JL$4-(1.5*Sheet2!JL$3))>'Input Sheet'!JL$15,'Input Sheet'!JL$15,'Input Sheet'!JL$4-(1.5*Sheet2!JL$3)))) ->  | JM21: =IF(JM2=0,"",IF(('Input Sheet'!JM$4-(1.5*Sheet2!JM$3))<'Input Sheet'!JM$16,'Input Sheet'!JM$16,IF(('Input Sheet'!JM$4-(1.5*Sheet2!JM$3))>'Input Sheet'!JM$15,'Input Sheet'!JM$15,'Input Sheet'!JM$4-(1.5*Sheet2!JM$3)))) ->  | JN21: =IF(JN2=0,"",IF(('Input Sheet'!JN$4-(1.5*Sheet2!JN$3))<'Input Sheet'!JN$16,'Input Sheet'!JN$16,IF(('Input Sheet'!JN$4-(1.5*Sheet2!JN$3))>'Input Sheet'!JN$15,'Input Sheet'!JN$15,'Input Sheet'!JN$4-(1.5*Sheet2!JN$3)))) ->  | JO21: =IF(JO2=0,"",IF(('Input Sheet'!JO$4-(1.5*Sheet2!JO$3))<'Input Sheet'!JO$16,'Input Sheet'!JO$16,IF(('Input Sheet'!JO$4-(1.5*Sheet2!JO$3))>'Input Sheet'!JO$15,'Input Sheet'!JO$15,'Input Sheet'!JO$4-(1.5*Sheet2!JO$3)))) ->  | JP21: =IF(JP2=0,"",IF(('Input Sheet'!JP$4-(1.5*Sheet2!JP$3))<'Input Sheet'!JP$16,'Input Sheet'!JP$16,IF(('Input Sheet'!JP$4-(1.5*Sheet2!JP$3))>'Input Sheet'!JP$15,'Input Sheet'!JP$15,'Input Sheet'!JP$4-(1.5*Sheet2!JP$3)))) ->  | JQ21: =IF(JQ2=0,"",IF(('Input Sheet'!JQ$4-(1.5*Sheet2!JQ$3))<'Input Sheet'!JQ$16,'Input Sheet'!JQ$16,IF(('Input Sheet'!JQ$4-(1.5*Sheet2!JQ$3))>'Input Sheet'!JQ$15,'Input Sheet'!JQ$15,'Input Sheet'!JQ$4-(1.5*Sheet2!JQ$3)))) ->  | JR21: =IF(JR2=0,"",IF(('Input Sheet'!JR$4-(1.5*Sheet2!JR$3))<'Input Sheet'!JR$16,'Input Sheet'!JR$16,IF(('Input Sheet'!JR$4-(1.5*Sheet2!JR$3))>'Input Sheet'!JR$15,'Input Sheet'!JR$15,'Input Sheet'!JR$4-(1.5*Sheet2!JR$3)))) ->  | JS21: =IF(JS2=0,"",IF(('Input Sheet'!JS$4-(1.5*Sheet2!JS$3))<'Input Sheet'!JS$16,'Input Sheet'!JS$16,IF(('Input Sheet'!JS$4-(1.5*Sheet2!JS$3))>'Input Sheet'!JS$15,'Input Sheet'!JS$15,'Input Sheet'!JS$4-(1.5*Sheet2!JS$3)))) ->  | JT21: =IF(JT2=0,"",IF(('Input Sheet'!JT$4-(1.5*Sheet2!JT$3))<'Input Sheet'!JT$16,'Input Sheet'!JT$16,IF(('Input Sheet'!JT$4-(1.5*Sheet2!JT$3))>'Input Sheet'!JT$15,'Input Sheet'!JT$15,'Input Sheet'!JT$4-(1.5*Sheet2!JT$3)))) ->  | JU21: =IF(JU2=0,"",IF(('Input Sheet'!JU$4-(1.5*Sheet2!JU$3))<'Input Sheet'!JU$16,'Input Sheet'!JU$16,IF(('Input Sheet'!JU$4-(1.5*Sheet2!JU$3))>'Input Sheet'!JU$15,'Input Sheet'!JU$15,'Input Sheet'!JU$4-(1.5*Sheet2!JU$3)))) ->  | JV21: =IF(JV2=0,"",IF(('Input Sheet'!JV$4-(1.5*Sheet2!JV$3))<'Input Sheet'!JV$16,'Input Sheet'!JV$16,IF(('Input Sheet'!JV$4-(1.5*Sheet2!JV$3))>'Input Sheet'!JV$15,'Input Sheet'!JV$15,'Input Sheet'!JV$4-(1.5*Sheet2!JV$3)))) ->  | JW21: =IF(JW2=0,"",IF(('Input Sheet'!JW$4-(1.5*Sheet2!JW$3))<'Input Sheet'!JW$16,'Input Sheet'!JW$16,IF(('Input Sheet'!JW$4-(1.5*Sheet2!JW$3))>'Input Sheet'!JW$15,'Input Sheet'!JW$15,'Input Sheet'!JW$4-(1.5*Sheet2!JW$3)))) ->  | JX21: =IF(JX2=0,"",IF(('Input Sheet'!JX$4-(1.5*Sheet2!JX$3))<'Input Sheet'!JX$16,'Input Sheet'!JX$16,IF(('Input Sheet'!JX$4-(1.5*Sheet2!JX$3))>'Input Sheet'!JX$15,'Input Sheet'!JX$15,'Input Sheet'!JX$4-(1.5*Sheet2!JX$3)))) ->  | JY21: =IF(JY2=0,"",IF(('Input Sheet'!JY$4-(1.5*Sheet2!JY$3))<'Input Sheet'!JY$16,'Input Sheet'!JY$16,IF(('Input Sheet'!JY$4-(1.5*Sheet2!JY$3))>'Input Sheet'!JY$15,'Input Sheet'!JY$15,'Input Sheet'!JY$4-(1.5*Sheet2!JY$3)))) ->  | JZ21: =IF(JZ2=0,"",IF(('Input Sheet'!JZ$4-(1.5*Sheet2!JZ$3))<'Input Sheet'!JZ$16,'Input Sheet'!JZ$16,IF(('Input Sheet'!JZ$4-(1.5*Sheet2!JZ$3))>'Input Sheet'!JZ$15,'Input Sheet'!JZ$15,'Input Sheet'!JZ$4-(1.5*Sheet2!JZ$3)))) ->  | KA21: =IF(KA2=0,"",IF(('Input Sheet'!KA$4-(1.5*Sheet2!KA$3))<'Input Sheet'!KA$16,'Input Sheet'!KA$16,IF(('Input Sheet'!KA$4-(1.5*Sheet2!KA$3))>'Input Sheet'!KA$15,'Input Sheet'!KA$15,'Input Sheet'!KA$4-(1.5*Sheet2!KA$3)))) ->  | KB21: =IF(KB2=0,"",IF(('Input Sheet'!KB$4-(1.5*Sheet2!KB$3))<'Input Sheet'!KB$16,'Input Sheet'!KB$16,IF(('Input Sheet'!KB$4-(1.5*Sheet2!KB$3))>'Input Sheet'!KB$15,'Input Sheet'!KB$15,'Input Sheet'!KB$4-(1.5*Sheet2!KB$3)))) ->  | KC21: =IF(KC2=0,"",IF(('Input Sheet'!KC$4-(1.5*Sheet2!KC$3))<'Input Sheet'!KC$16,'Input Sheet'!KC$16,IF(('Input Sheet'!KC$4-(1.5*Sheet2!KC$3))>'Input Sheet'!KC$15,'Input Sheet'!KC$15,'Input Sheet'!KC$4-(1.5*Sheet2!KC$3)))) ->  | KD21: =IF(KD2=0,"",IF(('Input Sheet'!KD$4-(1.5*Sheet2!KD$3))<'Input Sheet'!KD$16,'Input Sheet'!KD$16,IF(('Input Sheet'!KD$4-(1.5*Sheet2!KD$3))>'Input Sheet'!KD$15,'Input Sheet'!KD$15,'Input Sheet'!KD$4-(1.5*Sheet2!KD$3)))) ->  | KE21: =IF(KE2=0,"",IF(('Input Sheet'!KE$4-(1.5*Sheet2!KE$3))<'Input Sheet'!KE$16,'Input Sheet'!KE$16,IF(('Input Sheet'!KE$4-(1.5*Sheet2!KE$3))>'Input Sheet'!KE$15,'Input Sheet'!KE$15,'Input Sheet'!KE$4-(1.5*Sheet2!KE$3)))) ->  | KF21: =IF(KF2=0,"",IF(('Input Sheet'!KF$4-(1.5*Sheet2!KF$3))<'Input Sheet'!KF$16,'Input Sheet'!KF$16,IF(('Input Sheet'!KF$4-(1.5*Sheet2!KF$3))>'Input Sheet'!KF$15,'Input Sheet'!KF$15,'Input Sheet'!KF$4-(1.5*Sheet2!KF$3)))) ->  | KG21: =IF(KG2=0,"",IF(('Input Sheet'!KG$4-(1.5*Sheet2!KG$3))<'Input Sheet'!KG$16,'Input Sheet'!KG$16,IF(('Input Sheet'!KG$4-(1.5*Sheet2!KG$3))>'Input Sheet'!KG$15,'Input Sheet'!KG$15,'Input Sheet'!KG$4-(1.5*Sheet2!KG$3)))) ->  | KH21: =IF(KH2=0,"",IF(('Input Sheet'!KH$4-(1.5*Sheet2!KH$3))<'Input Sheet'!KH$16,'Input Sheet'!KH$16,IF(('Input Sheet'!KH$4-(1.5*Sheet2!KH$3))>'Input Sheet'!KH$15,'Input Sheet'!KH$15,'Input Sheet'!KH$4-(1.5*Sheet2!KH$3)))) ->  | KI21: =IF(KI2=0,"",IF(('Input Sheet'!KI$4-(1.5*Sheet2!KI$3))<'Input Sheet'!KI$16,'Input Sheet'!KI$16,IF(('Input Sheet'!KI$4-(1.5*Sheet2!KI$3))>'Input Sheet'!KI$15,'Input Sheet'!KI$15,'Input Sheet'!KI$4-(1.5*Sheet2!KI$3)))) ->  | KJ21: =IF(KJ2=0,"",IF(('Input Sheet'!KJ$4-(1.5*Sheet2!KJ$3))<'Input Sheet'!KJ$16,'Input Sheet'!KJ$16,IF(('Input Sheet'!KJ$4-(1.5*Sheet2!KJ$3))>'Input Sheet'!KJ$15,'Input Sheet'!KJ$15,'Input Sheet'!KJ$4-(1.5*Sheet2!KJ$3)))) ->  | KK21: =IF(KK2=0,"",IF(('Input Sheet'!KK$4-(1.5*Sheet2!KK$3))<'Input Sheet'!KK$16,'Input Sheet'!KK$16,IF(('Input Sheet'!KK$4-(1.5*Sheet2!KK$3))>'Input Sheet'!KK$15,'Input Sheet'!KK$15,'Input Sheet'!KK$4-(1.5*Sheet2!KK$3)))) ->  | KL21: =IF(KL2=0,"",IF(('Input Sheet'!KL$4-(1.5*Sheet2!KL$3))<'Input Sheet'!KL$16,'Input Sheet'!KL$16,IF(('Input Sheet'!KL$4-(1.5*Sheet2!KL$3))>'Input Sheet'!KL$15,'Input Sheet'!KL$15,'Input Sheet'!KL$4-(1.5*Sheet2!KL$3)))) ->  | KM21: =IF(KM2=0,"",IF(('Input Sheet'!KM$4-(1.5*Sheet2!KM$3))<'Input Sheet'!KM$16,'Input Sheet'!KM$16,IF(('Input Sheet'!KM$4-(1.5*Sheet2!KM$3))>'Input Sheet'!KM$15,'Input Sheet'!KM$15,'Input Sheet'!KM$4-(1.5*Sheet2!KM$3)))) ->  | KN21: =IF(KN2=0,"",IF(('Input Sheet'!KN$4-(1.5*Sheet2!KN$3))<'Input Sheet'!KN$16,'Input Sheet'!KN$16,IF(('Input Sheet'!KN$4-(1.5*Sheet2!KN$3))>'Input Sheet'!KN$15,'Input Sheet'!KN$15,'Input Sheet'!KN$4-(1.5*Sheet2!KN$3)))) ->  | KO21: =IF(KO2=0,"",IF(('Input Sheet'!KO$4-(1.5*Sheet2!KO$3))<'Input Sheet'!KO$16,'Input Sheet'!KO$16,IF(('Input Sheet'!KO$4-(1.5*Sheet2!KO$3))>'Input Sheet'!KO$15,'Input Sheet'!KO$15,'Input Sheet'!KO$4-(1.5*Sheet2!KO$3)))) ->  | KP21: =IF(KP2=0,"",IF(('Input Sheet'!KP$4-(1.5*Sheet2!KP$3))<'Input Sheet'!KP$16,'Input Sheet'!KP$16,IF(('Input Sheet'!KP$4-(1.5*Sheet2!KP$3))>'Input Sheet'!KP$15,'Input Sheet'!KP$15,'Input Sheet'!KP$4-(1.5*Sheet2!KP$3)))) ->  | KQ21: =IF(KQ2=0,"",IF(('Input Sheet'!KQ$4-(1.5*Sheet2!KQ$3))<'Input Sheet'!KQ$16,'Input Sheet'!KQ$16,IF(('Input Sheet'!KQ$4-(1.5*Sheet2!KQ$3))>'Input Sheet'!KQ$15,'Input Sheet'!KQ$15,'Input Sheet'!KQ$4-(1.5*Sheet2!KQ$3)))) ->  | KR21: =IF(KR2=0,"",IF(('Input Sheet'!KR$4-(1.5*Sheet2!KR$3))<'Input Sheet'!KR$16,'Input Sheet'!KR$16,IF(('Input Sheet'!KR$4-(1.5*Sheet2!KR$3))>'Input Sheet'!KR$15,'Input Sheet'!KR$15,'Input Sheet'!KR$4-(1.5*Sheet2!KR$3)))) ->  | KS21: =IF(KS2=0,"",IF(('Input Sheet'!KS$4-(1.5*Sheet2!KS$3))<'Input Sheet'!KS$16,'Input Sheet'!KS$16,IF(('Input Sheet'!KS$4-(1.5*Sheet2!KS$3))>'Input Sheet'!KS$15,'Input Sheet'!KS$15,'Input Sheet'!KS$4-(1.5*Sheet2!KS$3)))) ->  | KT21: =IF(KT2=0,"",IF(('Input Sheet'!KT$4-(1.5*Sheet2!KT$3))<'Input Sheet'!KT$16,'Input Sheet'!KT$16,IF(('Input Sheet'!KT$4-(1.5*Sheet2!KT$3))>'Input Sheet'!KT$15,'Input Sheet'!KT$15,'Input Sheet'!KT$4-(1.5*Sheet2!KT$3)))) ->  | KU21: =IF(KU2=0,"",IF(('Input Sheet'!KU$4-(1.5*Sheet2!KU$3))<'Input Sheet'!KU$16,'Input Sheet'!KU$16,IF(('Input Sheet'!KU$4-(1.5*Sheet2!KU$3))>'Input Sheet'!KU$15,'Input Sheet'!KU$15,'Input Sheet'!KU$4-(1.5*Sheet2!KU$3)))) ->  | KV21: =IF(KV2=0,"",IF(('Input Sheet'!KV$4-(1.5*Sheet2!KV$3))<'Input Sheet'!KV$16,'Input Sheet'!KV$16,IF(('Input Sheet'!KV$4-(1.5*Sheet2!KV$3))>'Input Sheet'!KV$15,'Input Sheet'!KV$15,'Input Sheet'!KV$4-(1.5*Sheet2!KV$3)))) ->  | KW21: =IF(KW2=0,"",IF(('Input Sheet'!KW$4-(1.5*Sheet2!KW$3))<'Input Sheet'!KW$16,'Input Sheet'!KW$16,IF(('Input Sheet'!KW$4-(1.5*Sheet2!KW$3))>'Input Sheet'!KW$15,'Input Sheet'!KW$15,'Input Sheet'!KW$4-(1.5*Sheet2!KW$3)))) ->  | KX21: =IF(KX2=0,"",IF(('Input Sheet'!KX$4-(1.5*Sheet2!KX$3))<'Input Sheet'!KX$16,'Input Sheet'!KX$16,IF(('Input Sheet'!KX$4-(1.5*Sheet2!KX$3))>'Input Sheet'!KX$15,'Input Sheet'!KX$15,'Input Sheet'!KX$4-(1.5*Sheet2!KX$3)))) ->  | KY21: =IF(KY2=0,"",IF(('Input Sheet'!KY$4-(1.5*Sheet2!KY$3))<'Input Sheet'!KY$16,'Input Sheet'!KY$16,IF(('Input Sheet'!KY$4-(1.5*Sheet2!KY$3))>'Input Sheet'!KY$15,'Input Sheet'!KY$15,'Input Sheet'!KY$4-(1.5*Sheet2!KY$3)))) ->  | KZ21: =IF(KZ2=0,"",IF(('Input Sheet'!KZ$4-(1.5*Sheet2!KZ$3))<'Input Sheet'!KZ$16,'Input Sheet'!KZ$16,IF(('Input Sheet'!KZ$4-(1.5*Sheet2!KZ$3))>'Input Sheet'!KZ$15,'Input Sheet'!KZ$15,'Input Sheet'!KZ$4-(1.5*Sheet2!KZ$3)))) ->  | LA21: =IF(LA2=0,"",IF(('Input Sheet'!LA$4-(1.5*Sheet2!LA$3))<'Input Sheet'!LA$16,'Input Sheet'!LA$16,IF(('Input Sheet'!LA$4-(1.5*Sheet2!LA$3))>'Input Sheet'!LA$15,'Input Sheet'!LA$15,'Input Sheet'!LA$4-(1.5*Sheet2!LA$3)))) ->  | LB21: =IF(LB2=0,"",IF(('Input Sheet'!LB$4-(1.5*Sheet2!LB$3))<'Input Sheet'!LB$16,'Input Sheet'!LB$16,IF(('Input Sheet'!LB$4-(1.5*Sheet2!LB$3))>'Input Sheet'!LB$15,'Input Sheet'!LB$15,'Input Sheet'!LB$4-(1.5*Sheet2!LB$3)))) ->  | LC21: =IF(LC2=0,"",IF(('Input Sheet'!LC$4-(1.5*Sheet2!LC$3))<'Input Sheet'!LC$16,'Input Sheet'!LC$16,IF(('Input Sheet'!LC$4-(1.5*Sheet2!LC$3))>'Input Sheet'!LC$15,'Input Sheet'!LC$15,'Input Sheet'!LC$4-(1.5*Sheet2!LC$3)))) ->  | LD21: =IF(LD2=0,"",IF(('Input Sheet'!LD$4-(1.5*Sheet2!LD$3))<'Input Sheet'!LD$16,'Input Sheet'!LD$16,IF(('Input Sheet'!LD$4-(1.5*Sheet2!LD$3))>'Input Sheet'!LD$15,'Input Sheet'!LD$15,'Input Sheet'!LD$4-(1.5*Sheet2!LD$3)))) ->  | LE21: =IF(LE2=0,"",IF(('Input Sheet'!LE$4-(1.5*Sheet2!LE$3))<'Input Sheet'!LE$16,'Input Sheet'!LE$16,IF(('Input Sheet'!LE$4-(1.5*Sheet2!LE$3))>'Input Sheet'!LE$15,'Input Sheet'!LE$15,'Input Sheet'!LE$4-(1.5*Sheet2!LE$3)))) ->  | LF21: =IF(LF2=0,"",IF(('Input Sheet'!LF$4-(1.5*Sheet2!LF$3))<'Input Sheet'!LF$16,'Input Sheet'!LF$16,IF(('Input Sheet'!LF$4-(1.5*Sheet2!LF$3))>'Input Sheet'!LF$15,'Input Sheet'!LF$15,'Input Sheet'!LF$4-(1.5*Sheet2!LF$3)))) ->  | LG21: =IF(LG2=0,"",IF(('Input Sheet'!LG$4-(1.5*Sheet2!LG$3))<'Input Sheet'!LG$16,'Input Sheet'!LG$16,IF(('Input Sheet'!LG$4-(1.5*Sheet2!LG$3))>'Input Sheet'!LG$15,'Input Sheet'!LG$15,'Input Sheet'!LG$4-(1.5*Sheet2!LG$3)))) ->  | LH21: =IF(LH2=0,"",IF(('Input Sheet'!LH$4-(1.5*Sheet2!LH$3))<'Input Sheet'!LH$16,'Input Sheet'!LH$16,IF(('Input Sheet'!LH$4-(1.5*Sheet2!LH$3))>'Input Sheet'!LH$15,'Input Sheet'!LH$15,'Input Sheet'!LH$4-(1.5*Sheet2!LH$3)))) ->  | LI21: =IF(LI2=0,"",IF(('Input Sheet'!LI$4-(1.5*Sheet2!LI$3))<'Input Sheet'!LI$16,'Input Sheet'!LI$16,IF(('Input Sheet'!LI$4-(1.5*Sheet2!LI$3))>'Input Sheet'!LI$15,'Input Sheet'!LI$15,'Input Sheet'!LI$4-(1.5*Sheet2!LI$3)))) ->  | LJ21: =IF(LJ2=0,"",IF(('Input Sheet'!LJ$4-(1.5*Sheet2!LJ$3))<'Input Sheet'!LJ$16,'Input Sheet'!LJ$16,IF(('Input Sheet'!LJ$4-(1.5*Sheet2!LJ$3))>'Input Sheet'!LJ$15,'Input Sheet'!LJ$15,'Input Sheet'!LJ$4-(1.5*Sheet2!LJ$3)))) ->  | LK21: =IF(LK2=0,"",IF(('Input Sheet'!LK$4-(1.5*Sheet2!LK$3))<'Input Sheet'!LK$16,'Input Sheet'!LK$16,IF(('Input Sheet'!LK$4-(1.5*Sheet2!LK$3))>'Input Sheet'!LK$15,'Input Sheet'!LK$15,'Input Sheet'!LK$4-(1.5*Sheet2!LK$3)))) ->  | LL21: =IF(LL2=0,"",IF(('Input Sheet'!LL$4-(1.5*Sheet2!LL$3))<'Input Sheet'!LL$16,'Input Sheet'!LL$16,IF(('Input Sheet'!LL$4-(1.5*Sheet2!LL$3))>'Input Sheet'!LL$15,'Input Sheet'!LL$15,'Input Sheet'!LL$4-(1.5*Sheet2!LL$3)))) ->  | LM21: =IF(LM2=0,"",IF(('Input Sheet'!LM$4-(1.5*Sheet2!LM$3))<'Input Sheet'!LM$16,'Input Sheet'!LM$16,IF(('Input Sheet'!LM$4-(1.5*Sheet2!LM$3))>'Input Sheet'!LM$15,'Input Sheet'!LM$15,'Input Sheet'!LM$4-(1.5*Sheet2!LM$3)))) ->  | LN21: =IF(LN2=0,"",IF(('Input Sheet'!LN$4-(1.5*Sheet2!LN$3))<'Input Sheet'!LN$16,'Input Sheet'!LN$16,IF(('Input Sheet'!LN$4-(1.5*Sheet2!LN$3))>'Input Sheet'!LN$15,'Input Sheet'!LN$15,'Input Sheet'!LN$4-(1.5*Sheet2!LN$3)))) ->  | LO21: =IF(LO2=0,"",IF(('Input Sheet'!LO$4-(1.5*Sheet2!LO$3))<'Input Sheet'!LO$16,'Input Sheet'!LO$16,IF(('Input Sheet'!LO$4-(1.5*Sheet2!LO$3))>'Input Sheet'!LO$15,'Input Sheet'!LO$15,'Input Sheet'!LO$4-(1.5*Sheet2!LO$3)))) ->  | LP21: =IF(LP2=0,"",IF(('Input Sheet'!LP$4-(1.5*Sheet2!LP$3))<'Input Sheet'!LP$16,'Input Sheet'!LP$16,IF(('Input Sheet'!LP$4-(1.5*Sheet2!LP$3))>'Input Sheet'!LP$15,'Input Sheet'!LP$15,'Input Sheet'!LP$4-(1.5*Sheet2!LP$3)))) ->  | LQ21: =IF(LQ2=0,"",IF(('Input Sheet'!LQ$4-(1.5*Sheet2!LQ$3))<'Input Sheet'!LQ$16,'Input Sheet'!LQ$16,IF(('Input Sheet'!LQ$4-(1.5*Sheet2!LQ$3))>'Input Sheet'!LQ$15,'Input Sheet'!LQ$15,'Input Sheet'!LQ$4-(1.5*Sheet2!LQ$3)))) ->  | LR21: =IF(LR2=0,"",IF(('Input Sheet'!LR$4-(1.5*Sheet2!LR$3))<'Input Sheet'!LR$16,'Input Sheet'!LR$16,IF(('Input Sheet'!LR$4-(1.5*Sheet2!LR$3))>'Input Sheet'!LR$15,'Input Sheet'!LR$15,'Input Sheet'!LR$4-(1.5*Sheet2!LR$3)))) ->  | LS21: =IF(LS2=0,"",IF(('Input Sheet'!LS$4-(1.5*Sheet2!LS$3))<'Input Sheet'!LS$16,'Input Sheet'!LS$16,IF(('Input Sheet'!LS$4-(1.5*Sheet2!LS$3))>'Input Sheet'!LS$15,'Input Sheet'!LS$15,'Input Sheet'!LS$4-(1.5*Sheet2!LS$3)))) ->  | LT21: =IF(LT2=0,"",IF(('Input Sheet'!LT$4-(1.5*Sheet2!LT$3))<'Input Sheet'!LT$16,'Input Sheet'!LT$16,IF(('Input Sheet'!LT$4-(1.5*Sheet2!LT$3))>'Input Sheet'!LT$15,'Input Sheet'!LT$15,'Input Sheet'!LT$4-(1.5*Sheet2!LT$3)))) ->  | LU21: =IF(LU2=0,"",IF(('Input Sheet'!LU$4-(1.5*Sheet2!LU$3))<'Input Sheet'!LU$16,'Input Sheet'!LU$16,IF(('Input Sheet'!LU$4-(1.5*Sheet2!LU$3))>'Input Sheet'!LU$15,'Input Sheet'!LU$15,'Input Sheet'!LU$4-(1.5*Sheet2!LU$3)))) ->  | LV21: =IF(LV2=0,"",IF(('Input Sheet'!LV$4-(1.5*Sheet2!LV$3))<'Input Sheet'!LV$16,'Input Sheet'!LV$16,IF(('Input Sheet'!LV$4-(1.5*Sheet2!LV$3))>'Input Sheet'!LV$15,'Input Sheet'!LV$15,'Input Sheet'!LV$4-(1.5*Sheet2!LV$3)))) ->  | LW21: =IF(LW2=0,"",IF(('Input Sheet'!LW$4-(1.5*Sheet2!LW$3))<'Input Sheet'!LW$16,'Input Sheet'!LW$16,IF(('Input Sheet'!LW$4-(1.5*Sheet2!LW$3))>'Input Sheet'!LW$15,'Input Sheet'!LW$15,'Input Sheet'!LW$4-(1.5*Sheet2!LW$3)))) ->  | LX21: =IF(LX2=0,"",IF(('Input Sheet'!LX$4-(1.5*Sheet2!LX$3))<'Input Sheet'!LX$16,'Input Sheet'!LX$16,IF(('Input Sheet'!LX$4-(1.5*Sheet2!LX$3))>'Input Sheet'!LX$15,'Input Sheet'!LX$15,'Input Sheet'!LX$4-(1.5*Sheet2!LX$3)))) ->  | LY21: =IF(LY2=0,"",IF(('Input Sheet'!LY$4-(1.5*Sheet2!LY$3))<'Input Sheet'!LY$16,'Input Sheet'!LY$16,IF(('Input Sheet'!LY$4-(1.5*Sheet2!LY$3))>'Input Sheet'!LY$15,'Input Sheet'!LY$15,'Input Sheet'!LY$4-(1.5*Sheet2!LY$3)))) ->  | LZ21: =IF(LZ2=0,"",IF(('Input Sheet'!LZ$4-(1.5*Sheet2!LZ$3))<'Input Sheet'!LZ$16,'Input Sheet'!LZ$16,IF(('Input Sheet'!LZ$4-(1.5*Sheet2!LZ$3))>'Input Sheet'!LZ$15,'Input Sheet'!LZ$15,'Input Sheet'!LZ$4-(1.5*Sheet2!LZ$3)))) ->  | MA21: =IF(MA2=0,"",IF(('Input Sheet'!MA$4-(1.5*Sheet2!MA$3))<'Input Sheet'!MA$16,'Input Sheet'!MA$16,IF(('Input Sheet'!MA$4-(1.5*Sheet2!MA$3))>'Input Sheet'!MA$15,'Input Sheet'!MA$15,'Input Sheet'!MA$4-(1.5*Sheet2!MA$3)))) ->  | MB21: =IF(MB2=0,"",IF(('Input Sheet'!MB$4-(1.5*Sheet2!MB$3))<'Input Sheet'!MB$16,'Input Sheet'!MB$16,IF(('Input Sheet'!MB$4-(1.5*Sheet2!MB$3))>'Input Sheet'!MB$15,'Input Sheet'!MB$15,'Input Sheet'!MB$4-(1.5*Sheet2!MB$3)))) ->  | MC21: =IF(MC2=0,"",IF(('Input Sheet'!MC$4-(1.5*Sheet2!MC$3))<'Input Sheet'!MC$16,'Input Sheet'!MC$16,IF(('Input Sheet'!MC$4-(1.5*Sheet2!MC$3))>'Input Sheet'!MC$15,'Input Sheet'!MC$15,'Input Sheet'!MC$4-(1.5*Sheet2!MC$3)))) ->  | MD21: =IF(MD2=0,"",IF(('Input Sheet'!MD$4-(1.5*Sheet2!MD$3))<'Input Sheet'!MD$16,'Input Sheet'!MD$16,IF(('Input Sheet'!MD$4-(1.5*Sheet2!MD$3))>'Input Sheet'!MD$15,'Input Sheet'!MD$15,'Input Sheet'!MD$4-(1.5*Sheet2!MD$3)))) ->  | ME21: =IF(ME2=0,"",IF(('Input Sheet'!ME$4-(1.5*Sheet2!ME$3))<'Input Sheet'!ME$16,'Input Sheet'!ME$16,IF(('Input Sheet'!ME$4-(1.5*Sheet2!ME$3))>'Input Sheet'!ME$15,'Input Sheet'!ME$15,'Input Sheet'!ME$4-(1.5*Sheet2!ME$3)))) ->  | MF21: =IF(MF2=0,"",IF(('Input Sheet'!MF$4-(1.5*Sheet2!MF$3))<'Input Sheet'!MF$16,'Input Sheet'!MF$16,IF(('Input Sheet'!MF$4-(1.5*Sheet2!MF$3))>'Input Sheet'!MF$15,'Input Sheet'!MF$15,'Input Sheet'!MF$4-(1.5*Sheet2!MF$3)))) ->  | MG21: =IF(MG2=0,"",IF(('Input Sheet'!MG$4-(1.5*Sheet2!MG$3))<'Input Sheet'!MG$16,'Input Sheet'!MG$16,IF(('Input Sheet'!MG$4-(1.5*Sheet2!MG$3))>'Input Sheet'!MG$15,'Input Sheet'!MG$15,'Input Sheet'!MG$4-(1.5*Sheet2!MG$3)))) ->  | MH21: =IF(MH2=0,"",IF(('Input Sheet'!MH$4-(1.5*Sheet2!MH$3))<'Input Sheet'!MH$16,'Input Sheet'!MH$16,IF(('Input Sheet'!MH$4-(1.5*Sheet2!MH$3))>'Input Sheet'!MH$15,'Input Sheet'!MH$15,'Input Sheet'!MH$4-(1.5*Sheet2!MH$3)))) ->  | MI21: =IF(MI2=0,"",IF(('Input Sheet'!MI$4-(1.5*Sheet2!MI$3))<'Input Sheet'!MI$16,'Input Sheet'!MI$16,IF(('Input Sheet'!MI$4-(1.5*Sheet2!MI$3))>'Input Sheet'!MI$15,'Input Sheet'!MI$15,'Input Sheet'!MI$4-(1.5*Sheet2!MI$3)))) ->  | MJ21: =IF(MJ2=0,"",IF(('Input Sheet'!MJ$4-(1.5*Sheet2!MJ$3))<'Input Sheet'!MJ$16,'Input Sheet'!MJ$16,IF(('Input Sheet'!MJ$4-(1.5*Sheet2!MJ$3))>'Input Sheet'!MJ$15,'Input Sheet'!MJ$15,'Input Sheet'!MJ$4-(1.5*Sheet2!MJ$3)))) ->  | MK21: =IF(MK2=0,"",IF(('Input Sheet'!MK$4-(1.5*Sheet2!MK$3))<'Input Sheet'!MK$16,'Input Sheet'!MK$16,IF(('Input Sheet'!MK$4-(1.5*Sheet2!MK$3))>'Input Sheet'!MK$15,'Input Sheet'!MK$15,'Input Sheet'!MK$4-(1.5*Sheet2!MK$3)))) ->  | ML21: =IF(ML2=0,"",IF(('Input Sheet'!ML$4-(1.5*Sheet2!ML$3))<'Input Sheet'!ML$16,'Input Sheet'!ML$16,IF(('Input Sheet'!ML$4-(1.5*Sheet2!ML$3))>'Input Sheet'!ML$15,'Input Sheet'!ML$15,'Input Sheet'!ML$4-(1.5*Sheet2!ML$3)))) ->  | MM21: =IF(MM2=0,"",IF(('Input Sheet'!MM$4-(1.5*Sheet2!MM$3))<'Input Sheet'!MM$16,'Input Sheet'!MM$16,IF(('Input Sheet'!MM$4-(1.5*Sheet2!MM$3))>'Input Sheet'!MM$15,'Input Sheet'!MM$15,'Input Sheet'!MM$4-(1.5*Sheet2!MM$3)))) ->  | MN21: =IF(MN2=0,"",IF(('Input Sheet'!MN$4-(1.5*Sheet2!MN$3))<'Input Sheet'!MN$16,'Input Sheet'!MN$16,IF(('Input Sheet'!MN$4-(1.5*Sheet2!MN$3))>'Input Sheet'!MN$15,'Input Sheet'!MN$15,'Input Sheet'!MN$4-(1.5*Sheet2!MN$3)))) ->  | MO21: =IF(MO2=0,"",IF(('Input Sheet'!MO$4-(1.5*Sheet2!MO$3))<'Input Sheet'!MO$16,'Input Sheet'!MO$16,IF(('Input Sheet'!MO$4-(1.5*Sheet2!MO$3))>'Input Sheet'!MO$15,'Input Sheet'!MO$15,'Input Sheet'!MO$4-(1.5*Sheet2!MO$3)))) ->  | MP21: =IF(MP2=0,"",IF(('Input Sheet'!MP$4-(1.5*Sheet2!MP$3))<'Input Sheet'!MP$16,'Input Sheet'!MP$16,IF(('Input Sheet'!MP$4-(1.5*Sheet2!MP$3))>'Input Sheet'!MP$15,'Input Sheet'!MP$15,'Input Sheet'!MP$4-(1.5*Sheet2!MP$3)))) ->  | MQ21: =IF(MQ2=0,"",IF(('Input Sheet'!MQ$4-(1.5*Sheet2!MQ$3))<'Input Sheet'!MQ$16,'Input Sheet'!MQ$16,IF(('Input Sheet'!MQ$4-(1.5*Sheet2!MQ$3))>'Input Sheet'!MQ$15,'Input Sheet'!MQ$15,'Input Sheet'!MQ$4-(1.5*Sheet2!MQ$3)))) ->  | MR21: =IF(MR2=0,"",IF(('Input Sheet'!MR$4-(1.5*Sheet2!MR$3))<'Input Sheet'!MR$16,'Input Sheet'!MR$16,IF(('Input Sheet'!MR$4-(1.5*Sheet2!MR$3))>'Input Sheet'!MR$15,'Input Sheet'!MR$15,'Input Sheet'!MR$4-(1.5*Sheet2!MR$3)))) ->  | MS21: =IF(MS2=0,"",IF(('Input Sheet'!MS$4-(1.5*Sheet2!MS$3))<'Input Sheet'!MS$16,'Input Sheet'!MS$16,IF(('Input Sheet'!MS$4-(1.5*Sheet2!MS$3))>'Input Sheet'!MS$15,'Input Sheet'!MS$15,'Input Sheet'!MS$4-(1.5*Sheet2!MS$3)))) ->  | MT21: =IF(MT2=0,"",IF(('Input Sheet'!MT$4-(1.5*Sheet2!MT$3))<'Input Sheet'!MT$16,'Input Sheet'!MT$16,IF(('Input Sheet'!MT$4-(1.5*Sheet2!MT$3))>'Input Sheet'!MT$15,'Input Sheet'!MT$15,'Input Sheet'!MT$4-(1.5*Sheet2!MT$3)))) ->  | MU21: =IF(MU2=0,"",IF(('Input Sheet'!MU$4-(1.5*Sheet2!MU$3))<'Input Sheet'!MU$16,'Input Sheet'!MU$16,IF(('Input Sheet'!MU$4-(1.5*Sheet2!MU$3))>'Input Sheet'!MU$15,'Input Sheet'!MU$15,'Input Sheet'!MU$4-(1.5*Sheet2!MU$3)))) ->  | MV21: =IF(MV2=0,"",IF(('Input Sheet'!MV$4-(1.5*Sheet2!MV$3))<'Input Sheet'!MV$16,'Input Sheet'!MV$16,IF(('Input Sheet'!MV$4-(1.5*Sheet2!MV$3))>'Input Sheet'!MV$15,'Input Sheet'!MV$15,'Input Sheet'!MV$4-(1.5*Sheet2!MV$3)))) ->  | MW21: =IF(MW2=0,"",IF(('Input Sheet'!MW$4-(1.5*Sheet2!MW$3))<'Input Sheet'!MW$16,'Input Sheet'!MW$16,IF(('Input Sheet'!MW$4-(1.5*Sheet2!MW$3))>'Input Sheet'!MW$15,'Input Sheet'!MW$15,'Input Sheet'!MW$4-(1.5*Sheet2!MW$3)))) ->  | MX21: =IF(MX2=0,"",IF(('Input Sheet'!MX$4-(1.5*Sheet2!MX$3))<'Input Sheet'!MX$16,'Input Sheet'!MX$16,IF(('Input Sheet'!MX$4-(1.5*Sheet2!MX$3))>'Input Sheet'!MX$15,'Input Sheet'!MX$15,'Input Sheet'!MX$4-(1.5*Sheet2!MX$3)))) ->  | MY21: =IF(MY2=0,"",IF(('Input Sheet'!MY$4-(1.5*Sheet2!MY$3))<'Input Sheet'!MY$16,'Input Sheet'!MY$16,IF(('Input Sheet'!MY$4-(1.5*Sheet2!MY$3))>'Input Sheet'!MY$15,'Input Sheet'!MY$15,'Input Sheet'!MY$4-(1.5*Sheet2!MY$3)))) ->  | MZ21: =IF(MZ2=0,"",IF(('Input Sheet'!MZ$4-(1.5*Sheet2!MZ$3))<'Input Sheet'!MZ$16,'Input Sheet'!MZ$16,IF(('Input Sheet'!MZ$4-(1.5*Sheet2!MZ$3))>'Input Sheet'!MZ$15,'Input Sheet'!MZ$15,'Input Sheet'!MZ$4-(1.5*Sheet2!MZ$3)))) ->  | NA21: =IF(NA2=0,"",IF(('Input Sheet'!NA$4-(1.5*Sheet2!NA$3))<'Input Sheet'!NA$16,'Input Sheet'!NA$16,IF(('Input Sheet'!NA$4-(1.5*Sheet2!NA$3))>'Input Sheet'!NA$15,'Input Sheet'!NA$15,'Input Sheet'!NA$4-(1.5*Sheet2!NA$3)))) ->  | NB21: =IF(NB2=0,"",IF(('Input Sheet'!NB$4-(1.5*Sheet2!NB$3))<'Input Sheet'!NB$16,'Input Sheet'!NB$16,IF(('Input Sheet'!NB$4-(1.5*Sheet2!NB$3))>'Input Sheet'!NB$15,'Input Sheet'!NB$15,'Input Sheet'!NB$4-(1.5*Sheet2!NB$3)))) ->  | NC21: =IF(NC2=0,"",IF(('Input Sheet'!NC$4-(1.5*Sheet2!NC$3))<'Input Sheet'!NC$16,'Input Sheet'!NC$16,IF(('Input Sheet'!NC$4-(1.5*Sheet2!NC$3))>'Input Sheet'!NC$15,'Input Sheet'!NC$15,'Input Sheet'!NC$4-(1.5*Sheet2!NC$3)))) ->  | ND21: =IF(ND2=0,"",IF(('Input Sheet'!ND$4-(1.5*Sheet2!ND$3))<'Input Sheet'!ND$16,'Input Sheet'!ND$16,IF(('Input Sheet'!ND$4-(1.5*Sheet2!ND$3))>'Input Sheet'!ND$15,'Input Sheet'!ND$15,'Input Sheet'!ND$4-(1.5*Sheet2!ND$3)))) ->  | NE21: =IF(NE2=0,"",IF(('Input Sheet'!NE$4-(1.5*Sheet2!NE$3))<'Input Sheet'!NE$16,'Input Sheet'!NE$16,IF(('Input Sheet'!NE$4-(1.5*Sheet2!NE$3))>'Input Sheet'!NE$15,'Input Sheet'!NE$15,'Input Sheet'!NE$4-(1.5*Sheet2!NE$3)))) ->  | NF21: =IF(NF2=0,"",IF(('Input Sheet'!NF$4-(1.5*Sheet2!NF$3))<'Input Sheet'!NF$16,'Input Sheet'!NF$16,IF(('Input Sheet'!NF$4-(1.5*Sheet2!NF$3))>'Input Sheet'!NF$15,'Input Sheet'!NF$15,'Input Sheet'!NF$4-(1.5*Sheet2!NF$3)))) ->  | NG21: =IF(NG2=0,"",IF(('Input Sheet'!NG$4-(1.5*Sheet2!NG$3))<'Input Sheet'!NG$16,'Input Sheet'!NG$16,IF(('Input Sheet'!NG$4-(1.5*Sheet2!NG$3))>'Input Sheet'!NG$15,'Input Sheet'!NG$15,'Input Sheet'!NG$4-(1.5*Sheet2!NG$3)))) ->  | NH21: =IF(NH2=0,"",IF(('Input Sheet'!NH$4-(1.5*Sheet2!NH$3))<'Input Sheet'!NH$16,'Input Sheet'!NH$16,IF(('Input Sheet'!NH$4-(1.5*Sheet2!NH$3))>'Input Sheet'!NH$15,'Input Sheet'!NH$15,'Input Sheet'!NH$4-(1.5*Sheet2!NH$3)))) ->  | NI21: =IF(NI2=0,"",IF(('Input Sheet'!NI$4-(1.5*Sheet2!NI$3))<'Input Sheet'!NI$16,'Input Sheet'!NI$16,IF(('Input Sheet'!NI$4-(1.5*Sheet2!NI$3))>'Input Sheet'!NI$15,'Input Sheet'!NI$15,'Input Sheet'!NI$4-(1.5*Sheet2!NI$3)))) ->  | NJ21: =IF(NJ2=0,"",IF(('Input Sheet'!NJ$4-(1.5*Sheet2!NJ$3))<'Input Sheet'!NJ$16,'Input Sheet'!NJ$16,IF(('Input Sheet'!NJ$4-(1.5*Sheet2!NJ$3))>'Input Sheet'!NJ$15,'Input Sheet'!NJ$15,'Input Sheet'!NJ$4-(1.5*Sheet2!NJ$3)))) ->  | NK21: =IF(NK2=0,"",IF(('Input Sheet'!NK$4-(1.5*Sheet2!NK$3))<'Input Sheet'!NK$16,'Input Sheet'!NK$16,IF(('Input Sheet'!NK$4-(1.5*Sheet2!NK$3))>'Input Sheet'!NK$15,'Input Sheet'!NK$15,'Input Sheet'!NK$4-(1.5*Sheet2!NK$3)))) ->  | NL21: =IF(NL2=0,"",IF(('Input Sheet'!NL$4-(1.5*Sheet2!NL$3))<'Input Sheet'!NL$16,'Input Sheet'!NL$16,IF(('Input Sheet'!NL$4-(1.5*Sheet2!NL$3))>'Input Sheet'!NL$15,'Input Sheet'!NL$15,'Input Sheet'!NL$4-(1.5*Sheet2!NL$3)))) ->  | NM21: =IF(NM2=0,"",IF(('Input Sheet'!NM$4-(1.5*Sheet2!NM$3))<'Input Sheet'!NM$16,'Input Sheet'!NM$16,IF(('Input Sheet'!NM$4-(1.5*Sheet2!NM$3))>'Input Sheet'!NM$15,'Input Sheet'!NM$15,'Input Sheet'!NM$4-(1.5*Sheet2!NM$3)))) ->  | NN21: =IF(NN2=0,"",IF(('Input Sheet'!NN$4-(1.5*Sheet2!NN$3))<'Input Sheet'!NN$16,'Input Sheet'!NN$16,IF(('Input Sheet'!NN$4-(1.5*Sheet2!NN$3))>'Input Sheet'!NN$15,'Input Sheet'!NN$15,'Input Sheet'!NN$4-(1.5*Sheet2!NN$3)))) ->  | NO21: =IF(NO2=0,"",IF(('Input Sheet'!NO$4-(1.5*Sheet2!NO$3))<'Input Sheet'!NO$16,'Input Sheet'!NO$16,IF(('Input Sheet'!NO$4-(1.5*Sheet2!NO$3))>'Input Sheet'!NO$15,'Input Sheet'!NO$15,'Input Sheet'!NO$4-(1.5*Sheet2!NO$3)))) ->  | NP21: =IF(NP2=0,"",IF(('Input Sheet'!NP$4-(1.5*Sheet2!NP$3))<'Input Sheet'!NP$16,'Input Sheet'!NP$16,IF(('Input Sheet'!NP$4-(1.5*Sheet2!NP$3))>'Input Sheet'!NP$15,'Input Sheet'!NP$15,'Input Sheet'!NP$4-(1.5*Sheet2!NP$3)))) ->  | NQ21: =IF(NQ2=0,"",IF(('Input Sheet'!NQ$4-(1.5*Sheet2!NQ$3))<'Input Sheet'!NQ$16,'Input Sheet'!NQ$16,IF(('Input Sheet'!NQ$4-(1.5*Sheet2!NQ$3))>'Input Sheet'!NQ$15,'Input Sheet'!NQ$15,'Input Sheet'!NQ$4-(1.5*Sheet2!NQ$3)))) ->  | NR21: =IF(NR2=0,"",IF(('Input Sheet'!NR$4-(1.5*Sheet2!NR$3))<'Input Sheet'!NR$16,'Input Sheet'!NR$16,IF(('Input Sheet'!NR$4-(1.5*Sheet2!NR$3))>'Input Sheet'!NR$15,'Input Sheet'!NR$15,'Input Sheet'!NR$4-(1.5*Sheet2!NR$3)))) ->  | NS21: =IF(NS2=0,"",IF(('Input Sheet'!NS$4-(1.5*Sheet2!NS$3))<'Input Sheet'!NS$16,'Input Sheet'!NS$16,IF(('Input Sheet'!NS$4-(1.5*Sheet2!NS$3))>'Input Sheet'!NS$15,'Input Sheet'!NS$15,'Input Sheet'!NS$4-(1.5*Sheet2!NS$3)))) ->  | NT21: =IF(NT2=0,"",IF(('Input Sheet'!NT$4-(1.5*Sheet2!NT$3))<'Input Sheet'!NT$16,'Input Sheet'!NT$16,IF(('Input Sheet'!NT$4-(1.5*Sheet2!NT$3))>'Input Sheet'!NT$15,'Input Sheet'!NT$15,'Input Sheet'!NT$4-(1.5*Sheet2!NT$3)))) ->  | NU21: =IF(NU2=0,"",IF(('Input Sheet'!NU$4-(1.5*Sheet2!NU$3))<'Input Sheet'!NU$16,'Input Sheet'!NU$16,IF(('Input Sheet'!NU$4-(1.5*Sheet2!NU$3))>'Input Sheet'!NU$15,'Input Sheet'!NU$15,'Input Sheet'!NU$4-(1.5*Sheet2!NU$3)))) ->  | NV21: =IF(NV2=0,"",IF(('Input Sheet'!NV$4-(1.5*Sheet2!NV$3))<'Input Sheet'!NV$16,'Input Sheet'!NV$16,IF(('Input Sheet'!NV$4-(1.5*Sheet2!NV$3))>'Input Sheet'!NV$15,'Input Sheet'!NV$15,'Input Sheet'!NV$4-(1.5*Sheet2!NV$3)))) ->  | NW21: =IF(NW2=0,"",IF(('Input Sheet'!NW$4-(1.5*Sheet2!NW$3))<'Input Sheet'!NW$16,'Input Sheet'!NW$16,IF(('Input Sheet'!NW$4-(1.5*Sheet2!NW$3))>'Input Sheet'!NW$15,'Input Sheet'!NW$15,'Input Sheet'!NW$4-(1.5*Sheet2!NW$3)))) ->  | NX21: =IF(NX2=0,"",IF(('Input Sheet'!NX$4-(1.5*Sheet2!NX$3))<'Input Sheet'!NX$16,'Input Sheet'!NX$16,IF(('Input Sheet'!NX$4-(1.5*Sheet2!NX$3))>'Input Sheet'!NX$15,'Input Sheet'!NX$15,'Input Sheet'!NX$4-(1.5*Sheet2!NX$3)))) ->  | NY21: =IF(NY2=0,"",IF(('Input Sheet'!NY$4-(1.5*Sheet2!NY$3))<'Input Sheet'!NY$16,'Input Sheet'!NY$16,IF(('Input Sheet'!NY$4-(1.5*Sheet2!NY$3))>'Input Sheet'!NY$15,'Input Sheet'!NY$15,'Input Sheet'!NY$4-(1.5*Sheet2!NY$3)))) ->  | NZ21: =IF(NZ2=0,"",IF(('Input Sheet'!NZ$4-(1.5*Sheet2!NZ$3))<'Input Sheet'!NZ$16,'Input Sheet'!NZ$16,IF(('Input Sheet'!NZ$4-(1.5*Sheet2!NZ$3))>'Input Sheet'!NZ$15,'Input Sheet'!NZ$15,'Input Sheet'!NZ$4-(1.5*Sheet2!NZ$3)))) ->  | OA21: =IF(OA2=0,"",IF(('Input Sheet'!OA$4-(1.5*Sheet2!OA$3))<'Input Sheet'!OA$16,'Input Sheet'!OA$16,IF(('Input Sheet'!OA$4-(1.5*Sheet2!OA$3))>'Input Sheet'!OA$15,'Input Sheet'!OA$15,'Input Sheet'!OA$4-(1.5*Sheet2!OA$3)))) ->  | OB21: =IF(OB2=0,"",IF(('Input Sheet'!OB$4-(1.5*Sheet2!OB$3))<'Input Sheet'!OB$16,'Input Sheet'!OB$16,IF(('Input Sheet'!OB$4-(1.5*Sheet2!OB$3))>'Input Sheet'!OB$15,'Input Sheet'!OB$15,'Input Sheet'!OB$4-(1.5*Sheet2!OB$3)))) ->  | OC21: =IF(OC2=0,"",IF(('Input Sheet'!OC$4-(1.5*Sheet2!OC$3))<'Input Sheet'!OC$16,'Input Sheet'!OC$16,IF(('Input Sheet'!OC$4-(1.5*Sheet2!OC$3))>'Input Sheet'!OC$15,'Input Sheet'!OC$15,'Input Sheet'!OC$4-(1.5*Sheet2!OC$3)))) ->  | OD21: =IF(OD2=0,"",IF(('Input Sheet'!OD$4-(1.5*Sheet2!OD$3))<'Input Sheet'!OD$16,'Input Sheet'!OD$16,IF(('Input Sheet'!OD$4-(1.5*Sheet2!OD$3))>'Input Sheet'!OD$15,'Input Sheet'!OD$15,'Input Sheet'!OD$4-(1.5*Sheet2!OD$3)))) ->  | OE21: =IF(OE2=0,"",IF(('Input Sheet'!OE$4-(1.5*Sheet2!OE$3))<'Input Sheet'!OE$16,'Input Sheet'!OE$16,IF(('Input Sheet'!OE$4-(1.5*Sheet2!OE$3))>'Input Sheet'!OE$15,'Input Sheet'!OE$15,'Input Sheet'!OE$4-(1.5*Sheet2!OE$3)))) ->  | OF21: =IF(OF2=0,"",IF(('Input Sheet'!OF$4-(1.5*Sheet2!OF$3))<'Input Sheet'!OF$16,'Input Sheet'!OF$16,IF(('Input Sheet'!OF$4-(1.5*Sheet2!OF$3))>'Input Sheet'!OF$15,'Input Sheet'!OF$15,'Input Sheet'!OF$4-(1.5*Sheet2!OF$3)))) ->  | OG21: =IF(OG2=0,"",IF(('Input Sheet'!OG$4-(1.5*Sheet2!OG$3))<'Input Sheet'!OG$16,'Input Sheet'!OG$16,IF(('Input Sheet'!OG$4-(1.5*Sheet2!OG$3))>'Input Sheet'!OG$15,'Input Sheet'!OG$15,'Input Sheet'!OG$4-(1.5*Sheet2!OG$3)))) ->  | OH21: =IF(OH2=0,"",IF(('Input Sheet'!OH$4-(1.5*Sheet2!OH$3))<'Input Sheet'!OH$16,'Input Sheet'!OH$16,IF(('Input Sheet'!OH$4-(1.5*Sheet2!OH$3))>'Input Sheet'!OH$15,'Input Sheet'!OH$15,'Input Sheet'!OH$4-(1.5*Sheet2!OH$3)))) ->  | OI21: =IF(OI2=0,"",IF(('Input Sheet'!OI$4-(1.5*Sheet2!OI$3))<'Input Sheet'!OI$16,'Input Sheet'!OI$16,IF(('Input Sheet'!OI$4-(1.5*Sheet2!OI$3))>'Input Sheet'!OI$15,'Input Sheet'!OI$15,'Input Sheet'!OI$4-(1.5*Sheet2!OI$3)))) ->  | OJ21: =IF(OJ2=0,"",IF(('Input Sheet'!OJ$4-(1.5*Sheet2!OJ$3))<'Input Sheet'!OJ$16,'Input Sheet'!OJ$16,IF(('Input Sheet'!OJ$4-(1.5*Sheet2!OJ$3))>'Input Sheet'!OJ$15,'Input Sheet'!OJ$15,'Input Sheet'!OJ$4-(1.5*Sheet2!OJ$3)))) ->  | OK21: =IF(OK2=0,"",IF(('Input Sheet'!OK$4-(1.5*Sheet2!OK$3))<'Input Sheet'!OK$16,'Input Sheet'!OK$16,IF(('Input Sheet'!OK$4-(1.5*Sheet2!OK$3))>'Input Sheet'!OK$15,'Input Sheet'!OK$15,'Input Sheet'!OK$4-(1.5*Sheet2!OK$3)))) -> 
